NUMERO_MANDATO;RIGA_MANDATO;QUIET;IMPORTO_RIGA;IMPORTO_MANDATO;BENEFICIARIO;CIG;TITOLO_PAGAMENTO;DATA_MANDATO;CAPITOLO;ARTICOLO;NUMERO_IMPEGNO;TITOLO;DESCR_TITOLO;LIVELLO_II;DESCR_LIVELLO_II;LIVELLO_III;DESCR_LIVELLO_III;LIVELLO_IV;DESCR_LIVELLO_IV;LIVELLO_V;DESCR_LIVELLO_V;DATA_PAG_EFF
3196;1;9999999;2.250,00;2.250,00;SCUOLA MATERNA MARIA BAMBINA; ;SECONDO PERIODO  CONTRIBUTO ECONOMICO  PER IL SERVIZIO DI TRASPORTO SCOLASTICO ANNO SCOLASTICO 2021/22.;01/09/2022;1259;0;930;1;Spese correnti;4;Trasferimenti correnti;4;Trasferimenti correnti a Istituzioni Sociali Private;1;Trasferimenti correnti a Istituzioni Sociali Private;1;Trasferimenti correnti a Istituzioni Sociali Private;06/09/2022
3197;1;9999999;23,83;23,83;C/C/P 1039683022 -RISCOSSIONE COATTIVA EX ICP DPA; ;SPESE GESTIONE CONTI CORRENTI POSTALI AGOSTO 2022 CCP 001039683022;02/09/2022;146;0;382;1;Spese correnti;3;Acquisto di beni e servizi;2;Acquisto di servizi;17;Servizi finanziari;999;Spese per servizi finanziari n.a.c.;06/09/2022
3198;1;9999999;1.634,78;1.634,78;CITTA' METROPOLITANA DI VENEZIA;90957312AC;CONTRATTO MENSA SCOLASTICA - QUOTA SPESE FUNZIONAMENTO SUA AA.SS. 2022/23-2023/24-2024/25;02/09/2022;1344;0;146;1;Spese correnti;3;Acquisto di beni e servizi;2;Acquisto di servizi;15;Contratti di servizio pubblico;6;Contratti di servizio per le mense scolastiche;06/09/2022
3199;1;9999999;3.500,00;3.500,00;CITTA' METROPOLITANA DI VENEZIA;90957312AC;CONTRATTO MENSA SCOLASTICA - SPESE PUBBLICITA GARA AA.SS. 2022/23-2023/24-2024/25;02/09/2022;1344;0;147;1;Spese correnti;3;Acquisto di beni e servizi;2;Acquisto di servizi;15;Contratti di servizio pubblico;6;Contratti di servizio per le mense scolastiche;06/09/2022
3200;1;9999999;2.803,01;2.803,01;CITTA' METROPOLITANA DI VENEZIA;90957312AC;CONTRATTO MENSA SCOLASTICA - QUOTA SPESE FUNZIONAMENTO SUA AA.SS. 2022/23-2023/24-2024/25;02/09/2022;1344;0;664;1;Spese correnti;3;Acquisto di beni e servizi;2;Acquisto di servizi;15;Contratti di servizio pubblico;999;Altre spese per contratti di servizio pubblico;06/09/2022
3202;1;9999999;700;700;ABITARE INSIEME DI MICHELE SOMMA; ;CONTRIBUTO CONDOMINIALE PER IL CONDOMINIO BERTOLDO - ESERCIZIO 2022. VIA DON GALLERANI;02/09/2022;549;0;661;1;Spese correnti;3;Acquisto di beni e servizi;2;Acquisto di servizi;99;Altri servizi;999;Altri servizi diversi n.a.c.;06/09/2022
3203;1;9999999;150;150;OMESSO NOMINATIVO NEL RISPETTO DELLA NORMATIVA SULLA PROTEZIONE DATI PERSONALI; ;SETTEMBRE 2022 AFFIDAMENTO FAMILIARE -;02/09/2022;3757;50;619;1;Spese correnti;4;Trasferimenti correnti;2;Trasferimenti correnti a Famiglie;2;Interventi assistenziali;999;Altri assegni e sussidi assistenziali;06/09/2022
3204;1;9999999;61.917,78;61.917,78;ANOE' GIUSEPPE SRL;9074108ECB;ACCONTO Fatt.n. 00007/02  del 08/08/2022 MANUTENZIONE STRAORDINARIA DELLE STRADE DEL TERRITORIO COMUNALE;02/09/2022;8558;0;1033;2;Spese in conto capitale;2;Investimenti fissi lordi e acquisto di terreni;1;Beni materiali;9;Beni immobili;12;Infrastrutture stradali;06/09/2022
3205;1;9999999;61.000,00;61.000,00;ANOE' GIUSEPPE SRL;9074108ECB;SALDO Fatt.n. 00007/02  del 08/08/2022 MANUTENZIONE STRAORDINARIA DELLE STRADE DEL TERRITORIO COMUNALE;02/09/2022;8558;0;1033;2;Spese in conto capitale;2;Investimenti fissi lordi e acquisto di terreni;1;Beni materiali;9;Beni immobili;12;Infrastrutture stradali;06/09/2022
3206;1;9999999;126.006,16;126.006,16;MILAN SNC DI MILAN  GEOM.LORENZO & C.;9204420FA8;SALDO Fatt.n. 30/001  del 12/08/2022  MANUTENZIONE STRAORDINARIA DELLE STRADE DEL TERRITORIO COMUNALE - PRIMO SAL;02/09/2022;8558;0;1084;2;Spese in conto capitale;2;Investimenti fissi lordi e acquisto di terreni;1;Beni materiali;9;Beni immobili;12;Infrastrutture stradali;06/09/2022
3211;1;9999999;250;250;OMESSO NOMINATIVO NEL RISPETTO DELLA NORMATIVA SULLA PROTEZIONE DATI PERSONALI; ;PROGETTO RIA - AGOSTO 2022;06/09/2022;3957;54;373;1;Spese correnti;4;Trasferimenti correnti;2;Trasferimenti correnti a Famiglie;5;Altri trasferimenti a famiglie;999;Altri trasferimenti a famiglie n.a.c.;15/09/2022
3212;1;9999999;250;250;OMESSO NOMINATIVO NEL RISPETTO DELLA NORMATIVA SULLA PROTEZIONE DATI PERSONALI; ;PROGETTO RIA - AGOSTO 2022;06/09/2022;3957;54;373;1;Spese correnti;4;Trasferimenti correnti;2;Trasferimenti correnti a Famiglie;5;Altri trasferimenti a famiglie;999;Altri trasferimenti a famiglie n.a.c.;13/09/2022
3213;1;9999999;250;250;OMESSO NOMINATIVO NEL RISPETTO DELLA NORMATIVA SULLA PROTEZIONE DATI PERSONALI; ;PROGETTO RIA - AGOSTO 2022;06/09/2022;3957;54;373;1;Spese correnti;4;Trasferimenti correnti;2;Trasferimenti correnti a Famiglie;5;Altri trasferimenti a famiglie;999;Altri trasferimenti a famiglie n.a.c.;15/09/2022
3214;1;9999999;250;250;OMESSO NOMINATIVO NEL RISPETTO DELLA NORMATIVA SULLA PROTEZIONE DATI PERSONALI; ;PROGETTO RIA - AGOSTO 2022;06/09/2022;3957;54;373;1;Spese correnti;4;Trasferimenti correnti;2;Trasferimenti correnti a Famiglie;5;Altri trasferimenti a famiglie;999;Altri trasferimenti a famiglie n.a.c.;14/09/2022
3217;1;9999999;770,65;770,65;AGENZIA DELLE ENTRATE - IVA; ;LIQUIDAZIONE IVA COMMERCIALE MESE DI AGOSTO 2022;07/09/2022;291;0;766;1;Spese correnti;10;Altre spese correnti;3;Versamenti IVA a debito;1;Versamenti IVA a debito per le gestioni commerciali;1;Versamenti IVA a debito per le gestioni commerciali;16/09/2022
3218;1;9999999;435,06;1.275,46;ABACO S.P.A.;766214493F;SALDO Fatt.n. 2022120004195  del 08/08/2022 AGGIO CUP - ESPOSIZIONI PUBBLI CITARIE RENDICONTO DELLA GESTIONE LUGLIO 2022;09/09/2022;332;0;1228;1;Spese correnti;3;Acquisto di beni e servizi;2;Acquisto di servizi;3;Aggi di riscossione;999;Altri aggi di riscossione n.a.c.;13/09/2022
3218;2;9999999;840,4;1.275,46;ABACO S.P.A.;766214493F;SALDO Fatt.n. 2022120004196  del 08/08/2022 AGGIO CUP - OCCUPAZIONE SUOLO PUBBLICO RENDICONTO LUGLIO 2022;09/09/2022;332;0;1228;1;Spese correnti;3;Acquisto di beni e servizi;2;Acquisto di servizi;3;Aggi di riscossione;999;Altri aggi di riscossione n.a.c.;13/09/2022
3219;1;9999999;609,05;609,05;ABACO S.P.A.;766214493F;SALDO Fatt.n. 2022140002990  del 08/08/2022 AGGIO RISCOSSIONE COATTIVA ICI IMU TASI LOTTO 10- 11-12-13-14-15-16-17 RENDICONTO LUGLIO 2022;09/09/2022;332;0;28;1;Spese correnti;3;Acquisto di beni e servizi;2;Acquisto di servizi;3;Aggi di riscossione;999;Altri aggi di riscossione n.a.c.;13/09/2022
3220;1;9999999;127,34;127,34;ENI SPA DIVISIONE REFINING & MARKETING;Z0234B8009;ACCONTO Fatt.n. 29832170  del 31/07/2022 FORNITURA METANO - LUGLIO 2022;09/09/2022;4121;0;8;1;Spese correnti;3;Acquisto di beni e servizi;1;Acquisto di beni;2;Altri beni di consumo;2;Carburanti, combustibili e lubrificanti;12/09/2022
3221;1;9999999;24,78;24,78;ENI SPA DIVISIONE REFINING & MARKETING;Z0234B8009;SALDO Fatt.n. 29832170  del 31/07/2022 FORNITURA METANO - LUGLIO 2022;09/09/2022;4121;0;8;1;Spese correnti;3;Acquisto di beni e servizi;1;Acquisto di beni;2;Altri beni di consumo;2;Carburanti, combustibili e lubrificanti;13/09/2022
3222;1;9999999;5.000,00;5.000,00;LABS LABORATORIO SOLIDALE ONLUS; ;TERZO ACCONTO ATTIVITA SVOLTE NEL MESE DI AGOSTO 2022;09/09/2022;4059;10;413;1;Spese correnti;4;Trasferimenti correnti;4;Trasferimenti correnti a Istituzioni Sociali Private;1;Trasferimenti correnti a Istituzioni Sociali Private;1;Trasferimenti correnti a Istituzioni Sociali Private;13/09/2022
3223;1;9999999;2.500,00;2.500,00;LABS LABORATORIO SOLIDALE ONLUS; ;CONTRIBUTO PER RASSEGNA CULTURALE RESTATE IN VILLA 2022;09/09/2022;1859;0;558;1;Spese correnti;4;Trasferimenti correnti;4;Trasferimenti correnti a Istituzioni Sociali Private;1;Trasferimenti correnti a Istituzioni Sociali Private;1;Trasferimenti correnti a Istituzioni Sociali Private;13/09/2022
3228;1;9999999;79,3;1.386,24;TIM SPA - TELECOM ITALIA SPA;Z502F0ADA2;SALDO Fatt.n. 8E00621170  del 11/08/2022 PERIODO 5 GIU-LUG 2022 - FAX SEDE MUNICIPALE;12/09/2022;134;0;944;1;Spese correnti;3;Acquisto di beni e servizi;2;Acquisto di servizi;5;Utenze e canoni;1;Telefonia fissa;14/09/2022
3228;2;9999999;79,3;1.386,24;TIM SPA - TELECOM ITALIA SPA;Z502F0ADA2;SALDO Fatt.n. 8E00625326  del 11/08/2022 PERIODO 5 GIU-LUG 2022 - UTENZA CENTRO PRELIEVI;12/09/2022;134;0;944;1;Spese correnti;3;Acquisto di beni e servizi;2;Acquisto di servizi;5;Utenze e canoni;1;Telefonia fissa;14/09/2022
3228;3;9999999;103,7;1.386,24;TIM SPA - TELECOM ITALIA SPA;Z502F0ADA2;SALDO Fatt.n. 8E00622214  del 11/08/2022 PERIODO 5 GIU-LUG 2022 - FAX POLIZIA LOCALE;12/09/2022;134;0;944;1;Spese correnti;3;Acquisto di beni e servizi;2;Acquisto di servizi;5;Utenze e canoni;1;Telefonia fissa;14/09/2022
3228;4;9999999;115,9;1.386,24;TIM SPA - TELECOM ITALIA SPA;Z502F0ADA2;SALDO Fatt.n. 8E00627964  del 11/08/2022 PERIODO 5 GIU-LUG 2022 - UTENZA SERVIZI SOCIALI;12/09/2022;134;0;944;1;Spese correnti;3;Acquisto di beni e servizi;2;Acquisto di servizi;5;Utenze e canoni;1;Telefonia fissa;14/09/2022
3228;5;9999999;116,53;1.386,24;TIM SPA - TELECOM ITALIA SPA;Z502F0ADA2;SALDO Fatt.n. 8E00626800  del 11/08/2022 PERIODO 5 GIU-LUG 2022 - FAX BIBLIOTECA;12/09/2022;134;0;944;1;Spese correnti;3;Acquisto di beni e servizi;2;Acquisto di servizi;5;Utenze e canoni;1;Telefonia fissa;14/09/2022
3228;6;9999999;135,22;1.386,24;TIM SPA - TELECOM ITALIA SPA;Z502F0ADA2;SALDO Fatt.n. 8E00625236  del 11/08/2022 PERIODO 5 GIU-LUG 2022 - UTENZA POLIZIA LOCALE;12/09/2022;134;0;944;1;Spese correnti;3;Acquisto di beni e servizi;2;Acquisto di servizi;5;Utenze e canoni;1;Telefonia fissa;14/09/2022
3228;7;9999999;135,22;1.386,24;TIM SPA - TELECOM ITALIA SPA;Z502F0ADA2;SALDO Fatt.n. 8E00626744  del 11/08/2022 PERIODO 5 GIU-LUG 2022 - UTENZA BIBLIOTECA COMUNALE;12/09/2022;134;0;944;1;Spese correnti;3;Acquisto di beni e servizi;2;Acquisto di servizi;5;Utenze e canoni;1;Telefonia fissa;14/09/2022
3228;8;9999999;135,41;1.386,24;TIM SPA - TELECOM ITALIA SPA;Z502F0ADA2;SALDO Fatt.n. 8E00625626  del 11/08/2022 PERIODO 5 GIU-LUG 2022 - UTENZA SEDE MUNICIPALE;12/09/2022;134;0;944;1;Spese correnti;3;Acquisto di beni e servizi;2;Acquisto di servizi;5;Utenze e canoni;1;Telefonia fissa;14/09/2022
3228;9;9999999;139,59;1.386,24;TIM SPA - TELECOM ITALIA SPA;Z502F0ADA2;SALDO Fatt.n. 8E00625169  del 11/08/2022 PERIODO 5 GIU-LUG 2022 - UTENZA SEDE MUNICIPALE;12/09/2022;134;0;944;1;Spese correnti;3;Acquisto di beni e servizi;2;Acquisto di servizi;5;Utenze e canoni;1;Telefonia fissa;14/09/2022
3228;10;9999999;148,63;1.386,24;TIM SPA - TELECOM ITALIA SPA;Z502F0ADA2;SALDO Fatt.n. 8E00625325  del 11/08/2022 PERIODO 5 GIU-LUG 2022 - FAX CENTRO PRELIEVI;12/09/2022;134;0;944;1;Spese correnti;3;Acquisto di beni e servizi;2;Acquisto di servizi;5;Utenze e canoni;1;Telefonia fissa;14/09/2022
3228;11;9999999;197,44;1.386,24;TIM SPA - TELECOM ITALIA SPA;Z502F0ADA2;SALDO Fatt.n. 8E00624804  del 11/08/2022 PERIODO 5 GIU-LUG 2022 - UTENZA SEDE MUNICIPALE;12/09/2022;134;0;944;1;Spese correnti;3;Acquisto di beni e servizi;2;Acquisto di servizi;5;Utenze e canoni;1;Telefonia fissa;14/09/2022
3229;1;9999999;1.097,98;1.097,98;TIM SPA - TELECOM ITALIA SPA;ZE027DF92B;SALDO Fatt.n. 4220422800038047  del 11/08/2022 PERIODO 5 GIU-LUG 2022 - CONNETTIVITA FIBRA GBE;12/09/2022;134;0;179;1;Spese correnti;3;Acquisto di beni e servizi;2;Acquisto di servizi;5;Utenze e canoni;999;Utenze e canoni per altri servizi n.a.c.;14/09/2022
3230;1;9999999;533,19;533,19;TIM SPA - TELECOM ITALIA SPA;ZC0320B772;SALDO Fatt.n. 7X03329797  del 11/08/2022 PERIODO 5 GIU-LUG 2022 - CONVENZIONE CONSIP TELEFONIA MOBILE 8;12/09/2022;134;32;178;1;Spese correnti;3;Acquisto di beni e servizi;2;Acquisto di servizi;5;Utenze e canoni;2;Telefonia mobile;14/09/2022
3231;1;9999999;136,64;136,64;TIM SPA - TELECOM ITALIA SPA;ZE027DF92B;SALDO Fatt.n. 4220422800037619  del 11/08/2022 PERIODO 5 GIU-LUG 2022 - CONNETTIVITA E BACKUP SEDE MUNICIPALE;12/09/2022;134;32;205;1;Spese correnti;3;Acquisto di beni e servizi;2;Acquisto di servizi;5;Utenze e canoni;999;Utenze e canoni per altri servizi n.a.c.;14/09/2022
3232;1;9999999;625,5;625,5;MAGGIOLI SPA;Z033764D0B;SALDO Fatt.n. 0001144031  del 26/08/2022 FORMAZIONE ANTICORRUZIONE ONLINE -SERVIZIO ENTIONLINE - ANNO 2022;12/09/2022;833;0;650;1;Spese correnti;3;Acquisto di beni e servizi;2;Acquisto di servizi;4;Acquisto di servizi per formazione e addestramento del personale dell'ente;4;Acquisto di servizi per formazione obbligatoria;14/09/2022
3233;1;9999999;59,62;2.408,67;VODAFONE ITALIA SPA;Z6C2BED875;SALDO Fatt.n. AO15719430  del 04/09/2022 PERIODO 02 LUGLIO - 30 AGOSTO 2022 TELEFONIA;12/09/2022;1334;0;332;1;Spese correnti;3;Acquisto di beni e servizi;2;Acquisto di servizi;5;Utenze e canoni;1;Telefonia fissa;14/09/2022
3233;2;9999999;247,41;2.408,67;VODAFONE ITALIA SPA;Z6C2BED875;SALDO Fatt.n. AO15719431  del 04/09/2022 scissione pagamenti;12/09/2022;1334;0;332;1;Spese correnti;3;Acquisto di beni e servizi;2;Acquisto di servizi;5;Utenze e canoni;1;Telefonia fissa;14/09/2022
3233;3;9999999;933,86;2.408,67;VODAFONE ITALIA SPA;Z6C2BED875;SALDO Fatt.n. AO15719121  del 04/09/2022 PERIODO 02 LUGLIO - 30 AGOSTO 2022 TELEFONIA;12/09/2022;1334;0;332;1;Spese correnti;3;Acquisto di beni e servizi;2;Acquisto di servizi;5;Utenze e canoni;1;Telefonia fissa;14/09/2022
3233;4;9999999;1.167,78;2.408,67;VODAFONE ITALIA SPA;Z6C2BED875;SALDO Fatt.n. AO15719154  del 04/09/2022 PERIODO 02 LUGLIO - 30 AGOSTO 2022 TELEFONIA;12/09/2022;1334;0;332;1;Spese correnti;3;Acquisto di beni e servizi;2;Acquisto di servizi;5;Utenze e canoni;1;Telefonia fissa;14/09/2022
3234;1;9999999;32.839,13;32.839,13;UNICREDIT LEASING SPA;202734562;SALDO Fatt.n. 2022/24/0000423  del 17/08/2022 N. 48 CANONE DI  LEASING  IMMOBILIARE - CONTRATTO N. IC01217653;12/09/2022;1337;0;1162;1;Spese correnti;3;Acquisto di beni e servizi;2;Acquisto di servizi;8;Leasing operativo;999;Leasing operativo di altri beni;14/09/2022
3235;1;9999999;9.904,88;9.904,88;GOTTARDO DINO & C.SNC;Z20343EAF3;SALDO Fatt.n. 36  del 16/08/2022 ESECUZIONE LAVORI PER OPERE DA FABBRO O ASSSIMILABILI NEI FABBRICATI COMUNALI;12/09/2022;7457;0;1070;2;Spese in conto capitale;2;Investimenti fissi lordi e acquisto di terreni;1;Beni materiali;9;Beni immobili;3;Fabbricati ad uso scolastico;14/09/2022
3240;1;9999999;26,89;26,89;C/C/P 15453301 SERVIZIO DI TESORERIA COM; ;SPESE GESTIONE CONTO CORRENTE POSTALE 15453301 AGOSTO 2022;15/09/2022;146;0;382;1;Spese correnti;3;Acquisto di beni e servizi;2;Acquisto di servizi;17;Servizi finanziari;999;Spese per servizi finanziari n.a.c.;19/09/2022
3241;1;9999999;264,74;264,74;KUWAIT PETROLEUM ITALIA SPA;Z543524413;ACCONTO Fatt.n. PJ05810121  del 31/08/2022 FORNITURA CARBURANTE AGOSTO 2022;15/09/2022;121;7;185;1;Spese correnti;3;Acquisto di beni e servizi;1;Acquisto di beni;2;Altri beni di consumo;2;Carburanti, combustibili e lubrificanti;19/09/2022
3242;1;9999999;167,41;167,41;C.E.I.F. DI BESSEGA DANIELE;Z0934F37FF;SALDO Fatt.n. 1-4  del 31/08/2022 MATERIALE VARIO DI FERRAMENTA PER MANUTENZIONI;15/09/2022;522;0;607;1;Spese correnti;3;Acquisto di beni e servizi;1;Acquisto di beni;2;Altri beni di consumo;999;Altri beni e materiali di consumo n.a.c.;19/09/2022
3243;1;9999999;159,5;159,5;LAZZARO ENRICO;Z583747DA4;SALDO Fatt.n. 2/PA  del 30/08/2022 REDAZIONE PIANO DI SICUREZZA E DI EMERGENZA IN OCCASIONE DELLO SPETTACOLO DAL VIVO  - ANTENATI DI E CON MARCO PAOLINI -;15/09/2022;540;0;634;1;Spese correnti;3;Acquisto di beni e servizi;2;Acquisto di servizi;11;Prestazioni professionali e specialistiche;999;Altre prestazioni professionali e specialistiche n.a.c.;19/09/2022
3244;1;9999999;140,3;140,3;VEDETTA 2 MONDIALPOL SPA;ZD032B120B;SALDO Fatt.n. V9-2303  del 06/09/2022 AGOSTO 2022 SERVIZIO DI VIGILANZA MAGAZZINO -PROTEZIONE CIVILE V.LE FERRARIS - VILLA FARSETTI;15/09/2022;548;0;688;1;Spese correnti;3;Acquisto di beni e servizi;2;Acquisto di servizi;9;Manutenzione ordinaria e riparazioni;8;Manutenzione ordinaria e riparazioni di beni immobili;19/09/2022
3245;1;9999999;244;244;I.A.C.E. SRL;Z40366815D;SALDO Fatt.n. 1112/2022  del 19/08/2022 VERIFICA PERIODICA ASCENSORIPRESSO SCUOLE  ELEMENTARI  DI S.ANGELO E VETERNIGO;15/09/2022;548;0;494;1;Spese correnti;3;Acquisto di beni e servizi;2;Acquisto di servizi;9;Manutenzione ordinaria e riparazioni;4;Manutenzione ordinaria e riparazioni di impianti e macchinari;19/09/2022
3246;1;9999999;268,4;268,4;EUREKA SRL UNIPERSONALE;ZDF3772246;SALDO Fatt.n. 182  del 24/08/2022 MANUTENZIONE ANNUALE E3ROGATORI ACQUA FREDDA CON SOSITUZIONE CARTUCCIA EVERPURE;15/09/2022;548;0;656;1;Spese correnti;3;Acquisto di beni e servizi;2;Acquisto di servizi;9;Manutenzione ordinaria e riparazioni;4;Manutenzione ordinaria e riparazioni di impianti e macchinari;19/09/2022
3247;1;9999999;305;305;JOLLY BOX SRL;Z642E237DF;SALDO Fatt.n. 5221-V0-2022  del 30/08/2022 NOLEGGIO DI CONTAINER NAVALE SC. ELEM. VETERNIGO - MESE DI AGOSTO 2022;15/09/2022;1336;0;655;1;Spese correnti;3;Acquisto di beni e servizi;2;Acquisto di servizi;7;Utilizzo di beni di terzi;8;Noleggi di impianti e macchinari;19/09/2022
3248;1;9999999;172,26;172,26;SONEPAR ITALIA  SPA;Z6B350148B;SALDO Fatt.n. 0031231840  del 31/08/2022 MATERIALE ELETTRICO PER MANUTENZIONI;15/09/2022;1338;0;123;1;Spese correnti;3;Acquisto di beni e servizi;2;Acquisto di servizi;9;Manutenzione ordinaria e riparazioni;4;Manutenzione ordinaria e riparazioni di impianti e macchinari;19/09/2022
3249;1;9999999;89,98;89,98;SONEPAR ITALIA  SPA;Z6B350148B;SALDO Fatt.n. 0031231839  del 31/08/2022 MATERIALE ELETTRICO PER MANUTENZIONI;15/09/2022;3538;0;121;1;Spese correnti;3;Acquisto di beni e servizi;2;Acquisto di servizi;9;Manutenzione ordinaria e riparazioni;4;Manutenzione ordinaria e riparazioni di impianti e macchinari;19/09/2022
3250;1;9999999;85,27;85,27;KUWAIT PETROLEUM ITALIA SPA;Z543524413;SALDO Fatt.n. PJ05810121  del 31/08/2022 FORNITURA CARBURANTE AGOSTO 2022;15/09/2022;521;0;186;1;Spese correnti;3;Acquisto di beni e servizi;1;Acquisto di beni;2;Altri beni di consumo;999;Altri beni e materiali di consumo n.a.c.;19/09/2022
3251;1;9999999;20.371,10;20.371,10;VENTUNO SAS DI GIACOMELLO CARLO, FRANCESCO & C.;Z6A3742B3B;SALDO Fatt.n. 58  del 31/08/2022 FORNITURA LIBRI DI TESTO  PER SCUOLE  ELEMENTARI  A.S. 2022-2023;15/09/2022;1357;0;633;1;Spese correnti;4;Trasferimenti correnti;2;Trasferimenti correnti a Famiglie;5;Altri trasferimenti a famiglie;999;Altri trasferimenti a famiglie n.a.c.;19/09/2022
3252;1;9999999;118.540,36;118.540,36;BASSO III SRL;9219396641;SALDO Fatt.n. 121  del 29/08/2022 REALIZZAZIONE PISTA CICLO-PEDONALE S.P.30 VIA CALTANA TRATTO CIMITERO - VIA PIANIGA: APPROVAZIONE DELLO STATO AVANZAMENTO LAVORI N. 1 E DEL RELATIVO CERTIFICATO DI PAGAMENTO;15/09/2022;8563;0;1372;2;Spese in conto capitale;2;Investimenti fissi lordi e acquisto di terreni;1;Beni materiali;9;Beni immobili;12;Infrastrutture stradali;19/09/2022
3253;1;9999999;3,82;3,82;DOLOMITI ENERGIA SPA;9127403B39;SALDO Fatt.n. 42203935922  del 30/08/2022 LUGLIO 2022 CONSUMI VIA OLIMPIA SMS;15/09/2022;134;30;231;1;Spese correnti;3;Acquisto di beni e servizi;2;Acquisto di servizi;5;Utenze e canoni;6;Gas;19/09/2022
3254;1;9999999;32,69;32,69;DOLOMITI ENERGIA SPA;9127403B39;SALDO Fatt.n. 42203935920  del 30/08/2022 LUGLIO 2022 CONSUMI SEDE MUNICIPALE;15/09/2022;134;30;231;1;Spese correnti;3;Acquisto di beni e servizi;2;Acquisto di servizi;5;Utenze e canoni;6;Gas;19/09/2022
3255;1;9999999;14,9;14,9;DOLOMITI ENERGIA SPA;9127403B39;SALDO Fatt.n. 42203935923  del 30/08/2022 LUGLIO 2022 CONSUMI ALLOGGIO VIA DON GALLERANI CALTANA;15/09/2022;134;30;231;1;Spese correnti;3;Acquisto di beni e servizi;2;Acquisto di servizi;5;Utenze e canoni;6;Gas;19/09/2022
3256;1;9999999;73,04;73,04;DOLOMITI ENERGIA SPA;9127403B39;SALDO Fatt.n. 42203935924  del 30/08/2022 LUGLIO 2022  CONSUMI SC. ELEM - SC. MEDIA SMS;15/09/2022;1334;30;233;1;Spese correnti;3;Acquisto di beni e servizi;2;Acquisto di servizi;5;Utenze e canoni;6;Gas;19/09/2022
3257;1;9999999;32,69;32,69;DOLOMITI ENERGIA SPA;9127403B39;SALDO Fatt.n. 42203935918  del 30/08/2022 LUGLIO 2022 CONSUMI SC. ELEM. CALTANA;15/09/2022;1334;30;233;1;Spese correnti;3;Acquisto di beni e servizi;2;Acquisto di servizi;5;Utenze e canoni;6;Gas;19/09/2022
3258;1;9999999;214;214;DOLOMITI ENERGIA SPA;9127403B39;ACCONTO Fatt.n. 42203935915  del 30/08/2022 LUGLIO 2022 CONSUMI SC. ELEM - PALESTRA STIGLIANO;15/09/2022;1334;30;233;1;Spese correnti;3;Acquisto di beni e servizi;2;Acquisto di servizi;5;Utenze e canoni;6;Gas;19/09/2022
3259;1;9999999;183,06;183,06;DOLOMITI ENERGIA SPA;9127403B39;ACCONTO Fatt.n. 42203935915  del 30/08/2022 LUGLIO 2022 CONSUMI SC. ELEM - PALESTRA STIGLIANO;15/09/2022;1334;30;233;1;Spese correnti;3;Acquisto di beni e servizi;2;Acquisto di servizi;5;Utenze e canoni;6;Gas;19/09/2022
3260;1;9999999;78,31;78,31;DOLOMITI ENERGIA SPA;9127403B39;ACCONTO Fatt.n. 42203935925  del 30/08/2022 LUGLIO 2022  CONSUMI PALESTRA SMS;15/09/2022;1334;30;233;1;Spese correnti;3;Acquisto di beni e servizi;2;Acquisto di servizi;5;Utenze e canoni;6;Gas;19/09/2022
3261;1;9999999;6;6;DOLOMITI ENERGIA SPA;9127403B39;ACCONTO Fatt.n. 42203935919  del 30/08/2022 LUGLIO 2022 CONSUMI SC. ELEM - PALESTRA CASELLE;15/09/2022;1334;30;233;1;Spese correnti;3;Acquisto di beni e servizi;2;Acquisto di servizi;5;Utenze e canoni;6;Gas;19/09/2022
3262;1;9999999;20,69;20,69;DOLOMITI ENERGIA SPA;9127403B39;ACCONTO Fatt.n. 42203935919  del 30/08/2022 LUGLIO 2022 CONSUMI SC. ELEM - PALESTRA CASELLE;15/09/2022;1334;30;233;1;Spese correnti;3;Acquisto di beni e servizi;2;Acquisto di servizi;5;Utenze e canoni;6;Gas;19/09/2022
3263;1;9999999;181;181;DOLOMITI ENERGIA SPA;9127403B39;ACCONTO Fatt.n. 42203935916  del 30/08/2022 LUGLIO 2022 CONSUMI SC. ELEM - PALESTRA VETERNIGO;15/09/2022;1334;30;233;1;Spese correnti;3;Acquisto di beni e servizi;2;Acquisto di servizi;5;Utenze e canoni;6;Gas;19/09/2022
3264;1;9999999;295,53;295,53;DOLOMITI ENERGIA SPA;9127403B39;ACCONTO Fatt.n. 42203935916  del 30/08/2022 LUGLIO 2022 CONSUMI SC. ELEM - PALESTRA VETERNIGO;15/09/2022;1334;30;233;1;Spese correnti;3;Acquisto di beni e servizi;2;Acquisto di servizi;5;Utenze e canoni;6;Gas;19/09/2022
3265;1;9999999;161;161;DOLOMITI ENERGIA SPA;9127403B39;ACCONTO Fatt.n. 42203935921  del 30/08/2022 LUGLIO 2022 CONSUMI SC. ELEM - PALESTRA -ASILO S.ANGELO;15/09/2022;1334;30;233;1;Spese correnti;3;Acquisto di beni e servizi;2;Acquisto di servizi;5;Utenze e canoni;6;Gas;19/09/2022
3266;1;9999999;481,84;481,84;DOLOMITI ENERGIA SPA;9127403B39;ACCONTO Fatt.n. 42203935921  del 30/08/2022 LUGLIO 2022 CONSUMI SC. ELEM - PALESTRA -ASILO S.ANGELO;15/09/2022;1334;30;233;1;Spese correnti;3;Acquisto di beni e servizi;2;Acquisto di servizi;5;Utenze e canoni;6;Gas;19/09/2022
3267;1;9999999;197,09;197,09;DOLOMITI ENERGIA SPA;9127403B39;ACCONTO Fatt.n. 42203935927  del 30/08/2022 LUGLIO 2022 CONSUMI PALESTRA CALTANA;15/09/2022;1334;30;233;1;Spese correnti;3;Acquisto di beni e servizi;2;Acquisto di servizi;5;Utenze e canoni;6;Gas;19/09/2022
3268;1;9999999;62,99;62,99;DOLOMITI ENERGIA SPA;9127403B39;SALDO Fatt.n. 42203935928  del 30/08/2022 LUGLIO 2022 CONSUMI IMP. SPORT. PARROCCHIA CASELLE;15/09/2022;1934;0;235;1;Spese correnti;3;Acquisto di beni e servizi;2;Acquisto di servizi;5;Utenze e canoni;6;Gas;19/09/2022
3269;1;9999999;214;214;DOLOMITI ENERGIA SPA;9127403B39;SALDO Fatt.n. 42203935915  del 30/08/2022 LUGLIO 2022 CONSUMI SC. ELEM - PALESTRA STIGLIANO;15/09/2022;1934;0;235;1;Spese correnti;3;Acquisto di beni e servizi;2;Acquisto di servizi;5;Utenze e canoni;6;Gas;19/09/2022
3270;1;9999999;78,32;78,32;DOLOMITI ENERGIA SPA;9127403B39;SALDO Fatt.n. 42203935925  del 30/08/2022 LUGLIO 2022  CONSUMI PALESTRA SMS;15/09/2022;1934;0;235;1;Spese correnti;3;Acquisto di beni e servizi;2;Acquisto di servizi;5;Utenze e canoni;6;Gas;19/09/2022
3271;1;9999999;6;6;DOLOMITI ENERGIA SPA;9127403B39;SALDO Fatt.n. 42203935919  del 30/08/2022 LUGLIO 2022 CONSUMI SC. ELEM - PALESTRA CASELLE;15/09/2022;1934;0;235;1;Spese correnti;3;Acquisto di beni e servizi;2;Acquisto di servizi;5;Utenze e canoni;6;Gas;19/09/2022
3272;1;9999999;181;181;DOLOMITI ENERGIA SPA;9127403B39;SALDO Fatt.n. 42203935916  del 30/08/2022 LUGLIO 2022 CONSUMI SC. ELEM - PALESTRA VETERNIGO;15/09/2022;1934;0;235;1;Spese correnti;3;Acquisto di beni e servizi;2;Acquisto di servizi;5;Utenze e canoni;6;Gas;19/09/2022
3273;1;9999999;161;161;DOLOMITI ENERGIA SPA;9127403B39;SALDO Fatt.n. 42203935921  del 30/08/2022 LUGLIO 2022 CONSUMI SC. ELEM - PALESTRA -ASILO S.ANGELO;15/09/2022;1934;0;235;1;Spese correnti;3;Acquisto di beni e servizi;2;Acquisto di servizi;5;Utenze e canoni;6;Gas;19/09/2022
3274;1;9999999;197,08;197,08;DOLOMITI ENERGIA SPA;9127403B39;SALDO Fatt.n. 42203935927  del 30/08/2022 LUGLIO 2022 CONSUMI PALESTRA CALTANA;15/09/2022;1934;0;235;1;Spese correnti;3;Acquisto di beni e servizi;2;Acquisto di servizi;5;Utenze e canoni;6;Gas;19/09/2022
3275;1;9999999;14,68;14,68;DOLOMITI ENERGIA SPA;9127403B39;SALDO Fatt.n. 42203935926  del 30/08/2022 LUGLIO 2022 CONSUMI MAGAZZINO COMUNALE;15/09/2022;3534;0;236;1;Spese correnti;3;Acquisto di beni e servizi;2;Acquisto di servizi;5;Utenze e canoni;6;Gas;19/09/2022
3276;1;9999999;32,69;32,69;DOLOMITI ENERGIA SPA;9127403B39;SALDO Fatt.n. 42203935917  del 30/08/2022 LUGLIO 2022 CONSUMI VILLA FARSETTI;15/09/2022;4234;0;237;1;Spese correnti;3;Acquisto di beni e servizi;2;Acquisto di servizi;5;Utenze e canoni;6;Gas;19/09/2022
3278;1;9999999;100;100;OMESSO NOMINATIVO NEL RISPETTO DELLA NORMATIVA SULLA PROTEZIONE DATI PERSONALI; ;SETTEMBRE 2022 MINIMO VITALE;16/09/2022;4157;0;647;1;Spese correnti;4;Trasferimenti correnti;2;Trasferimenti correnti a Famiglie;2;Interventi assistenziali;999;Altri assegni e sussidi assistenziali;30/09/2022
3279;1;9999999;100;100;OMESSO NOMINATIVO NEL RISPETTO DELLA NORMATIVA SULLA PROTEZIONE DATI PERSONALI; ;SETTEMBRE  2022 MINIMO VITALE;16/09/2022;4157;0;778;1;Spese correnti;4;Trasferimenti correnti;2;Trasferimenti correnti a Famiglie;2;Interventi assistenziali;999;Altri assegni e sussidi assistenziali;10/10/2022
3280;1;9999999;100;100;OMESSO NOMINATIVO NEL RISPETTO DELLA NORMATIVA SULLA PROTEZIONE DATI PERSONALI; ;SETTEMBRE  2022 MINIMO VITALE;16/09/2022;4157;0;613;1;Spese correnti;4;Trasferimenti correnti;2;Trasferimenti correnti a Famiglie;2;Interventi assistenziali;999;Altri assegni e sussidi assistenziali;06/10/2022
3281;1;9999999;165,64;165,64;OMESSO NOMINATIVO NEL RISPETTO DELLA NORMATIVA SULLA PROTEZIONE DATI PERSONALI; ;SETTEMBRE  2022 MINIMO VITALE;16/09/2022;4157;0;777;1;Spese correnti;4;Trasferimenti correnti;2;Trasferimenti correnti a Famiglie;2;Interventi assistenziali;999;Altri assegni e sussidi assistenziali;04/10/2022
3282;1;9999999;100;100;OMESSO NOMINATIVO NEL RISPETTO DELLA NORMATIVA SULLA PROTEZIONE DATI PERSONALI; ;SETTEMBRE  2022 MINIMO VITALE;16/09/2022;4157;0;646;1;Spese correnti;4;Trasferimenti correnti;2;Trasferimenti correnti a Famiglie;2;Interventi assistenziali;999;Altri assegni e sussidi assistenziali;27/10/2022
3283;1;9999999;150;150;OMESSO NOMINATIVO NEL RISPETTO DELLA NORMATIVA SULLA PROTEZIONE DATI PERSONALI; ;SETTEMBRE  2022 MINIMO VITALE;16/09/2022;4157;0;779;1;Spese correnti;4;Trasferimenti correnti;2;Trasferimenti correnti a Famiglie;2;Interventi assistenziali;999;Altri assegni e sussidi assistenziali;06/10/2022
3284;1;9999999;100;100;OMESSO NOMINATIVO NEL RISPETTO DELLA NORMATIVA SULLA PROTEZIONE DATI PERSONALI; ;SETTEMBRE  2022 MINIMO VITALE;16/09/2022;4157;0;648;1;Spese correnti;4;Trasferimenti correnti;2;Trasferimenti correnti a Famiglie;2;Interventi assistenziali;999;Altri assegni e sussidi assistenziali;06/10/2022
3285;1;9999999;500;500;OMESSO NOMINATIVO NEL RISPETTO DELLA NORMATIVA SULLA PROTEZIONE DATI PERSONALI; ;SETTEMBRE  2022 MINIMO VITALE;16/09/2022;4157;0;780;1;Spese correnti;4;Trasferimenti correnti;2;Trasferimenti correnti a Famiglie;2;Interventi assistenziali;999;Altri assegni e sussidi assistenziali;30/09/2022
3286;1;9999999;150;150;OMESSO NOMINATIVO NEL RISPETTO DELLA NORMATIVA SULLA PROTEZIONE DATI PERSONALI; ;SETTEMBRE  2022 MINIMO VITALE;16/09/2022;4157;0;781;1;Spese correnti;4;Trasferimenti correnti;2;Trasferimenti correnti a Famiglie;2;Interventi assistenziali;999;Altri assegni e sussidi assistenziali;27/09/2022
3287;1;9999999;500;500;OMESSO NOMINATIVO NEL RISPETTO DELLA NORMATIVA SULLA PROTEZIONE DATI PERSONALI; ;SETTEMBRE 2022 - QUOTA SOA;16/09/2022;3957;54;373;1;Spese correnti;4;Trasferimenti correnti;2;Trasferimenti correnti a Famiglie;5;Altri trasferimenti a famiglie;999;Altri trasferimenti a famiglie n.a.c.;29/09/2022
3288;1;9999999;130;130;OMESSO NOMINATIVO NEL RISPETTO DELLA NORMATIVA SULLA PROTEZIONE DATI PERSONALI; ;SETTEMBRE  2022 MINIMO VITALE;16/09/2022;4157;0;396;1;Spese correnti;4;Trasferimenti correnti;2;Trasferimenti correnti a Famiglie;2;Interventi assistenziali;999;Altri assegni e sussidi assistenziali;29/09/2022
3289;1;9999999;700;700;OMESSO NOMINATIVO NEL RISPETTO DELLA NORMATIVA SULLA PROTEZIONE DATI PERSONALI; ;SETTEMBRE 2022 PROGETTO RILEVANZA SOCIALE;16/09/2022;4157;0;91;1;Spese correnti;4;Trasferimenti correnti;2;Trasferimenti correnti a Famiglie;2;Interventi assistenziali;999;Altri assegni e sussidi assistenziali;20/09/2022
3290;1;9999999;250;250;OMESSO NOMINATIVO NEL RISPETTO DELLA NORMATIVA SULLA PROTEZIONE DATI PERSONALI; ;PAGAMENTO PARZIALE DEBITO  ATER CALTANELLA AGOSTINO -;16/09/2022;4157;0;782;1;Spese correnti;4;Trasferimenti correnti;2;Trasferimenti correnti a Famiglie;2;Interventi assistenziali;999;Altri assegni e sussidi assistenziali;20/09/2022
3291;1;9999999;324,33;324,33;OMESSO NOMINATIVO NEL RISPETTO DELLA NORMATIVA SULLA PROTEZIONE DATI PERSONALI; ;SETTEMBRE  2022 MINIMO VITALE;16/09/2022;4157;0;783;1;Spese correnti;4;Trasferimenti correnti;2;Trasferimenti correnti a Famiglie;2;Interventi assistenziali;999;Altri assegni e sussidi assistenziali;28/09/2022
3292;1;9999999;150;150;OMESSO NOMINATIVO NEL RISPETTO DELLA NORMATIVA SULLA PROTEZIONE DATI PERSONALI; ;SETTEMBRE  2022 MINIMO VITALE;16/09/2022;4157;0;615;1;Spese correnti;4;Trasferimenti correnti;2;Trasferimenti correnti a Famiglie;2;Interventi assistenziali;999;Altri assegni e sussidi assistenziali;30/09/2022
3294;1;9999999;111,46;478,73;ABACO S.P.A.;766214493F;SALDO Fatt.n. 2022120004546  del 07/09/2022 AGGIO RISCOSSIONE CUP ESPOSIZIONE PUBBLICITARIE RENDICONTO DELLA GESTIONE DAL 01/08/2022 AL 31/08/2022;16/09/2022;332;0;1228;1;Spese correnti;3;Acquisto di beni e servizi;2;Acquisto di servizi;3;Aggi di riscossione;999;Altri aggi di riscossione n.a.c.;20/09/2022
3294;2;9999999;367,27;478,73;ABACO S.P.A.;766214493F;SALDO Fatt.n. 2022120004547  del 07/09/2022 AGGIO RISCOSSIONE CUP OCCUPAZIONE SUOLO PUBBLICO RENDICONTO DELLA GESTIONE DAL 01/08/2022 AL 31/08/2022;16/09/2022;332;0;1228;1;Spese correnti;3;Acquisto di beni e servizi;2;Acquisto di servizi;3;Aggi di riscossione;999;Altri aggi di riscossione n.a.c.;20/09/2022
3295;1;9999999;191,3;191,3;ABACO S.P.A.;766214493F;SALDO Fatt.n. 2022140003381  del 08/09/2022 AGGIO RISCOSSIONE COATTIVA ICI IMU TASI LOTTO 10- 11-12-13-14-15-16-17 RENDICONTO DELLA GESTIONE DAL 01/08/2022 AL 31/08/2022;16/09/2022;332;0;28;1;Spese correnti;3;Acquisto di beni e servizi;2;Acquisto di servizi;3;Aggi di riscossione;999;Altri aggi di riscossione n.a.c.;20/09/2022
3296;1;9999999;10.586,89;10.586,89;DIVERSI-AMMINISTRATORI COM.LI; ;STIPENDI MESE DI SETTEMBRE 22;20/09/2022;30;99;0;1;Spese correnti;3;Acquisto di beni e servizi;2;Acquisto di servizi;1;Organi e incarichi istituzionali dell'amministrazione;1;Organi istituzionali dell'amministrazione - Indennità;26/09/2022
3376;1;9999999;7,92;7,92;COMUNE DI S.MARIA DI SALA; ;CONTRIBUTO IFEL RISCOSSIONE IMU RENDICONTO AL 20-09-2022;20/09/2022;332;0;0;1;Spese correnti;3;Acquisto di beni e servizi;2;Acquisto di servizi;3;Aggi di riscossione;999;Altri aggi di riscossione n.a.c.;22/09/2022
3377;1;9999999;0,45;2,53;BANCA MPS SPA; ;16520 COMUNE DI SANTA MARIA DI SALA CC 16520-COMMISSIONI DEL 05/09/22 (P. 27 -R. del 06/09/2022);20/09/2022;146;0;418;1;Spese correnti;3;Acquisto di beni e servizi;2;Acquisto di servizi;17;Servizi finanziari;1;Commissioni per servizi finanziari;21/09/2022
3377;2;9999999;2,08;2,53;BANCA MPS SPA; ;16520 COMUNE DI SANTA MARIA DI SALA CC 16520-COMMISSIONI DEL 08/09/22 (P. 28 -R. del 09/09/2022);20/09/2022;146;0;418;1;Spese correnti;3;Acquisto di beni e servizi;2;Acquisto di servizi;17;Servizi finanziari;1;Commissioni per servizi finanziari;21/09/2022
3379;1;9999999;4.223,64;4.223,64;ACCATRE SRL;Z883500BB1;SALDO Fatt.n. 1/220855  del 24/08/2022 CONVENZIONE PER I SERVIZI DEL SETTORE FINANZIARIO ANNO 2022;21/09/2022;748;0;124;1;Spese correnti;3;Acquisto di beni e servizi;2;Acquisto di servizi;19;Servizi informatici e di telecomunicazioni;7;Servizi di gestione documentale;26/09/2022
3381;1;9999999;1.200,00;1.200,00;OMESSO NOMINATIVO NEL RISPETTO DELLA NORMATIVA SULLA PROTEZIONE DATI PERSONALI; ;ICD MGS 2 TRIMESTRE 2022 - EROGAZIONE CONTRIBUTO;22/09/2022;3957;50;677;1;Spese correnti;4;Trasferimenti correnti;2;Trasferimenti correnti a Famiglie;2;Interventi assistenziali;999;Altri assegni e sussidi assistenziali;26/09/2022
3382;1;9999999;1.200,00;1.200,00;OMESSO NOMINATIVO NEL RISPETTO DELLA NORMATIVA SULLA PROTEZIONE DATI PERSONALI; ;ICD MGS 2 TRIMESTRE 2022 - EROGAZIONE CONTRIBUTO;22/09/2022;3957;50;678;1;Spese correnti;4;Trasferimenti correnti;2;Trasferimenti correnti a Famiglie;2;Interventi assistenziali;999;Altri assegni e sussidi assistenziali;26/09/2022
3383;1;9999999;1.200,00;1.200,00;OMESSO NOMINATIVO NEL RISPETTO DELLA NORMATIVA SULLA PROTEZIONE DATI PERSONALI; ;ICD MGS 2 TRIMESTRE 2022 - EROGAZIONE CONTRIBUTO;22/09/2022;3957;50;679;1;Spese correnti;4;Trasferimenti correnti;2;Trasferimenti correnti a Famiglie;2;Interventi assistenziali;999;Altri assegni e sussidi assistenziali;26/09/2022
3384;1;9999999;1.200,00;1.200,00;OMESSO NOMINATIVO NEL RISPETTO DELLA NORMATIVA SULLA PROTEZIONE DATI PERSONALI; ;ICD MGS 2 TRIMESTRE 2022 - EROGAZIONE CONTRIBUTO;22/09/2022;3957;50;680;1;Spese correnti;4;Trasferimenti correnti;2;Trasferimenti correnti a Famiglie;2;Interventi assistenziali;999;Altri assegni e sussidi assistenziali;26/09/2022
3385;1;9999999;1.200,00;1.200,00;OMESSO NOMINATIVO NEL RISPETTO DELLA NORMATIVA SULLA PROTEZIONE DATI PERSONALI; ;ICD MGS 2 TRIMESTRE 2022 - EROGAZIONE CONTRIBUTO;22/09/2022;3957;50;681;1;Spese correnti;4;Trasferimenti correnti;2;Trasferimenti correnti a Famiglie;2;Interventi assistenziali;999;Altri assegni e sussidi assistenziali;26/09/2022
3386;1;9999999;1.200,00;1.200,00;OMESSO NOMINATIVO NEL RISPETTO DELLA NORMATIVA SULLA PROTEZIONE DATI PERSONALI; ;ICD MGS 2 TRIMESTRE 2022 - EROGAZIONE CONTRIBUTO;22/09/2022;3957;50;682;1;Spese correnti;4;Trasferimenti correnti;2;Trasferimenti correnti a Famiglie;2;Interventi assistenziali;999;Altri assegni e sussidi assistenziali;26/09/2022
3387;1;9999999;1.200,00;1.200,00;OMESSO NOMINATIVO NEL RISPETTO DELLA NORMATIVA SULLA PROTEZIONE DATI PERSONALI; ;ICD MGS 2 TRIMESTRE 2022 - EROGAZIONE CONTRIBUTO;22/09/2022;3957;50;683;1;Spese correnti;4;Trasferimenti correnti;2;Trasferimenti correnti a Famiglie;2;Interventi assistenziali;999;Altri assegni e sussidi assistenziali;26/09/2022
3388;1;9999999;1.200,00;1.200,00;OMESSO NOMINATIVO NEL RISPETTO DELLA NORMATIVA SULLA PROTEZIONE DATI PERSONALI; ;ICD MGS 2 TRIMESTRE 2022 - EROGAZIONE CONTRIBUTO;22/09/2022;3957;50;684;1;Spese correnti;4;Trasferimenti correnti;2;Trasferimenti correnti a Famiglie;2;Interventi assistenziali;999;Altri assegni e sussidi assistenziali;26/09/2022
3389;1;9999999;400;400;OMESSO NOMINATIVO NEL RISPETTO DELLA NORMATIVA SULLA PROTEZIONE DATI PERSONALI; ;ICD MGS 2 TRIMESTRE 2022 - EROGAZIONE CONTRIBUTO;22/09/2022;3957;50;685;1;Spese correnti;4;Trasferimenti correnti;2;Trasferimenti correnti a Famiglie;2;Interventi assistenziali;999;Altri assegni e sussidi assistenziali;26/09/2022
3390;1;9999999;1.200,00;1.200,00;OMESSO NOMINATIVO NEL RISPETTO DELLA NORMATIVA SULLA PROTEZIONE DATI PERSONALI; ;ICD MGS 2 TRIMESTRE 2022 - EROGAZIONE CONTRIBUTO;22/09/2022;3957;50;686;1;Spese correnti;4;Trasferimenti correnti;2;Trasferimenti correnti a Famiglie;2;Interventi assistenziali;999;Altri assegni e sussidi assistenziali;26/09/2022
3391;1;9999999;1.200,00;1.200,00;OMESSO NOMINATIVO NEL RISPETTO DELLA NORMATIVA SULLA PROTEZIONE DATI PERSONALI; ;ICD MGS 2 TRIMESTRE 2022 - EROGAZIONE CONTRIBUTO;22/09/2022;3957;50;687;1;Spese correnti;4;Trasferimenti correnti;2;Trasferimenti correnti a Famiglie;2;Interventi assistenziali;999;Altri assegni e sussidi assistenziali;26/09/2022
3392;1;9999999;1.200,00;1.200,00;OMESSO NOMINATIVO NEL RISPETTO DELLA NORMATIVA SULLA PROTEZIONE DATI PERSONALI; ;ICD MGS 2 TRIMESTRE 2022 - EROGAZIONE CONTRIBUTO;22/09/2022;3957;50;688;1;Spese correnti;4;Trasferimenti correnti;2;Trasferimenti correnti a Famiglie;2;Interventi assistenziali;999;Altri assegni e sussidi assistenziali;26/09/2022
3393;1;9999999;1.200,00;1.200,00;OMESSO NOMINATIVO NEL RISPETTO DELLA NORMATIVA SULLA PROTEZIONE DATI PERSONALI; ;ICD MGS 2 TRIMESTRE 2022 - EROGAZIONE CONTRIBUTO;22/09/2022;3957;50;689;1;Spese correnti;4;Trasferimenti correnti;2;Trasferimenti correnti a Famiglie;2;Interventi assistenziali;999;Altri assegni e sussidi assistenziali;26/09/2022
3394;1;9999999;1.200,00;1.200,00;OMESSO NOMINATIVO NEL RISPETTO DELLA NORMATIVA SULLA PROTEZIONE DATI PERSONALI; ;ICD M 2 TRIMESTRE 2022 - EROGAZIONE CONTRIBUTO;22/09/2022;3957;50;692;1;Spese correnti;4;Trasferimenti correnti;2;Trasferimenti correnti a Famiglie;2;Interventi assistenziali;999;Altri assegni e sussidi assistenziali;26/09/2022
3395;1;9999999;1.200,00;1.200,00;OMESSO NOMINATIVO NEL RISPETTO DELLA NORMATIVA SULLA PROTEZIONE DATI PERSONALI; ;ICD MGS 2 TRIMESTRE 2022 - EROGAZIONE CONTRIBUTO;22/09/2022;3957;50;691;1;Spese correnti;4;Trasferimenti correnti;2;Trasferimenti correnti a Famiglie;2;Interventi assistenziali;999;Altri assegni e sussidi assistenziali;26/09/2022
3396;1;9999999;1.200,00;1.200,00;OMESSO NOMINATIVO NEL RISPETTO DELLA NORMATIVA SULLA PROTEZIONE DATI PERSONALI; ;ICD M 2 TRIMESTRE 2022 EROGAZIONE CONTRIBUTO;22/09/2022;3957;50;693;1;Spese correnti;4;Trasferimenti correnti;2;Trasferimenti correnti a Famiglie;2;Interventi assistenziali;999;Altri assegni e sussidi assistenziali;26/09/2022
3397;1;9999999;1.200,00;1.200,00;OMESSO NOMINATIVO NEL RISPETTO DELLA NORMATIVA SULLA PROTEZIONE DATI PERSONALI; ;ICD  M  TRIMESTRE 2022 - EROGAZIONE CONTRIBUTO;22/09/2022;3957;50;694;1;Spese correnti;4;Trasferimenti correnti;2;Trasferimenti correnti a Famiglie;2;Interventi assistenziali;999;Altri assegni e sussidi assistenziali;26/09/2022
3398;1;9999999;1.200,00;1.200,00;OMESSO NOMINATIVO NEL RISPETTO DELLA NORMATIVA SULLA PROTEZIONE DATI PERSONALI; ;ICD  M  TRIMESTRE 2022 - EROGAZIONE CONTRIBUTO;22/09/2022;3957;50;695;1;Spese correnti;4;Trasferimenti correnti;2;Trasferimenti correnti a Famiglie;2;Interventi assistenziali;999;Altri assegni e sussidi assistenziali;26/09/2022
3399;1;9999999;720;720;OMESSO NOMINATIVO NEL RISPETTO DELLA NORMATIVA SULLA PROTEZIONE DATI PERSONALI; ;ICD B I SEMESTRE 2022 EROGAZIONE CONTRIBUTO;22/09/2022;3957;50;696;1;Spese correnti;4;Trasferimenti correnti;2;Trasferimenti correnti a Famiglie;2;Interventi assistenziali;999;Altri assegni e sussidi assistenziali;26/09/2022
3400;1;9999999;600;600;OMESSO NOMINATIVO NEL RISPETTO DELLA NORMATIVA SULLA PROTEZIONE DATI PERSONALI; ;ICD  B 1 SEMESTRE  2022 - EROGAZIONE CONTRIBUTO;22/09/2022;3957;50;697;1;Spese correnti;4;Trasferimenti correnti;2;Trasferimenti correnti a Famiglie;2;Interventi assistenziali;999;Altri assegni e sussidi assistenziali;26/09/2022
3401;1;9999999;720;720;OMESSO NOMINATIVO NEL RISPETTO DELLA NORMATIVA SULLA PROTEZIONE DATI PERSONALI; ;ICD  B 1 SEMESTRE  2022 - EROGAZIONE CONTRIBUTO;22/09/2022;3957;50;698;1;Spese correnti;4;Trasferimenti correnti;2;Trasferimenti correnti a Famiglie;2;Interventi assistenziali;999;Altri assegni e sussidi assistenziali;26/09/2022
3402;1;9999999;120;120;OMESSO NOMINATIVO NEL RISPETTO DELLA NORMATIVA SULLA PROTEZIONE DATI PERSONALI; ;ICD  B 1 SEMESTRE  2022 - EROGAZIONE CONTRIBUTO;22/09/2022;3957;50;699;1;Spese correnti;4;Trasferimenti correnti;2;Trasferimenti correnti a Famiglie;2;Interventi assistenziali;999;Altri assegni e sussidi assistenziali;26/09/2022
3403;1;9999999;720;720;OMESSO NOMINATIVO NEL RISPETTO DELLA NORMATIVA SULLA PROTEZIONE DATI PERSONALI; ;ICD  B 1 SEMESTRE  2022 - EROGAZIONE CONTRIBUTO;22/09/2022;3957;50;700;1;Spese correnti;4;Trasferimenti correnti;2;Trasferimenti correnti a Famiglie;2;Interventi assistenziali;999;Altri assegni e sussidi assistenziali;26/09/2022
3404;1;9999999;480;480;OMESSO NOMINATIVO NEL RISPETTO DELLA NORMATIVA SULLA PROTEZIONE DATI PERSONALI; ;ICD  B 1 SEMESTRE  2022 - EROGAZIONE CONTRIBUTO;22/09/2022;3957;50;701;1;Spese correnti;4;Trasferimenti correnti;2;Trasferimenti correnti a Famiglie;2;Interventi assistenziali;999;Altri assegni e sussidi assistenziali;07/10/2022
3405;1;9999999;720;720;OMESSO NOMINATIVO NEL RISPETTO DELLA NORMATIVA SULLA PROTEZIONE DATI PERSONALI; ;ICD B 1 SEMESTRE 2022 EROGAZIONE CONTRIBUTO;22/09/2022;3957;50;702;1;Spese correnti;4;Trasferimenti correnti;2;Trasferimenti correnti a Famiglie;2;Interventi assistenziali;999;Altri assegni e sussidi assistenziali;26/09/2022
3406;1;9999999;720;720;OMESSO NOMINATIVO NEL RISPETTO DELLA NORMATIVA SULLA PROTEZIONE DATI PERSONALI; ;ICD B 1 SEMESTRE 2022 EROGAZIONE CONTRIBUTO;22/09/2022;3957;50;703;1;Spese correnti;4;Trasferimenti correnti;2;Trasferimenti correnti a Famiglie;2;Interventi assistenziali;999;Altri assegni e sussidi assistenziali;26/09/2022
3407;1;9999999;720;720;OMESSO NOMINATIVO NEL RISPETTO DELLA NORMATIVA SULLA PROTEZIONE DATI PERSONALI; ;ICD B 1 SEMESTRE 2022 EROGAZIONE CONTRIBUTO;22/09/2022;3957;50;704;1;Spese correnti;4;Trasferimenti correnti;2;Trasferimenti correnti a Famiglie;2;Interventi assistenziali;999;Altri assegni e sussidi assistenziali;26/09/2022
3408;1;9999999;120;120;OMESSO NOMINATIVO NEL RISPETTO DELLA NORMATIVA SULLA PROTEZIONE DATI PERSONALI; ;ICD B 1 SEMESTRE 2022 EROGAZIONE CONTRIBUTO;22/09/2022;3957;50;706;1;Spese correnti;4;Trasferimenti correnti;2;Trasferimenti correnti a Famiglie;2;Interventi assistenziali;999;Altri assegni e sussidi assistenziali;26/09/2022
3409;1;9999999;480;480;OMESSO NOMINATIVO NEL RISPETTO DELLA NORMATIVA SULLA PROTEZIONE DATI PERSONALI; ;ICD B 1 SEMESTRE 2022 EROGAZIONE CONTRIBUTO;22/09/2022;3957;50;707;1;Spese correnti;4;Trasferimenti correnti;2;Trasferimenti correnti a Famiglie;2;Interventi assistenziali;999;Altri assegni e sussidi assistenziali;26/09/2022
3410;1;9999999;720;720;OMESSO NOMINATIVO NEL RISPETTO DELLA NORMATIVA SULLA PROTEZIONE DATI PERSONALI; ;ICD B 1 SEMESTRE 2022 EROGAZIONE CONTRIBUTO;22/09/2022;3957;50;708;1;Spese correnti;4;Trasferimenti correnti;2;Trasferimenti correnti a Famiglie;2;Interventi assistenziali;999;Altri assegni e sussidi assistenziali;26/09/2022
3411;1;9999999;360;360;OMESSO NOMINATIVO NEL RISPETTO DELLA NORMATIVA SULLA PROTEZIONE DATI PERSONALI; ;ICD B 1 SEMESTRE 2022 EROGAZIONE CONTRIBUTO;22/09/2022;3957;50;709;1;Spese correnti;4;Trasferimenti correnti;2;Trasferimenti correnti a Famiglie;2;Interventi assistenziali;999;Altri assegni e sussidi assistenziali;26/09/2022
3412;1;9999999;720;720;OMESSO NOMINATIVO NEL RISPETTO DELLA NORMATIVA SULLA PROTEZIONE DATI PERSONALI; ;ICD B 1 SEMESTRE 2022 EROGAZIONE CONTRIBUTO;22/09/2022;3957;50;710;1;Spese correnti;4;Trasferimenti correnti;2;Trasferimenti correnti a Famiglie;2;Interventi assistenziali;999;Altri assegni e sussidi assistenziali;26/09/2022
3413;1;9999999;720;720;OMESSO NOMINATIVO NEL RISPETTO DELLA NORMATIVA SULLA PROTEZIONE DATI PERSONALI; ;ICD B 1 SEMESTRE 2022 EROGAZIONE CONTRIBUTO;22/09/2022;3957;50;711;1;Spese correnti;4;Trasferimenti correnti;2;Trasferimenti correnti a Famiglie;2;Interventi assistenziali;999;Altri assegni e sussidi assistenziali;11/10/2022
3414;1;9999999;720;720;OMESSO NOMINATIVO NEL RISPETTO DELLA NORMATIVA SULLA PROTEZIONE DATI PERSONALI; ;ICD B 1 SEMESTRE 2022 EROGAZIONE CONTRIBUTO;22/09/2022;3957;50;712;1;Spese correnti;4;Trasferimenti correnti;2;Trasferimenti correnti a Famiglie;2;Interventi assistenziali;999;Altri assegni e sussidi assistenziali;26/09/2022
3415;1;9999999;720;720;OMESSO NOMINATIVO NEL RISPETTO DELLA NORMATIVA SULLA PROTEZIONE DATI PERSONALI; ;ICD B 1 SEMESTRE 2022 EROGAZIONE CONTRIBUTO;22/09/2022;3957;50;713;1;Spese correnti;4;Trasferimenti correnti;2;Trasferimenti correnti a Famiglie;2;Interventi assistenziali;999;Altri assegni e sussidi assistenziali;26/09/2022
3416;1;9999999;720;720;OMESSO NOMINATIVO NEL RISPETTO DELLA NORMATIVA SULLA PROTEZIONE DATI PERSONALI; ;ICD B 1 SEMESTRE 2022 EROGAZIONE CONTRIBUTO;22/09/2022;3957;50;714;1;Spese correnti;4;Trasferimenti correnti;2;Trasferimenti correnti a Famiglie;2;Interventi assistenziali;999;Altri assegni e sussidi assistenziali;26/09/2022
3417;1;9999999;720;720;OMESSO NOMINATIVO NEL RISPETTO DELLA NORMATIVA SULLA PROTEZIONE DATI PERSONALI; ;ICD B 1 SEMESTRE 2022 EROGAZIONE CONTRIBUTO;22/09/2022;3957;50;715;1;Spese correnti;4;Trasferimenti correnti;2;Trasferimenti correnti a Famiglie;2;Interventi assistenziali;999;Altri assegni e sussidi assistenziali;26/09/2022
3418;1;9999999;720;720;OMESSO NOMINATIVO NEL RISPETTO DELLA NORMATIVA SULLA PROTEZIONE DATI PERSONALI; ;ICD B 1 SEMESTRE 2022 EROGAZIONE CONTRIBUTO;22/09/2022;3957;50;716;1;Spese correnti;4;Trasferimenti correnti;2;Trasferimenti correnti a Famiglie;2;Interventi assistenziali;999;Altri assegni e sussidi assistenziali;26/09/2022
3419;1;9999999;240;240;OMESSO NOMINATIVO NEL RISPETTO DELLA NORMATIVA SULLA PROTEZIONE DATI PERSONALI; ;ICD B 1 SEMESTRE 2022 EROGAZIONE CONTRIBUTO;22/09/2022;3957;50;717;1;Spese correnti;4;Trasferimenti correnti;2;Trasferimenti correnti a Famiglie;2;Interventi assistenziali;999;Altri assegni e sussidi assistenziali;26/09/2022
3420;1;9999999;240;240;OMESSO NOMINATIVO NEL RISPETTO DELLA NORMATIVA SULLA PROTEZIONE DATI PERSONALI; ;ICD B 1 SEMESTRE 2022 EROGAZIONE CONTRIBUTO;22/09/2022;3957;50;718;1;Spese correnti;4;Trasferimenti correnti;2;Trasferimenti correnti a Famiglie;2;Interventi assistenziali;999;Altri assegni e sussidi assistenziali;26/09/2022
3421;1;9999999;720;720;OMESSO NOMINATIVO NEL RISPETTO DELLA NORMATIVA SULLA PROTEZIONE DATI PERSONALI; ;ICD B 1 SEMESTRE 2022 EROGAZIONE CONTRIBUTO;22/09/2022;3957;50;719;1;Spese correnti;4;Trasferimenti correnti;2;Trasferimenti correnti a Famiglie;2;Interventi assistenziali;999;Altri assegni e sussidi assistenziali;26/09/2022
3422;1;9999999;240;240;OMESSO NOMINATIVO NEL RISPETTO DELLA NORMATIVA SULLA PROTEZIONE DATI PERSONALI; ;ICD B 1 SEMESTRE 2022 EROGAZIONE CONTRIBUTO;22/09/2022;3957;50;720;1;Spese correnti;4;Trasferimenti correnti;2;Trasferimenti correnti a Famiglie;2;Interventi assistenziali;999;Altri assegni e sussidi assistenziali;26/09/2022
3423;1;9999999;120;120;OMESSO NOMINATIVO NEL RISPETTO DELLA NORMATIVA SULLA PROTEZIONE DATI PERSONALI; ;ICD B 1 SEMESTRE 2022 EROGAZIONE CONTRIBUTO;22/09/2022;3957;50;721;1;Spese correnti;4;Trasferimenti correnti;2;Trasferimenti correnti a Famiglie;2;Interventi assistenziali;999;Altri assegni e sussidi assistenziali;26/09/2022
3424;1;9999999;720;720;OMESSO NOMINATIVO NEL RISPETTO DELLA NORMATIVA SULLA PROTEZIONE DATI PERSONALI; ;ICD B 1 SEMESTRE 2022 EROGAZIONE CONTRIBUTO;22/09/2022;3957;50;722;1;Spese correnti;4;Trasferimenti correnti;2;Trasferimenti correnti a Famiglie;2;Interventi assistenziali;999;Altri assegni e sussidi assistenziali;26/09/2022
3425;1;9999999;720;720;OMESSO NOMINATIVO NEL RISPETTO DELLA NORMATIVA SULLA PROTEZIONE DATI PERSONALI; ;ICD B 1 SEMESTRE 2022 EROGAZIONE CONTRIBUTO;22/09/2022;3957;50;723;1;Spese correnti;4;Trasferimenti correnti;2;Trasferimenti correnti a Famiglie;2;Interventi assistenziali;999;Altri assegni e sussidi assistenziali;26/09/2022
3426;1;9999999;480;480;OMESSO NOMINATIVO NEL RISPETTO DELLA NORMATIVA SULLA PROTEZIONE DATI PERSONALI; ;ICD B 1 SEMESTRE 2022 EROGAZIONE CONTRIBUTO;22/09/2022;3957;50;724;1;Spese correnti;4;Trasferimenti correnti;2;Trasferimenti correnti a Famiglie;2;Interventi assistenziali;999;Altri assegni e sussidi assistenziali;26/09/2022
3427;1;9999999;720;720;OMESSO NOMINATIVO NEL RISPETTO DELLA NORMATIVA SULLA PROTEZIONE DATI PERSONALI; ;ICD B 1 SEMESTRE 2022 EROGAZIONE CONTRIBUTO;22/09/2022;3957;50;725;1;Spese correnti;4;Trasferimenti correnti;2;Trasferimenti correnti a Famiglie;2;Interventi assistenziali;999;Altri assegni e sussidi assistenziali;26/09/2022
3428;1;9999999;720;720;OMESSO NOMINATIVO NEL RISPETTO DELLA NORMATIVA SULLA PROTEZIONE DATI PERSONALI; ;ICD B 1 SEMESTRE 2022 EROGAZIONE CONTRIBUTO;22/09/2022;3957;50;726;1;Spese correnti;4;Trasferimenti correnti;2;Trasferimenti correnti a Famiglie;2;Interventi assistenziali;999;Altri assegni e sussidi assistenziali;26/09/2022
3429;1;9999999;720;720;OMESSO NOMINATIVO NEL RISPETTO DELLA NORMATIVA SULLA PROTEZIONE DATI PERSONALI; ;ICD B 1 SEMESTRE 2022 EROGAZIONE CONTRIBUTO;22/09/2022;3957;50;728;1;Spese correnti;4;Trasferimenti correnti;2;Trasferimenti correnti a Famiglie;2;Interventi assistenziali;999;Altri assegni e sussidi assistenziali;26/09/2022
3430;1;9999999;720;720;OMESSO NOMINATIVO NEL RISPETTO DELLA NORMATIVA SULLA PROTEZIONE DATI PERSONALI; ;ICD B 1 SEMESTRE 2022 EROGAZIONE CONTRIBUTO;22/09/2022;3957;50;729;1;Spese correnti;4;Trasferimenti correnti;2;Trasferimenti correnti a Famiglie;2;Interventi assistenziali;999;Altri assegni e sussidi assistenziali;26/09/2022
3431;1;9999999;720;720;OMESSO NOMINATIVO NEL RISPETTO DELLA NORMATIVA SULLA PROTEZIONE DATI PERSONALI; ;ICD B 1 SEMESTRE 2022 EROGAZIONE CONTRIBUTO;22/09/2022;3957;50;730;1;Spese correnti;4;Trasferimenti correnti;2;Trasferimenti correnti a Famiglie;2;Interventi assistenziali;999;Altri assegni e sussidi assistenziali;14/10/2022
3432;1;9999999;720;720;OMESSO NOMINATIVO NEL RISPETTO DELLA NORMATIVA SULLA PROTEZIONE DATI PERSONALI; ;ICD B 1 SEMESTRE 2022 EROGAZIONE CONTRIBUTO;22/09/2022;3957;50;732;1;Spese correnti;4;Trasferimenti correnti;2;Trasferimenti correnti a Famiglie;2;Interventi assistenziali;999;Altri assegni e sussidi assistenziali;26/09/2022
3433;1;9999999;720;720;OMESSO NOMINATIVO NEL RISPETTO DELLA NORMATIVA SULLA PROTEZIONE DATI PERSONALI; ;ICD B 1 SEMESTRE 2022 EROGAZIONE CONTRIBUTO;22/09/2022;3957;50;733;1;Spese correnti;4;Trasferimenti correnti;2;Trasferimenti correnti a Famiglie;2;Interventi assistenziali;999;Altri assegni e sussidi assistenziali;26/09/2022
3434;1;9999999;720;720;OMESSO NOMINATIVO NEL RISPETTO DELLA NORMATIVA SULLA PROTEZIONE DATI PERSONALI; ;ICD B 1 SEMESTRE 2022 EROGAZIONE CONTRIBUTO;22/09/2022;3957;50;735;1;Spese correnti;4;Trasferimenti correnti;2;Trasferimenti correnti a Famiglie;2;Interventi assistenziali;999;Altri assegni e sussidi assistenziali;26/09/2022
3435;1;9999999;480;480;OMESSO NOMINATIVO NEL RISPETTO DELLA NORMATIVA SULLA PROTEZIONE DATI PERSONALI; ;ICD B 1 SEMESTRE 2022 EROGAZIONE CONTRIBUTO;22/09/2022;3957;50;736;1;Spese correnti;4;Trasferimenti correnti;2;Trasferimenti correnti a Famiglie;2;Interventi assistenziali;999;Altri assegni e sussidi assistenziali;26/09/2022
3436;1;9999999;720;720;OMESSO NOMINATIVO NEL RISPETTO DELLA NORMATIVA SULLA PROTEZIONE DATI PERSONALI; ;ICD B 1 SEMESTRE 2022 EROGAZIONE CONTRIBUTO;22/09/2022;3957;50;737;1;Spese correnti;4;Trasferimenti correnti;2;Trasferimenti correnti a Famiglie;2;Interventi assistenziali;999;Altri assegni e sussidi assistenziali;26/09/2022
3437;1;9999999;720;720;OMESSO NOMINATIVO NEL RISPETTO DELLA NORMATIVA SULLA PROTEZIONE DATI PERSONALI; ;ICD B 1 SEMESTRE 2022 EROGAZIONE CONTRIBUTO;22/09/2022;3957;50;738;1;Spese correnti;4;Trasferimenti correnti;2;Trasferimenti correnti a Famiglie;2;Interventi assistenziali;999;Altri assegni e sussidi assistenziali;26/09/2022
3438;1;9999999;720;720;OMESSO NOMINATIVO NEL RISPETTO DELLA NORMATIVA SULLA PROTEZIONE DATI PERSONALI; ;ICD B 1 SEMESTRE 2022 EROGAZIONE CONTRIBUTO;22/09/2022;3957;50;739;1;Spese correnti;4;Trasferimenti correnti;2;Trasferimenti correnti a Famiglie;2;Interventi assistenziali;999;Altri assegni e sussidi assistenziali;26/09/2022
3439;1;9999999;720;720;OMESSO NOMINATIVO NEL RISPETTO DELLA NORMATIVA SULLA PROTEZIONE DATI PERSONALI; ;ICD B 1 SEMESTRE 2022 EROGAZIONE CONTRIBUTO;22/09/2022;3957;50;740;1;Spese correnti;4;Trasferimenti correnti;2;Trasferimenti correnti a Famiglie;2;Interventi assistenziali;999;Altri assegni e sussidi assistenziali;12/10/2022
3440;1;9999999;720;720;OMESSO NOMINATIVO NEL RISPETTO DELLA NORMATIVA SULLA PROTEZIONE DATI PERSONALI; ;ICD B 1 SEMESTRE 2022 EROGAZIONE CONTRIBUTO;22/09/2022;3957;50;741;1;Spese correnti;4;Trasferimenti correnti;2;Trasferimenti correnti a Famiglie;2;Interventi assistenziali;999;Altri assegni e sussidi assistenziali;26/09/2022
3441;1;9999999;720;720;OMESSO NOMINATIVO NEL RISPETTO DELLA NORMATIVA SULLA PROTEZIONE DATI PERSONALI; ;ICD B 1 SEMESTRE 2022 EROGAZIONE CONTRIBUTO;22/09/2022;3957;50;742;1;Spese correnti;4;Trasferimenti correnti;2;Trasferimenti correnti a Famiglie;2;Interventi assistenziali;999;Altri assegni e sussidi assistenziali;26/09/2022
3442;1;9999999;360;360;OMESSO NOMINATIVO NEL RISPETTO DELLA NORMATIVA SULLA PROTEZIONE DATI PERSONALI; ;ICD B 1 SEMESTRE 2022 EROGAZIONE CONTRIBUTO;22/09/2022;3957;50;743;1;Spese correnti;4;Trasferimenti correnti;2;Trasferimenti correnti a Famiglie;2;Interventi assistenziali;999;Altri assegni e sussidi assistenziali;07/10/2022
3443;1;9999999;720;720;OMESSO NOMINATIVO NEL RISPETTO DELLA NORMATIVA SULLA PROTEZIONE DATI PERSONALI; ;ICD  B 1 SEMESTRE 2022 EROGAZIONE CONTRIBUTO;22/09/2022;3957;50;744;1;Spese correnti;4;Trasferimenti correnti;2;Trasferimenti correnti a Famiglie;2;Interventi assistenziali;999;Altri assegni e sussidi assistenziali;26/09/2022
3444;1;9999999;720;720;OMESSO NOMINATIVO NEL RISPETTO DELLA NORMATIVA SULLA PROTEZIONE DATI PERSONALI; ;ICD  B 1 SEMESTRE 2022 EROGAZIONE CONTRIBUTO;22/09/2022;3957;50;745;1;Spese correnti;4;Trasferimenti correnti;2;Trasferimenti correnti a Famiglie;2;Interventi assistenziali;999;Altri assegni e sussidi assistenziali;26/09/2022
3445;1;9999999;480;480;OMESSO NOMINATIVO NEL RISPETTO DELLA NORMATIVA SULLA PROTEZIONE DATI PERSONALI; ;ICD  B 1 SEMESTRE 2022 EROGAZIONE CONTRIBUTO;22/09/2022;3957;50;746;1;Spese correnti;4;Trasferimenti correnti;2;Trasferimenti correnti a Famiglie;2;Interventi assistenziali;999;Altri assegni e sussidi assistenziali;26/09/2022
3446;1;9999999;720;720;OMESSO NOMINATIVO NEL RISPETTO DELLA NORMATIVA SULLA PROTEZIONE DATI PERSONALI; ;ICD  B 1 SEMESTRE 2022 EROGAZIONE CONTRIBUTO;22/09/2022;3957;50;747;1;Spese correnti;4;Trasferimenti correnti;2;Trasferimenti correnti a Famiglie;2;Interventi assistenziali;999;Altri assegni e sussidi assistenziali;26/09/2022
3447;1;9999999;120;120;OMESSO NOMINATIVO NEL RISPETTO DELLA NORMATIVA SULLA PROTEZIONE DATI PERSONALI; ;ICD  B 1 SEMESTRE 2022 EROGAZIONE CONTRIBUTO;22/09/2022;3957;50;748;1;Spese correnti;4;Trasferimenti correnti;2;Trasferimenti correnti a Famiglie;2;Interventi assistenziali;999;Altri assegni e sussidi assistenziali;26/09/2022
3448;1;9999999;720;720;OMESSO NOMINATIVO NEL RISPETTO DELLA NORMATIVA SULLA PROTEZIONE DATI PERSONALI; ;ICD  B 1 SEMESTRE 2022 EROGAZIONE CONTRIBUTO;22/09/2022;3957;50;749;1;Spese correnti;4;Trasferimenti correnti;2;Trasferimenti correnti a Famiglie;2;Interventi assistenziali;999;Altri assegni e sussidi assistenziali;26/09/2022
3449;1;9999999;360;360;OMESSO NOMINATIVO NEL RISPETTO DELLA NORMATIVA SULLA PROTEZIONE DATI PERSONALI; ;ICD  B 1 SEMESTRE 2022 EROGAZIONE CONTRIBUTO;22/09/2022;3957;50;750;1;Spese correnti;4;Trasferimenti correnti;2;Trasferimenti correnti a Famiglie;2;Interventi assistenziali;999;Altri assegni e sussidi assistenziali;26/09/2022
3450;1;9999999;720;720;OMESSO NOMINATIVO NEL RISPETTO DELLA NORMATIVA SULLA PROTEZIONE DATI PERSONALI; ;ICD  B 1 SEMESTRE 2022 EROGAZIONE CONTRIBUTO;22/09/2022;3957;50;751;1;Spese correnti;4;Trasferimenti correnti;2;Trasferimenti correnti a Famiglie;2;Interventi assistenziali;999;Altri assegni e sussidi assistenziali;26/09/2022
3451;1;9999999;720;720;OMESSO NOMINATIVO NEL RISPETTO DELLA NORMATIVA SULLA PROTEZIONE DATI PERSONALI; ;ICD  B 1 SEMESTRE 2022 EROGAZIONE CONTRIBUTO;22/09/2022;3957;50;752;1;Spese correnti;4;Trasferimenti correnti;2;Trasferimenti correnti a Famiglie;2;Interventi assistenziali;999;Altri assegni e sussidi assistenziali;26/09/2022
3452;1;9999999;720;720;OMESSO NOMINATIVO NEL RISPETTO DELLA NORMATIVA SULLA PROTEZIONE DATI PERSONALI; ;ICD  B 1 SEMESTRE 2022 EROGAZIONE CONTRIBUTO;22/09/2022;3957;50;753;1;Spese correnti;4;Trasferimenti correnti;2;Trasferimenti correnti a Famiglie;2;Interventi assistenziali;999;Altri assegni e sussidi assistenziali;26/09/2022
3453;1;9999999;720;720;OMESSO NOMINATIVO NEL RISPETTO DELLA NORMATIVA SULLA PROTEZIONE DATI PERSONALI; ;ICD  B 1 SEMESTRE 2022 EROGAZIONE CONTRIBUTO;22/09/2022;3957;50;754;1;Spese correnti;4;Trasferimenti correnti;2;Trasferimenti correnti a Famiglie;2;Interventi assistenziali;999;Altri assegni e sussidi assistenziali;26/09/2022
3454;1;9999999;720;720;OMESSO NOMINATIVO NEL RISPETTO DELLA NORMATIVA SULLA PROTEZIONE DATI PERSONALI; ;ICD  B 1 SEMESTRE 2022 EROGAZIONE CONTRIBUTO;22/09/2022;3957;50;755;1;Spese correnti;4;Trasferimenti correnti;2;Trasferimenti correnti a Famiglie;2;Interventi assistenziali;999;Altri assegni e sussidi assistenziali;13/10/2022
3455;1;9999999;600;600;OMESSO NOMINATIVO NEL RISPETTO DELLA NORMATIVA SULLA PROTEZIONE DATI PERSONALI; ;ICD  B 1 SEMESTRE 2022 EROGAZIONE CONTRIBUTO;22/09/2022;3957;50;756;1;Spese correnti;4;Trasferimenti correnti;2;Trasferimenti correnti a Famiglie;2;Interventi assistenziali;999;Altri assegni e sussidi assistenziali;06/10/2022
3456;1;9999999;720;720;OMESSO NOMINATIVO NEL RISPETTO DELLA NORMATIVA SULLA PROTEZIONE DATI PERSONALI; ;ICD  B 1 SEMESTRE 2022 EROGAZIONE CONTRIBUTO;22/09/2022;3957;50;757;1;Spese correnti;4;Trasferimenti correnti;2;Trasferimenti correnti a Famiglie;2;Interventi assistenziali;999;Altri assegni e sussidi assistenziali;26/09/2022
3460;1;9999999;3.994,72;3.994,72;COOP SOCIALE PRIMAVERA SOC.COOP.SOC.ONLUS;91571596A8;SALDO Fatt.n. 157/PA  del 25/08/2022 SERVIZIO DI PULIZIE E SANIFICAZIONE UFFICI COMUNALI AGOSTO 2022;23/09/2022;142;0;438;1;Spese correnti;3;Acquisto di beni e servizi;2;Acquisto di servizi;13;Servizi ausiliari per il funzionamento dell'ente;2;Servizi di pulizia e lavanderia;27/09/2022
3461;1;9999999;6.014,32;6.014,32;SE.M.PRE SRL - SERVIZI-MULTIPRESTAZIONI;Z913707EB0;SALDO Fatt.n. 299/50  del 31/08/2022 INTERVENTI DI MANUTENZIONE DELLA SEGNALETICA STRADALE ESEGUITI PRESSO IL TERRITORIO COMUNALE;23/09/2022;8565;0;620;2;Spese in conto capitale;2;Investimenti fissi lordi e acquisto di terreni;1;Beni materiali;9;Beni immobili;12;Infrastrutture stradali;27/09/2022
3462;1;9999999;715,79;715,79;MG SAS DI MANIGHETTI KATIA, ALBERTO E C.;Z95336499F;SALDO Fatt.n. 1I-1215  del 06/09/2022 FORNITURA CARTA BIANCA A4 A SALDO ORDINE MEPA N. 6406498/2021;23/09/2022;521;6;897;1;Spese correnti;3;Acquisto di beni e servizi;1;Acquisto di beni;2;Altri beni di consumo;1;Carta, cancelleria e stampati;27/09/2022
3463;1;9999999;1.264,31;1.264,31;OMESSO NOMINATIVO NEL RISPETTO DELLA NORMATIVA SULLA PROTEZIONE DATI PERSONALI; ;SALDO Fatt.n. 296/AIPA  del 31/05/2022 RETTA MESE DI MAGGIO 2022 UTENTE C.G.;23/09/2022;3844;0;672;1;Spese correnti;3;Acquisto di beni e servizi;2;Acquisto di servizi;15;Contratti di servizio pubblico;8;Contratti di servizio di assistenza sociale residenziale e semiresidenziale;27/09/2022
3464;1;9999999;1.805,30;5.536,12;OMESSO NOMINATIVO NEL RISPETTO DELLA NORMATIVA SULLA PROTEZIONE DATI PERSONALI; ;SALDO Fatt.n. 376/AIPA  del 30/06/2022 RETTA MESE DI GIUGNO 2022 UTENTE C.G.;23/09/2022;3844;0;672;1;Spese correnti;3;Acquisto di beni e servizi;2;Acquisto di servizi;15;Contratti di servizio pubblico;8;Contratti di servizio di assistenza sociale residenziale e semiresidenziale;27/09/2022
3464;2;9999999;1.865,41;5.536,12;OMESSO NOMINATIVO NEL RISPETTO DELLA NORMATIVA SULLA PROTEZIONE DATI PERSONALI; ;SALDO Fatt.n. 380/AIPA  del 31/07/2022 RETTA MESE DI LUGLIO 2022 UTENTE C.G.;23/09/2022;3844;0;672;1;Spese correnti;3;Acquisto di beni e servizi;2;Acquisto di servizi;15;Contratti di servizio pubblico;8;Contratti di servizio di assistenza sociale residenziale e semiresidenziale;27/09/2022
3464;3;9999999;1.865,41;5.536,12;OMESSO NOMINATIVO NEL RISPETTO DELLA NORMATIVA SULLA PROTEZIONE DATI PERSONALI; ;SALDO Fatt.n. 443/AIPA  del 31/08/2022 RETTA MESE DI AGOSTO 2022 UTENTE C.G.;23/09/2022;3844;0;672;1;Spese correnti;3;Acquisto di beni e servizi;2;Acquisto di servizi;15;Contratti di servizio pubblico;8;Contratti di servizio di assistenza sociale residenziale e semiresidenziale;27/09/2022
3465;1;9999999;145;912;BERTAN VANESSA; ;SEGGIO N. 1 COMPENSI ONORARI COMPONENTI DI SEGGIO ORDINARIO ELEZIONI POLITICHE DEL 25.09.2022;27/09/2022;649;0;808;1;Spese correnti;3;Acquisto di beni e servizi;2;Acquisto di servizi;99;Altri servizi;4;Altre spese per consultazioni elettorali dell'ente;29/09/2022
3465;2;9999999;145;912;COLLINI DAVIDE; ;SEGGIO N. 1 COMPENSI ONORARI COMPONENTI DI SEGGIO ORDINARIO ELEZIONI POLITICHE DEL 25.09.2022;27/09/2022;649;0;808;1;Spese correnti;3;Acquisto di beni e servizi;2;Acquisto di servizi;99;Altri servizi;4;Altre spese per consultazioni elettorali dell'ente;29/09/2022
3465;3;9999999;145;912;DE NAT MARCO; ;SEGGIO N. 1 COMPENSI ONORARI COMPONENTI DI SEGGIO ORDINARIO ELEZIONI POLITICHE DEL 25.09.2022;27/09/2022;649;0;808;1;Spese correnti;3;Acquisto di beni e servizi;2;Acquisto di servizi;99;Altri servizi;4;Altre spese per consultazioni elettorali dell'ente;29/09/2022
3465;4;9999999;145;912;FAVARO CHIARA; ;SEGGIO N. 1 COMPENSI ONORARI COMPONENTI DI SEGGIO ORDINARIO ELEZIONI POLITICHE DEL 25.09.2022;27/09/2022;649;0;808;1;Spese correnti;3;Acquisto di beni e servizi;2;Acquisto di servizi;99;Altri servizi;4;Altre spese per consultazioni elettorali dell'ente;29/09/2022
3465;5;9999999;187;912;PASUTO VALENTINA; ;SEGGIO N. 1 COMPENSI ONORARI COMPONENTI DI SEGGIO ORDINARIO ELEZIONI POLITICHE DEL 25.09.2022;27/09/2022;649;0;808;1;Spese correnti;3;Acquisto di beni e servizi;2;Acquisto di servizi;99;Altri servizi;4;Altre spese per consultazioni elettorali dell'ente;29/09/2022
3465;6;9999999;145;912;PENZO ALESSANDRA; ;SEGGIO N. 1 COMPENSI ONORARI COMPONENTI DI SEGGIO ORDINARIO ELEZIONI POLITICHE DEL 25.09.2022;27/09/2022;649;0;808;1;Spese correnti;3;Acquisto di beni e servizi;2;Acquisto di servizi;99;Altri servizi;4;Altre spese per consultazioni elettorali dell'ente;29/09/2022
3466;1;9999999;145;912;CATTO VITTORIA; ;SEGGIO N. 2 COMPENSI ONORARI COMPONENTI DI SEGGIO ORDINARIO ELEZIONI POLITICHE DEL 25.09.2022;27/09/2022;649;0;808;1;Spese correnti;3;Acquisto di beni e servizi;2;Acquisto di servizi;99;Altri servizi;4;Altre spese per consultazioni elettorali dell'ente;03/10/2022
3466;2;9999999;145;912;FAVARO ELISA; ;SEGGIO N. 2 COMPENSI ONORARI COMPONENTI DI SEGGIO ORDINARIO ELEZIONI POLITICHE DEL 25.09.2022;27/09/2022;649;0;808;1;Spese correnti;3;Acquisto di beni e servizi;2;Acquisto di servizi;99;Altri servizi;4;Altre spese per consultazioni elettorali dell'ente;29/09/2022
3466;3;9999999;145;912;FAVARO NICOLE; ;SEGGIO N. 2 COMPENSI ONORARI COMPONENTI DI SEGGIO ORDINARIO ELEZIONI POLITICHE DEL 25.09.2022;27/09/2022;649;0;808;1;Spese correnti;3;Acquisto di beni e servizi;2;Acquisto di servizi;99;Altri servizi;4;Altre spese per consultazioni elettorali dell'ente;29/09/2022
3466;4;9999999;145;912;IANNACO RICCARDO; ;SEGGIO N. 2 COMPENSI ONORARI COMPONENTI DI SEGGIO ORDINARIO ELEZIONI POLITICHE DEL 25.09.2022;27/09/2022;649;0;808;1;Spese correnti;3;Acquisto di beni e servizi;2;Acquisto di servizi;99;Altri servizi;4;Altre spese per consultazioni elettorali dell'ente;29/09/2022
3466;5;9999999;145;912;MINTO ANNA; ;SEGGIO N. 2 COMPENSI ONORARI COMPONENTI DI SEGGIO ORDINARIO ELEZIONI POLITICHE DEL 25.09.2022;27/09/2022;649;0;808;1;Spese correnti;3;Acquisto di beni e servizi;2;Acquisto di servizi;99;Altri servizi;4;Altre spese per consultazioni elettorali dell'ente;29/09/2022
3466;6;9999999;187;912;PASTORIN DIEGO; ;SEGGIO N. 2 COMPENSI ONORARI COMPONENTI DI SEGGIO ORDINARIO ELEZIONI POLITICHE DEL 25.09.2022;27/09/2022;649;0;808;1;Spese correnti;3;Acquisto di beni e servizi;2;Acquisto di servizi;99;Altri servizi;4;Altre spese per consultazioni elettorali dell'ente;29/09/2022
3467;1;9999999;145;767;MONTIN EMY; ;SEGGIO N. 3 COMPENSI ONORARI COMPONENTI DI SEGGIO ORDINARIO ELEZIONI POLITICHE DEL 25.09.2022;27/09/2022;649;0;808;1;Spese correnti;3;Acquisto di beni e servizi;2;Acquisto di servizi;99;Altri servizi;4;Altre spese per consultazioni elettorali dell'ente;29/09/2022
3467;2;9999999;145;767;PAGIN LUCA; ;SEGGIO N. 3 COMPENSI ONORARI COMPONENTI DI SEGGIO ORDINARIO ELEZIONI POLITICHE DEL 25.09.2022;27/09/2022;649;0;808;1;Spese correnti;3;Acquisto di beni e servizi;2;Acquisto di servizi;99;Altri servizi;4;Altre spese per consultazioni elettorali dell'ente;29/09/2022
3467;3;9999999;145;767;PAGOTTO SOFIA; ;SEGGIO N. 3 COMPENSI ONORARI COMPONENTI DI SEGGIO ORDINARIO ELEZIONI POLITICHE DEL 25.09.2022;27/09/2022;649;0;808;1;Spese correnti;3;Acquisto di beni e servizi;2;Acquisto di servizi;99;Altri servizi;4;Altre spese per consultazioni elettorali dell'ente;29/09/2022
3467;4;9999999;145;767;PASUTO ALESSANDRO; ;SEGGIO N. 3 COMPENSI ONORARI COMPONENTI DI SEGGIO ORDINARIO ELEZIONI POLITICHE DEL 25.09.2022;27/09/2022;649;0;808;1;Spese correnti;3;Acquisto di beni e servizi;2;Acquisto di servizi;99;Altri servizi;4;Altre spese per consultazioni elettorali dell'ente;29/09/2022
3467;5;9999999;187;767;SELIZIATO SELENE; ;SEGGIO N. 3 COMPENSI ONORARI COMPONENTI DI SEGGIO ORDINARIO ELEZIONI POLITICHE DEL 25.09.2022;27/09/2022;649;0;808;1;Spese correnti;3;Acquisto di beni e servizi;2;Acquisto di servizi;99;Altri servizi;4;Altre spese per consultazioni elettorali dell'ente;29/09/2022
3468;1;9999999;145;912;LOLLO VALENTINO; ;SEGGIO N. 4 COMPENSI ONORARI COMPONENTI DI SEGGIO ORDINARIO ELEZIONI POLITICHE DEL 25.09.2022;27/09/2022;649;0;808;1;Spese correnti;3;Acquisto di beni e servizi;2;Acquisto di servizi;99;Altri servizi;4;Altre spese per consultazioni elettorali dell'ente;29/09/2022
3468;2;9999999;187;912;LONGO FILIPPO; ;SEGGIO N. 4 COMPENSI ONORARI COMPONENTI DI SEGGIO ORDINARIO ELEZIONI POLITICHE DEL 25.09.2022;27/09/2022;649;0;808;1;Spese correnti;3;Acquisto di beni e servizi;2;Acquisto di servizi;99;Altri servizi;4;Altre spese per consultazioni elettorali dell'ente;29/09/2022
3468;3;9999999;145;912;LORENZON MICHELA; ;SEGGIO N. 4 COMPENSI ONORARI COMPONENTI DI SEGGIO ORDINARIO ELEZIONI POLITICHE DEL 25.09.2022;27/09/2022;649;0;808;1;Spese correnti;3;Acquisto di beni e servizi;2;Acquisto di servizi;99;Altri servizi;4;Altre spese per consultazioni elettorali dell'ente;29/09/2022
3468;4;9999999;145;912;SIMIONATO SARA; ;SEGGIO N. 4 COMPENSI ONORARI COMPONENTI DI SEGGIO ORDINARIO ELEZIONI POLITICHE DEL 25.09.2022;27/09/2022;649;0;808;1;Spese correnti;3;Acquisto di beni e servizi;2;Acquisto di servizi;99;Altri servizi;4;Altre spese per consultazioni elettorali dell'ente;29/09/2022
3468;5;9999999;145;912;STOCCO DENYS; ;SEGGIO N. 4 COMPENSI ONORARI COMPONENTI DI SEGGIO ORDINARIO ELEZIONI POLITICHE DEL 25.09.2022;27/09/2022;649;0;808;1;Spese correnti;3;Acquisto di beni e servizi;2;Acquisto di servizi;99;Altri servizi;4;Altre spese per consultazioni elettorali dell'ente;29/09/2022
3468;6;9999999;145;912;VANIN FRANCESCO; ;SEGGIO N. 4 COMPENSI ONORARI COMPONENTI DI SEGGIO ORDINARIO ELEZIONI POLITICHE DEL 25.09.2022;27/09/2022;649;0;808;1;Spese correnti;3;Acquisto di beni e servizi;2;Acquisto di servizi;99;Altri servizi;4;Altre spese per consultazioni elettorali dell'ente;29/09/2022
3469;1;9999999;145;912;BORDIN GIOVANNI; ;SEGGIO N. 5 COMPENSI ONORARI COMPONENTI DI SEGGIO ORDINARIO ELEZIONI POLITICHE DEL 25.09.2022;27/09/2022;649;0;808;1;Spese correnti;3;Acquisto di beni e servizi;2;Acquisto di servizi;99;Altri servizi;4;Altre spese per consultazioni elettorali dell'ente;29/09/2022
3469;2;9999999;187;912;CALZAVARA SAMANTA; ;SEGGIO N. 5 COMPENSI ONORARI COMPONENTI DI SEGGIO ORDINARIO ELEZIONI POLITICHE DEL 25.09.2022;27/09/2022;649;0;808;1;Spese correnti;3;Acquisto di beni e servizi;2;Acquisto di servizi;99;Altri servizi;4;Altre spese per consultazioni elettorali dell'ente;29/09/2022
3469;3;9999999;145;912;CORRAIN ELISA; ;SEGGIO N. 5 COMPENSI ONORARI COMPONENTI DI SEGGIO ORDINARIO ELEZIONI POLITICHE DEL 25.09.2022;27/09/2022;649;0;808;1;Spese correnti;3;Acquisto di beni e servizi;2;Acquisto di servizi;99;Altri servizi;4;Altre spese per consultazioni elettorali dell'ente;29/09/2022
3469;4;9999999;145;912;RAMPAZZO ERIKA; ;SEGGIO N. 5 COMPENSI ONORARI COMPONENTI DI SEGGIO ORDINARIO ELEZIONI POLITICHE DEL 25.09.2022;27/09/2022;649;0;808;1;Spese correnti;3;Acquisto di beni e servizi;2;Acquisto di servizi;99;Altri servizi;4;Altre spese per consultazioni elettorali dell'ente;29/09/2022
3469;5;9999999;145;912;STEGAGNO LAURA; ;SEGGIO N. 5 COMPENSI ONORARI COMPONENTI DI SEGGIO ORDINARIO ELEZIONI POLITICHE DEL 25.09.2022;27/09/2022;649;0;808;1;Spese correnti;3;Acquisto di beni e servizi;2;Acquisto di servizi;99;Altri servizi;4;Altre spese per consultazioni elettorali dell'ente;29/09/2022
3469;6;9999999;145;912;VITTADELLO ELISA; ;SEGGIO N. 5 COMPENSI ONORARI COMPONENTI DI SEGGIO ORDINARIO ELEZIONI POLITICHE DEL 25.09.2022;27/09/2022;649;0;808;1;Spese correnti;3;Acquisto di beni e servizi;2;Acquisto di servizi;99;Altri servizi;4;Altre spese per consultazioni elettorali dell'ente;29/09/2022
3470;1;9999999;145;912;CARRARO ELIANA; ;SEGGIO N. 6 COMPENSI ONORARI COMPONENTI DI SEGGIO ORDINARIO ELEZIONI POLITICHE DEL 25.09.2022;27/09/2022;649;0;808;1;Spese correnti;3;Acquisto di beni e servizi;2;Acquisto di servizi;99;Altri servizi;4;Altre spese per consultazioni elettorali dell'ente;29/09/2022
3470;2;9999999;145;912;GASPARINI GIULIA; ;SEGGIO N. 6 COMPENSI ONORARI COMPONENTI DI SEGGIO ORDINARIO ELEZIONI POLITICHE DEL 25.09.2022;27/09/2022;649;0;808;1;Spese correnti;3;Acquisto di beni e servizi;2;Acquisto di servizi;99;Altri servizi;4;Altre spese per consultazioni elettorali dell'ente;29/09/2022
3470;3;9999999;187;912;GIORDAN MATTEO; ;SEGGIO N. 6 COMPENSI ONORARI COMPONENTI DI SEGGIO ORDINARIO ELEZIONI POLITICHE DEL 25.09.2022;27/09/2022;649;0;808;1;Spese correnti;3;Acquisto di beni e servizi;2;Acquisto di servizi;99;Altri servizi;4;Altre spese per consultazioni elettorali dell'ente;29/09/2022
3470;4;9999999;145;912;ONGARATO ERICA; ;SEGGIO N. 6 COMPENSI ONORARI COMPONENTI DI SEGGIO ORDINARIO ELEZIONI POLITICHE DEL 25.09.2022;27/09/2022;649;0;808;1;Spese correnti;3;Acquisto di beni e servizi;2;Acquisto di servizi;99;Altri servizi;4;Altre spese per consultazioni elettorali dell'ente;29/09/2022
3470;5;9999999;145;912;TOMMASI ELENA; ;SEGGIO N. 6 COMPENSI ONORARI COMPONENTI DI SEGGIO ORDINARIO ELEZIONI POLITICHE DEL 25.09.2022;27/09/2022;649;0;808;1;Spese correnti;3;Acquisto di beni e servizi;2;Acquisto di servizi;99;Altri servizi;4;Altre spese per consultazioni elettorali dell'ente;29/09/2022
3470;6;9999999;145;912;ZANELLA MONICA; ;SEGGIO N. 6 COMPENSI ONORARI COMPONENTI DI SEGGIO ORDINARIO ELEZIONI POLITICHE DEL 25.09.2022;27/09/2022;649;0;808;1;Spese correnti;3;Acquisto di beni e servizi;2;Acquisto di servizi;99;Altri servizi;4;Altre spese per consultazioni elettorali dell'ente;04/10/2022
3471;1;9999999;145;912;BERTOLO GAIA; ;SEGGIO N. 7 COMPENSI ONORARI COMPONENTI DI SEGGIO ORDINARIO ELEZIONI POLITICHE DEL 25.09.2022;27/09/2022;649;0;808;1;Spese correnti;3;Acquisto di beni e servizi;2;Acquisto di servizi;99;Altri servizi;4;Altre spese per consultazioni elettorali dell'ente;29/09/2022
3471;2;9999999;145;912;DAGA ELISABETTA; ;SEGGIO N. 7 COMPENSI ONORARI COMPONENTI DI SEGGIO ORDINARIO ELEZIONI POLITICHE DEL 25.09.2022;27/09/2022;649;0;808;1;Spese correnti;3;Acquisto di beni e servizi;2;Acquisto di servizi;99;Altri servizi;4;Altre spese per consultazioni elettorali dell'ente;29/09/2022
3471;3;9999999;145;912;GERVASUTTI PIETROBON ARIANNA; ;SEGGIO N. 7 COMPENSI ONORARI COMPONENTI DI SEGGIO ORDINARIO ELEZIONI POLITICHE DEL 25.09.2022;27/09/2022;649;0;808;1;Spese correnti;3;Acquisto di beni e servizi;2;Acquisto di servizi;99;Altri servizi;4;Altre spese per consultazioni elettorali dell'ente;29/09/2022
3471;4;9999999;145;912;GROPPO MARTINA; ;SEGGIO N. 7 COMPENSI ONORARI COMPONENTI DI SEGGIO ORDINARIO ELEZIONI POLITICHE DEL 25.09.2022;27/09/2022;649;0;808;1;Spese correnti;3;Acquisto di beni e servizi;2;Acquisto di servizi;99;Altri servizi;4;Altre spese per consultazioni elettorali dell'ente;29/09/2022
3471;5;9999999;145;912;MARTIGNON ANGELICA; ;SEGGIO N. 7 COMPENSI ONORARI COMPONENTI DI SEGGIO ORDINARIO ELEZIONI POLITICHE DEL 25.09.2022;27/09/2022;649;0;808;1;Spese correnti;3;Acquisto di beni e servizi;2;Acquisto di servizi;99;Altri servizi;4;Altre spese per consultazioni elettorali dell'ente;29/09/2022
3471;6;9999999;187;912;VECCHIATO DAVIDE; ;SEGGIO N. 7 COMPENSI ONORARI COMPONENTI DI SEGGIO ORDINARIO ELEZIONI POLITICHE DEL 25.09.2022;27/09/2022;649;0;808;1;Spese correnti;3;Acquisto di beni e servizi;2;Acquisto di servizi;99;Altri servizi;4;Altre spese per consultazioni elettorali dell'ente;29/09/2022
3472;1;9999999;145;912;GEMIN STEVEN; ;SEGGIO N. 8 COMPENSI ONORARI COMPONENTI DI SEGGIO ORDINARIO ELEZIONI POLITICHE DEL 25.09.2022;27/09/2022;649;0;808;1;Spese correnti;3;Acquisto di beni e servizi;2;Acquisto di servizi;99;Altri servizi;4;Altre spese per consultazioni elettorali dell'ente;29/09/2022
3472;2;9999999;187;912;IANNACO LUIGI; ;SEGGIO N. 8 COMPENSI ONORARI COMPONENTI DI SEGGIO ORDINARIO ELEZIONI POLITICHE DEL 25.09.2022;27/09/2022;649;0;808;1;Spese correnti;3;Acquisto di beni e servizi;2;Acquisto di servizi;99;Altri servizi;4;Altre spese per consultazioni elettorali dell'ente;29/09/2022
3472;3;9999999;145;912;MARESCOTTI CLARISSA; ;SEGGIO N. 8 COMPENSI ONORARI COMPONENTI DI SEGGIO ORDINARIO ELEZIONI POLITICHE DEL 25.09.2022;27/09/2022;649;0;808;1;Spese correnti;3;Acquisto di beni e servizi;2;Acquisto di servizi;99;Altri servizi;4;Altre spese per consultazioni elettorali dell'ente;29/09/2022
3472;4;9999999;145;912;MASONI MATILDE; ;SEGGIO N. 8 COMPENSI ONORARI COMPONENTI DI SEGGIO ORDINARIO ELEZIONI POLITICHE DEL 25.09.2022;27/09/2022;649;0;808;1;Spese correnti;3;Acquisto di beni e servizi;2;Acquisto di servizi;99;Altri servizi;4;Altre spese per consultazioni elettorali dell'ente;29/09/2022
3472;5;9999999;145;912;ROCCHI ANGELICA; ;SEGGIO N. 8 COMPENSI ONORARI COMPONENTI DI SEGGIO ORDINARIO ELEZIONI POLITICHE DEL 25.09.2022;27/09/2022;649;0;808;1;Spese correnti;3;Acquisto di beni e servizi;2;Acquisto di servizi;99;Altri servizi;4;Altre spese per consultazioni elettorali dell'ente;29/09/2022
3472;6;9999999;145;912;ZANELLATO ROBERTO; ;SEGGIO N. 8 COMPENSI ONORARI COMPONENTI DI SEGGIO ORDINARIO ELEZIONI POLITICHE DEL 25.09.2022;27/09/2022;649;0;808;1;Spese correnti;3;Acquisto di beni e servizi;2;Acquisto di servizi;99;Altri servizi;4;Altre spese per consultazioni elettorali dell'ente;29/09/2022
3473;1;9999999;145;912;BONANNO SOFIA; ;SEGGIO N. 9 COMPENSI ONORARI COMPONENTI DI SEGGIO ORDINARIO ELEZIONI POLITICHE DEL 25.09.2022;27/09/2022;649;0;808;1;Spese correnti;3;Acquisto di beni e servizi;2;Acquisto di servizi;99;Altri servizi;4;Altre spese per consultazioni elettorali dell'ente;29/09/2022
3473;2;9999999;145;912;BOSCARATO CINZIA; ;SEGGIO N. 9 COMPENSI ONORARI COMPONENTI DI SEGGIO ORDINARIO ELEZIONI POLITICHE DEL 25.09.2022;27/09/2022;649;0;808;1;Spese correnti;3;Acquisto di beni e servizi;2;Acquisto di servizi;99;Altri servizi;4;Altre spese per consultazioni elettorali dell'ente;17/10/2022
3473;3;9999999;187;912;COPPOLA GIORGIO; ;SEGGIO N. 9 COMPENSI ONORARI COMPONENTI DI SEGGIO ORDINARIO ELEZIONI POLITICHE DEL 25.09.2022;27/09/2022;649;0;808;1;Spese correnti;3;Acquisto di beni e servizi;2;Acquisto di servizi;99;Altri servizi;4;Altre spese per consultazioni elettorali dell'ente;29/09/2022
3473;4;9999999;145;912;FAVERO SABRINA; ;SEGGIO N. 9 COMPENSI ONORARI COMPONENTI DI SEGGIO ORDINARIO ELEZIONI POLITICHE DEL 25.09.2022;27/09/2022;649;0;808;1;Spese correnti;3;Acquisto di beni e servizi;2;Acquisto di servizi;99;Altri servizi;4;Altre spese per consultazioni elettorali dell'ente;29/09/2022
3473;5;9999999;145;912;MORO ANTONELLA; ;SEGGIO N. 9 COMPENSI ONORARI COMPONENTI DI SEGGIO ORDINARIO ELEZIONI POLITICHE DEL 25.09.2022;27/09/2022;649;0;808;1;Spese correnti;3;Acquisto di beni e servizi;2;Acquisto di servizi;99;Altri servizi;4;Altre spese per consultazioni elettorali dell'ente;29/09/2022
3473;6;9999999;145;912;ZUIN CRISTINA; ;SEGGIO N. 9 COMPENSI ONORARI COMPONENTI DI SEGGIO ORDINARIO ELEZIONI POLITICHE DEL 25.09.2022;27/09/2022;649;0;808;1;Spese correnti;3;Acquisto di beni e servizi;2;Acquisto di servizi;99;Altri servizi;4;Altre spese per consultazioni elettorali dell'ente;29/09/2022
3474;1;9999999;145;912;BARIZZA SARA RENATA; ;SEGGIO N. 10 COMPENSI ONORARI COMPONENTI DI SEGGIO ORDINARIO ELEZIONI POLITICHE DEL 25.09.2022;27/09/2022;649;0;808;1;Spese correnti;3;Acquisto di beni e servizi;2;Acquisto di servizi;99;Altri servizi;4;Altre spese per consultazioni elettorali dell'ente;29/09/2022
3474;2;9999999;145;912;BOLZONELLA DOMIZIANO; ;SEGGIO N. 10 COMPENSI ONORARI COMPONENTI DI SEGGIO ORDINARIO ELEZIONI POLITICHE DEL 25.09.2022;27/09/2022;649;0;808;1;Spese correnti;3;Acquisto di beni e servizi;2;Acquisto di servizi;99;Altri servizi;4;Altre spese per consultazioni elettorali dell'ente;31/10/2022
3474;3;9999999;187;912;BOLZONELLA SILVANO; ;SEGGIO N. 10 COMPENSI ONORARI COMPONENTI DI SEGGIO ORDINARIO ELEZIONI POLITICHE DEL 25.09.2022;27/09/2022;649;0;808;1;Spese correnti;3;Acquisto di beni e servizi;2;Acquisto di servizi;99;Altri servizi;4;Altre spese per consultazioni elettorali dell'ente;18/10/2022
3474;4;9999999;145;912;BUGIN VANZETTO DENISE; ;SEGGIO N. 10 COMPENSI ONORARI COMPONENTI DI SEGGIO ORDINARIO ELEZIONI POLITICHE DEL 25.09.2022;27/09/2022;649;0;808;1;Spese correnti;3;Acquisto di beni e servizi;2;Acquisto di servizi;99;Altri servizi;4;Altre spese per consultazioni elettorali dell'ente;29/09/2022
3474;5;9999999;145;912;MANENTI MARCO; ;SEGGIO N. 10 COMPENSI ONORARI COMPONENTI DI SEGGIO ORDINARIO ELEZIONI POLITICHE DEL 25.09.2022;27/09/2022;649;0;808;1;Spese correnti;3;Acquisto di beni e servizi;2;Acquisto di servizi;99;Altri servizi;4;Altre spese per consultazioni elettorali dell'ente;29/09/2022
3474;6;9999999;145;912;MASIERO SERENA; ;SEGGIO N. 10 COMPENSI ONORARI COMPONENTI DI SEGGIO ORDINARIO ELEZIONI POLITICHE DEL 25.09.2022;27/09/2022;649;0;808;1;Spese correnti;3;Acquisto di beni e servizi;2;Acquisto di servizi;99;Altri servizi;4;Altre spese per consultazioni elettorali dell'ente;29/09/2022
3475;1;9999999;145;912;BERTOLDO ALESSIA; ;SEGGIO N. 11 COMPENSI ONORARI COMPONENTI DI SEGGIO ORDINARIO ELEZIONI POLITICHE DEL 25.09.2022;27/09/2022;649;0;808;1;Spese correnti;3;Acquisto di beni e servizi;2;Acquisto di servizi;99;Altri servizi;4;Altre spese per consultazioni elettorali dell'ente;29/09/2022
3475;2;9999999;187;912;BORDIN ALESSIO; ;SEGGIO N. 11 COMPENSI ONORARI COMPONENTI DI SEGGIO ORDINARIO ELEZIONI POLITICHE DEL 25.09.2022;27/09/2022;649;0;808;1;Spese correnti;3;Acquisto di beni e servizi;2;Acquisto di servizi;99;Altri servizi;4;Altre spese per consultazioni elettorali dell'ente;29/09/2022
3475;3;9999999;145;912;BUZZO LUCA; ;SEGGIO N. 11 COMPENSI ONORARI COMPONENTI DI SEGGIO ORDINARIO ELEZIONI POLITICHE DEL 25.09.2022;27/09/2022;649;0;808;1;Spese correnti;3;Acquisto di beni e servizi;2;Acquisto di servizi;99;Altri servizi;4;Altre spese per consultazioni elettorali dell'ente;29/09/2022
3475;4;9999999;145;912;CARMINATO VIOLA; ;SEGGIO N. 11 COMPENSI ONORARI COMPONENTI DI SEGGIO ORDINARIO ELEZIONI POLITICHE DEL 25.09.2022;27/09/2022;649;0;808;1;Spese correnti;3;Acquisto di beni e servizi;2;Acquisto di servizi;99;Altri servizi;4;Altre spese per consultazioni elettorali dell'ente;29/09/2022
3475;5;9999999;145;912;MUFFATTO MADDALENA; ;SEGGIO N. 11 COMPENSI ONORARI COMPONENTI DI SEGGIO ORDINARIO ELEZIONI POLITICHE DEL 25.09.2022;27/09/2022;649;0;808;1;Spese correnti;3;Acquisto di beni e servizi;2;Acquisto di servizi;99;Altri servizi;4;Altre spese per consultazioni elettorali dell'ente;29/09/2022
3475;6;9999999;145;912;TOZZATO FRANCESCA; ;SEGGIO N. 11 COMPENSI ONORARI COMPONENTI DI SEGGIO ORDINARIO ELEZIONI POLITICHE DEL 25.09.2022;27/09/2022;649;0;808;1;Spese correnti;3;Acquisto di beni e servizi;2;Acquisto di servizi;99;Altri servizi;4;Altre spese per consultazioni elettorali dell'ente;29/09/2022
3476;1;9999999;145;912;BEVILACQUA STEFANO; ;SEGGIO N. 12 COMPENSI ONORARI COMPONENTI DI SEGGIO ORDINARIO ELEZIONI POLITICHE DEL 25.09.2022;27/09/2022;649;0;808;1;Spese correnti;3;Acquisto di beni e servizi;2;Acquisto di servizi;99;Altri servizi;4;Altre spese per consultazioni elettorali dell'ente;29/09/2022
3476;2;9999999;145;912;BICCAI ELISA; ;SEGGIO N. 12 COMPENSI ONORARI COMPONENTI DI SEGGIO ORDINARIO ELEZIONI POLITICHE DEL 25.09.2022;27/09/2022;649;0;808;1;Spese correnti;3;Acquisto di beni e servizi;2;Acquisto di servizi;99;Altri servizi;4;Altre spese per consultazioni elettorali dell'ente;29/09/2022
3476;3;9999999;145;912;BUSATTO LORETTA; ;SEGGIO N. 12 COMPENSI ONORARI COMPONENTI DI SEGGIO ORDINARIO ELEZIONI POLITICHE DEL 25.09.2022;27/09/2022;649;0;808;1;Spese correnti;3;Acquisto di beni e servizi;2;Acquisto di servizi;99;Altri servizi;4;Altre spese per consultazioni elettorali dell'ente;29/09/2022
3476;4;9999999;145;912;DE LIBERALI ALESSIA; ;SEGGIO N. 12 COMPENSI ONORARI COMPONENTI DI SEGGIO ORDINARIO ELEZIONI POLITICHE DEL 25.09.2022;27/09/2022;649;0;808;1;Spese correnti;3;Acquisto di beni e servizi;2;Acquisto di servizi;99;Altri servizi;4;Altre spese per consultazioni elettorali dell'ente;29/09/2022
3476;5;9999999;145;912;GASPARINI EDOARDO; ;SEGGIO N. 12 COMPENSI ONORARI COMPONENTI DI SEGGIO ORDINARIO ELEZIONI POLITICHE DEL 25.09.2022;27/09/2022;649;0;808;1;Spese correnti;3;Acquisto di beni e servizi;2;Acquisto di servizi;99;Altri servizi;4;Altre spese per consultazioni elettorali dell'ente;29/09/2022
3476;6;9999999;187;912;GUIDOLIN MARCO; ;SEGGIO N. 12 COMPENSI ONORARI COMPONENTI DI SEGGIO ORDINARIO ELEZIONI POLITICHE DEL 25.09.2022;27/09/2022;649;0;808;1;Spese correnti;3;Acquisto di beni e servizi;2;Acquisto di servizi;99;Altri servizi;4;Altre spese per consultazioni elettorali dell'ente;29/09/2022
3477;1;9999999;187;912;BARTENOR ANDREA; ;SEGGIO N. 13 COMPENSI ONORARI COMPONENTI DI SEGGIO ORDINARIO ELEZIONI POLITICHE DEL 25.09.2022;27/09/2022;649;0;808;1;Spese correnti;3;Acquisto di beni e servizi;2;Acquisto di servizi;99;Altri servizi;4;Altre spese per consultazioni elettorali dell'ente;29/09/2022
3477;2;9999999;145;912;BOLZONELLA GIANMARCO; ;SEGGIO N. 13 COMPENSI ONORARI COMPONENTI DI SEGGIO ORDINARIO ELEZIONI POLITICHE DEL 25.09.2022;27/09/2022;649;0;808;1;Spese correnti;3;Acquisto di beni e servizi;2;Acquisto di servizi;99;Altri servizi;4;Altre spese per consultazioni elettorali dell'ente;29/09/2022
3477;3;9999999;145;912;BOZZA DAVIDE; ;SEGGIO N. 13 COMPENSI ONORARI COMPONENTI DI SEGGIO ORDINARIO ELEZIONI POLITICHE DEL 25.09.2022;27/09/2022;649;0;808;1;Spese correnti;3;Acquisto di beni e servizi;2;Acquisto di servizi;99;Altri servizi;4;Altre spese per consultazioni elettorali dell'ente;29/09/2022
3477;4;9999999;145;912;GALLO ALESSIA; ;SEGGIO N. 13 COMPENSI ONORARI COMPONENTI DI SEGGIO ORDINARIO ELEZIONI POLITICHE DEL 25.09.2022;27/09/2022;649;0;808;1;Spese correnti;3;Acquisto di beni e servizi;2;Acquisto di servizi;99;Altri servizi;4;Altre spese per consultazioni elettorali dell'ente;29/09/2022
3477;5;9999999;145;912;RIZZONATO VALERIA; ;SEGGIO N. 13 COMPENSI ONORARI COMPONENTI DI SEGGIO ORDINARIO ELEZIONI POLITICHE DEL 25.09.2022;27/09/2022;649;0;808;1;Spese correnti;3;Acquisto di beni e servizi;2;Acquisto di servizi;99;Altri servizi;4;Altre spese per consultazioni elettorali dell'ente;29/09/2022
3477;6;9999999;145;912;TONINELLO SILVIA; ;SEGGIO N. 13 COMPENSI ONORARI COMPONENTI DI SEGGIO ORDINARIO ELEZIONI POLITICHE DEL 25.09.2022;27/09/2022;649;0;808;1;Spese correnti;3;Acquisto di beni e servizi;2;Acquisto di servizi;99;Altri servizi;4;Altre spese per consultazioni elettorali dell'ente;29/09/2022
3478;1;9999999;187;912;BALLAN ROBERTO; ;SEGGIO N. 14 COMPENSI ONORARI COMPONENTI DI SEGGIO ORDINARIO ELEZIONI POLITICHE DEL 25.09.2022;27/09/2022;649;0;808;1;Spese correnti;3;Acquisto di beni e servizi;2;Acquisto di servizi;99;Altri servizi;4;Altre spese per consultazioni elettorali dell'ente;29/09/2022
3478;2;9999999;145;912;BERTOLDO FRANCESCA; ;SEGGIO N. 14 COMPENSI ONORARI COMPONENTI DI SEGGIO ORDINARIO ELEZIONI POLITICHE DEL 25.09.2022;27/09/2022;649;0;808;1;Spese correnti;3;Acquisto di beni e servizi;2;Acquisto di servizi;99;Altri servizi;4;Altre spese per consultazioni elettorali dell'ente;29/09/2022
3478;3;9999999;145;912;BOZZA FABIO; ;SEGGIO N. 14 COMPENSI ONORARI COMPONENTI DI SEGGIO ORDINARIO ELEZIONI POLITICHE DEL 25.09.2022;27/09/2022;649;0;808;1;Spese correnti;3;Acquisto di beni e servizi;2;Acquisto di servizi;99;Altri servizi;4;Altre spese per consultazioni elettorali dell'ente;29/09/2022
3478;4;9999999;145;912;BUSATTO GIOELE; ;SEGGIO N. 14 COMPENSI ONORARI COMPONENTI DI SEGGIO ORDINARIO ELEZIONI POLITICHE DEL 25.09.2022;27/09/2022;649;0;808;1;Spese correnti;3;Acquisto di beni e servizi;2;Acquisto di servizi;99;Altri servizi;4;Altre spese per consultazioni elettorali dell'ente;29/09/2022
3478;5;9999999;145;912;CACCIN ANNA; ;SEGGIO N. 14 COMPENSI ONORARI COMPONENTI DI SEGGIO ORDINARIO ELEZIONI POLITICHE DEL 25.09.2022;27/09/2022;649;0;808;1;Spese correnti;3;Acquisto di beni e servizi;2;Acquisto di servizi;99;Altri servizi;4;Altre spese per consultazioni elettorali dell'ente;29/09/2022
3478;6;9999999;145;912;CARRARO LUCIO; ;SEGGIO N. 14 COMPENSI ONORARI COMPONENTI DI SEGGIO ORDINARIO ELEZIONI POLITICHE DEL 25.09.2022;27/09/2022;649;0;808;1;Spese correnti;3;Acquisto di beni e servizi;2;Acquisto di servizi;99;Altri servizi;4;Altre spese per consultazioni elettorali dell'ente;29/09/2022
3479;1;9999999;145;912;CAROLO DAVIDE; ;SEGGIO N. 15 COMPENSI ONORARI COMPONENTI DI SEGGIO ORDINARIO ELEZIONI POLITICHE DEL 25.09.2022;27/09/2022;649;0;808;1;Spese correnti;3;Acquisto di beni e servizi;2;Acquisto di servizi;99;Altri servizi;4;Altre spese per consultazioni elettorali dell'ente;29/09/2022
3479;2;9999999;145;912;SALIN BEATRICE; ;SEGGIO N. 15 COMPENSI ONORARI COMPONENTI DI SEGGIO ORDINARIO ELEZIONI POLITICHE DEL 25.09.2022;27/09/2022;649;0;808;1;Spese correnti;3;Acquisto di beni e servizi;2;Acquisto di servizi;99;Altri servizi;4;Altre spese per consultazioni elettorali dell'ente;29/09/2022
3479;3;9999999;187;912;SCAPIN VITTORIA; ;SEGGIO N. 15 COMPENSI ONORARI COMPONENTI DI SEGGIO ORDINARIO ELEZIONI POLITICHE DEL 25.09.2022;27/09/2022;649;0;808;1;Spese correnti;3;Acquisto di beni e servizi;2;Acquisto di servizi;99;Altri servizi;4;Altre spese per consultazioni elettorali dell'ente;29/09/2022
3479;4;9999999;145;912;STEVANATO BARBARA; ;SEGGIO N. 15 COMPENSI ONORARI COMPONENTI DI SEGGIO ORDINARIO ELEZIONI POLITICHE DEL 25.09.2022;27/09/2022;649;0;808;1;Spese correnti;3;Acquisto di beni e servizi;2;Acquisto di servizi;99;Altri servizi;4;Altre spese per consultazioni elettorali dell'ente;29/09/2022
3479;5;9999999;145;912;TEGON SIMONETTA; ;SEGGIO N. 15 COMPENSI ONORARI COMPONENTI DI SEGGIO ORDINARIO ELEZIONI POLITICHE DEL 25.09.2022;27/09/2022;649;0;808;1;Spese correnti;3;Acquisto di beni e servizi;2;Acquisto di servizi;99;Altri servizi;4;Altre spese per consultazioni elettorali dell'ente;29/09/2022
3479;6;9999999;145;912;ZUIN NICOLA; ;SEGGIO N. 15 COMPENSI ONORARI COMPONENTI DI SEGGIO ORDINARIO ELEZIONI POLITICHE DEL 25.09.2022;27/09/2022;649;0;808;1;Spese correnti;3;Acquisto di beni e servizi;2;Acquisto di servizi;99;Altri servizi;4;Altre spese per consultazioni elettorali dell'ente;29/09/2022
3480;1;9999999;145;912;CECCHINATO FABIO; ;SEGGIO N. 16 COMPENSI ONORARI COMPONENTI DI SEGGIO ORDINARIO ELEZIONI POLITICHE DEL 25.09.2022;27/09/2022;649;0;808;1;Spese correnti;3;Acquisto di beni e servizi;2;Acquisto di servizi;99;Altri servizi;4;Altre spese per consultazioni elettorali dell'ente;29/09/2022
3480;2;9999999;145;912;CENTENARO GIACOMO; ;SEGGIO N. 16 COMPENSI ONORARI COMPONENTI DI SEGGIO ORDINARIO ELEZIONI POLITICHE DEL 25.09.2022;27/09/2022;649;0;808;1;Spese correnti;3;Acquisto di beni e servizi;2;Acquisto di servizi;99;Altri servizi;4;Altre spese per consultazioni elettorali dell'ente;29/09/2022
3480;3;9999999;145;912;GIORDAN DEBORAH; ;SEGGIO N. 16 COMPENSI ONORARI COMPONENTI DI SEGGIO ORDINARIO ELEZIONI POLITICHE DEL 25.09.2022;27/09/2022;649;0;808;1;Spese correnti;3;Acquisto di beni e servizi;2;Acquisto di servizi;99;Altri servizi;4;Altre spese per consultazioni elettorali dell'ente;29/09/2022
3480;4;9999999;145;912;MIOZZO IVAN; ;SEGGIO N. 16 COMPENSI ONORARI COMPONENTI DI SEGGIO ORDINARIO ELEZIONI POLITICHE DEL 25.09.2022;27/09/2022;649;0;808;1;Spese correnti;3;Acquisto di beni e servizi;2;Acquisto di servizi;99;Altri servizi;4;Altre spese per consultazioni elettorali dell'ente;29/09/2022
3480;5;9999999;187;912;STECCA RICCARDO; ;SEGGIO N. 16 COMPENSI ONORARI COMPONENTI DI SEGGIO ORDINARIO ELEZIONI POLITICHE DEL 25.09.2022;27/09/2022;649;0;808;1;Spese correnti;3;Acquisto di beni e servizi;2;Acquisto di servizi;99;Altri servizi;4;Altre spese per consultazioni elettorali dell'ente;29/09/2022
3480;6;9999999;145;912;TOLOMIO ALESSANDRO; ;SEGGIO N. 16 COMPENSI ONORARI COMPONENTI DI SEGGIO ORDINARIO ELEZIONI POLITICHE DEL 25.09.2022;27/09/2022;649;0;808;1;Spese correnti;3;Acquisto di beni e servizi;2;Acquisto di servizi;99;Altri servizi;4;Altre spese per consultazioni elettorali dell'ente;29/09/2022
3481;1;9999999;187;912;CARRARO MARCO; ;SEGGIO N. 17 COMPENSI ONORARI COMPONENTI DI SEGGIO ORDINARIO ELEZIONI POLITICHE DEL 25.09.2022;27/09/2022;649;0;808;1;Spese correnti;3;Acquisto di beni e servizi;2;Acquisto di servizi;99;Altri servizi;4;Altre spese per consultazioni elettorali dell'ente;29/09/2022
3481;2;9999999;145;912;FAVARO GIACOMO; ;SEGGIO N. 17 COMPENSI ONORARI COMPONENTI DI SEGGIO ORDINARIO ELEZIONI POLITICHE DEL 25.09.2022;27/09/2022;649;0;808;1;Spese correnti;3;Acquisto di beni e servizi;2;Acquisto di servizi;99;Altri servizi;4;Altre spese per consultazioni elettorali dell'ente;29/09/2022
3481;3;9999999;145;912;FAVARO MICHELE; ;SEGGIO N. 17 COMPENSI ONORARI COMPONENTI DI SEGGIO ORDINARIO ELEZIONI POLITICHE DEL 25.09.2022;27/09/2022;649;0;808;1;Spese correnti;3;Acquisto di beni e servizi;2;Acquisto di servizi;99;Altri servizi;4;Altre spese per consultazioni elettorali dell'ente;29/09/2022
3481;4;9999999;145;912;GHION ELENA; ;SEGGIO N. 17 COMPENSI ONORARI COMPONENTI DI SEGGIO ORDINARIO ELEZIONI POLITICHE DEL 25.09.2022;27/09/2022;649;0;808;1;Spese correnti;3;Acquisto di beni e servizi;2;Acquisto di servizi;99;Altri servizi;4;Altre spese per consultazioni elettorali dell'ente;29/09/2022
3481;5;9999999;145;912;TOMAELLO NAIDE; ;SEGGIO N. 17 COMPENSI ONORARI COMPONENTI DI SEGGIO ORDINARIO ELEZIONI POLITICHE DEL 25.09.2022;27/09/2022;649;0;808;1;Spese correnti;3;Acquisto di beni e servizi;2;Acquisto di servizi;99;Altri servizi;4;Altre spese per consultazioni elettorali dell'ente;29/09/2022
3481;6;9999999;145;912;ZANIBELLATO VERONICA; ;SEGGIO N. 17 COMPENSI ONORARI COMPONENTI DI SEGGIO ORDINARIO ELEZIONI POLITICHE DEL 25.09.2022;27/09/2022;649;0;808;1;Spese correnti;3;Acquisto di beni e servizi;2;Acquisto di servizi;99;Altri servizi;4;Altre spese per consultazioni elettorali dell'ente;29/09/2022
3482;1;9999999;145;912;CARMINATO SILVIA; ;SEGGIO N. 18 COMPENSI ONORARI COMPONENTI DI SEGGIO ORDINARIO ELEZIONI POLITICHE DEL 25.09.2022;27/09/2022;649;0;808;1;Spese correnti;3;Acquisto di beni e servizi;2;Acquisto di servizi;99;Altri servizi;4;Altre spese per consultazioni elettorali dell'ente;29/09/2022
3482;2;9999999;145;912;ENZO FERNANDO; ;SEGGIO N. 18 COMPENSI ONORARI COMPONENTI DI SEGGIO ORDINARIO ELEZIONI POLITICHE DEL 25.09.2022;27/09/2022;649;0;808;1;Spese correnti;3;Acquisto di beni e servizi;2;Acquisto di servizi;99;Altri servizi;4;Altre spese per consultazioni elettorali dell'ente;30/09/2022
3482;3;9999999;145;912;FREZZATO ALESSIO; ;SEGGIO N. 18 COMPENSI ONORARI COMPONENTI DI SEGGIO ORDINARIO ELEZIONI POLITICHE DEL 25.09.2022;27/09/2022;649;0;808;1;Spese correnti;3;Acquisto di beni e servizi;2;Acquisto di servizi;99;Altri servizi;4;Altre spese per consultazioni elettorali dell'ente;29/09/2022
3482;4;9999999;145;912;PERIN VALENTINA; ;SEGGIO N. 18 COMPENSI ONORARI COMPONENTI DI SEGGIO ORDINARIO ELEZIONI POLITICHE DEL 25.09.2022;27/09/2022;649;0;808;1;Spese correnti;3;Acquisto di beni e servizi;2;Acquisto di servizi;99;Altri servizi;4;Altre spese per consultazioni elettorali dell'ente;29/09/2022
3482;5;9999999;187;912;SCAPIN GIULIA; ;SEGGIO N. 18 COMPENSI ONORARI COMPONENTI DI SEGGIO ORDINARIO ELEZIONI POLITICHE DEL 25.09.2022;27/09/2022;649;0;808;1;Spese correnti;3;Acquisto di beni e servizi;2;Acquisto di servizi;99;Altri servizi;4;Altre spese per consultazioni elettorali dell'ente;29/09/2022
3482;6;9999999;145;912;ZAVAN LAURA; ;SEGGIO N. 18 COMPENSI ONORARI COMPONENTI DI SEGGIO ORDINARIO ELEZIONI POLITICHE DEL 25.09.2022;27/09/2022;649;0;808;1;Spese correnti;3;Acquisto di beni e servizi;2;Acquisto di servizi;99;Altri servizi;4;Altre spese per consultazioni elettorali dell'ente;29/09/2022
3483;1;9999999;91,5;318;BATTAGLIA ANDREA; ;SEGGIO N. 1-SPECIALE COMPENSI ONORARI PER RACCOLTA VOTO A DOMICILIO ELEZIONI POLITICHE DEL 25.09.2022;27/09/2022;649;0;808;1;Spese correnti;3;Acquisto di beni e servizi;2;Acquisto di servizi;99;Altri servizi;4;Altre spese per consultazioni elettorali dell'ente;29/09/2022
3483;2;9999999;135;318;CASSOLA ANTONELLA; ;SEGGIO N. 1-SPECIALE COMPENSI ONORARI PER RACCOLTA VOTO A DOMICILIO ELEZIONI POLITICHE DEL 25.09.2022;27/09/2022;649;0;808;1;Spese correnti;3;Acquisto di beni e servizi;2;Acquisto di servizi;99;Altri servizi;4;Altre spese per consultazioni elettorali dell'ente;29/09/2022
3483;3;9999999;91,5;318;TORNABRUNI TIZIANO; ;SEGGIO N. 1-SPECIALE COMPENSI ONORARI PER RACCOLTA VOTO A DOMICILIO ELEZIONI POLITICHE DEL 25.09.2022;27/09/2022;649;0;808;1;Spese correnti;3;Acquisto di beni e servizi;2;Acquisto di servizi;99;Altri servizi;4;Altre spese per consultazioni elettorali dell'ente;29/09/2022
3484;1;9999999;107,2;107,2;LEGATORIA V.M. DI GAJON JENNY;Z7A359BE63;SALDO Fatt.n. 164  del 02/09/2022 RILEGATURE STATI CIVILI;28/09/2022;621;0;356;1;Spese correnti;3;Acquisto di beni e servizi;1;Acquisto di beni;2;Altri beni di consumo;999;Altri beni e materiali di consumo n.a.c.;30/09/2022
3485;1;9999999;134,2;134,2;POSTE ITALIANE SPA;Z8837B7A35;SALDO Fatt.n. 2022044484  del 06/09/2022 SERVIZIO DI SICURIZZAZIONE BPIOL KEY PERIODO FEBBRAIO - DICEMBRE 2021;28/09/2022;1145;0;789;1;Spese correnti;3;Acquisto di beni e servizi;2;Acquisto di servizi;16;Servizi amministrativi;999;Altre spese per servizi amministrativi;30/09/2022
3486;1;9999999;191,85;191,85;EPIU' SRL - COSTRUIRE INSIEME;Z9134FFF69;SALDO Fatt.n. 22447  del 31/08/2022 FORN.MAT.EDILE - STRAD. PER MANUTENZIONE STRADE;28/09/2022;3538;0;116;1;Spese correnti;3;Acquisto di beni e servizi;2;Acquisto di servizi;9;Manutenzione ordinaria e riparazioni;8;Manutenzione ordinaria e riparazioni di beni immobili;30/09/2022
3487;1;9999999;800;800;OMESSO NOMINATIVO NEL RISPETTO DELLA NORMATIVA SULLA PROTEZIONE DATI PERSONALI; ;CONTRIBUTO REGINALE IMPEGNATIVA DI CURA DOMICILIARE ICD  2 TRIMESTRE 2022.;04/10/2022;3957;50;690;1;Spese correnti;4;Trasferimenti correnti;2;Trasferimenti correnti a Famiglie;2;Interventi assistenziali;999;Altri assegni e sussidi assistenziali;06/10/2022
3488;1;9999999;1.200,00;1.200,00;OMESSO NOMINATIVO NEL RISPETTO DELLA NORMATIVA SULLA PROTEZIONE DATI PERSONALI; ;CONTRIBUTO REGIONALE IMPEGNATIVA DI CURA DOMICILIARE ICD  1TRIMESTRE 2022.;04/10/2022;3957;50;580;1;Spese correnti;4;Trasferimenti correnti;2;Trasferimenti correnti a Famiglie;2;Interventi assistenziali;999;Altri assegni e sussidi assistenziali;06/10/2022
3489;1;9999999;1.375,00;1.375,00;OMESSO NOMINATIVO NEL RISPETTO DELLA NORMATIVA SULLA PROTEZIONE DATI PERSONALI; ;SETTEMBRE 2022  INTEGRAZIONE RETTA CASA DI RIPSOO RELAXXI DI NOALE -;04/10/2022;3844;0;386;1;Spese correnti;3;Acquisto di beni e servizi;2;Acquisto di servizi;15;Contratti di servizio pubblico;8;Contratti di servizio di assistenza sociale residenziale e semiresidenziale;06/10/2022
3490;1;9999999;1.000,00;1.000,00;OMESSO NOMINATIVO NEL RISPETTO DELLA NORMATIVA SULLA PROTEZIONE DATI PERSONALI; ;SETTEMBRE 2022 INTEGRAZIONE RETTA CASA DI RIPOSO LA SALUTE DI FIESSO DARTICO.;04/10/2022;3844;0;199;1;Spese correnti;3;Acquisto di beni e servizi;2;Acquisto di servizi;15;Contratti di servizio pubblico;8;Contratti di servizio di assistenza sociale residenziale e semiresidenziale;06/10/2022
3491;1;9999999;320;320;OMESSO NOMINATIVO NEL RISPETTO DELLA NORMATIVA SULLA PROTEZIONE DATI PERSONALI; ;SETTEMBRE 2022  INTEGRAZIONE RETTA CASA DI RIPOSO ALTHEA DI SPINEA.;04/10/2022;3844;0;549;1;Spese correnti;3;Acquisto di beni e servizi;2;Acquisto di servizi;15;Contratti di servizio pubblico;8;Contratti di servizio di assistenza sociale residenziale e semiresidenziale;06/10/2022
3492;1;9999999;842;842;OMESSO NOMINATIVO NEL RISPETTO DELLA NORMATIVA SULLA PROTEZIONE DATI PERSONALI; ;SETTEMBRE 2022 INTEGRAZIONE RETTA CASA DI RIPOSO IPAB L. MARIUTTO DI MIRANO.;04/10/2022;3844;0;552;1;Spese correnti;3;Acquisto di beni e servizi;2;Acquisto di servizi;15;Contratti di servizio pubblico;8;Contratti di servizio di assistenza sociale residenziale e semiresidenziale;06/10/2022
3493;1;9999999;690,5;690,5;OMESSO NOMINATIVO NEL RISPETTO DELLA NORMATIVA SULLA PROTEZIONE DATI PERSONALI; ;SETTEMBRE 2022 INTEGRAZIONE RETTA CASA DI RIPOSO CENTRO RESIDENZIALE ANZIANI UMBERTO PRIMO DI STRA -;04/10/2022;3844;0;448;1;Spese correnti;3;Acquisto di beni e servizi;2;Acquisto di servizi;15;Contratti di servizio pubblico;8;Contratti di servizio di assistenza sociale residenziale e semiresidenziale;06/10/2022
3494;1;9999999;552;552;OMESSO NOMINATIVO NEL RISPETTO DELLA NORMATIVA SULLA PROTEZIONE DATI PERSONALI; ;SETTEMBRE 2022  INTEGRAZIONE RETTA CASA DI RIPOSO RELAXXI DI NOALE;04/10/2022;3844;0;446;1;Spese correnti;3;Acquisto di beni e servizi;2;Acquisto di servizi;15;Contratti di servizio pubblico;8;Contratti di servizio di assistenza sociale residenziale e semiresidenziale;06/10/2022
3495;1;9999999;400;400;OMESSO NOMINATIVO NEL RISPETTO DELLA NORMATIVA SULLA PROTEZIONE DATI PERSONALI; ;SETTEMBRE 2022  INTEGRAZIONE RETTA CASA DI RIPOSO RESIDENZA RIVIERA DEL BRENTA - CENTRO DI SOGGIORNO ANZIANI DI DOLO.;04/10/2022;3844;0;443;1;Spese correnti;3;Acquisto di beni e servizi;2;Acquisto di servizi;15;Contratti di servizio pubblico;8;Contratti di servizio di assistenza sociale residenziale e semiresidenziale;06/10/2022
3496;1;9999999;455;455;OMESSO NOMINATIVO NEL RISPETTO DELLA NORMATIVA SULLA PROTEZIONE DATI PERSONALI; ;SETTEMBRE 2022 INTEGRAZIONE RETTA CASA DI RIPOSO ANNI SERENI DI SCORZE.;04/10/2022;3844;0;444;1;Spese correnti;3;Acquisto di beni e servizi;2;Acquisto di servizi;15;Contratti di servizio pubblico;8;Contratti di servizio di assistenza sociale residenziale e semiresidenziale;06/10/2022
3497;1;9999999;645;645;OMESSO NOMINATIVO NEL RISPETTO DELLA NORMATIVA SULLA PROTEZIONE DATI PERSONALI; ;SETTEMBRE 2022 INTEGRAZIONE RETTA CASA DI RIPOSO RELAXXI  DI NOALE -;04/10/2022;3844;0;442;1;Spese correnti;3;Acquisto di beni e servizi;2;Acquisto di servizi;15;Contratti di servizio pubblico;8;Contratti di servizio di assistenza sociale residenziale e semiresidenziale;06/10/2022
3498;1;9999999;484;484;OMESSO NOMINATIVO NEL RISPETTO DELLA NORMATIVA SULLA PROTEZIONE DATI PERSONALI; ;SETTEMBRE 2022  INTEGRAZIONE RETTA CASA DI RIPOSO DON ORIONE DI TREBASELEGHE.;04/10/2022;3844;0;202;1;Spese correnti;3;Acquisto di beni e servizi;2;Acquisto di servizi;15;Contratti di servizio pubblico;8;Contratti di servizio di assistenza sociale residenziale e semiresidenziale;06/10/2022
3499;1;9999999;529;529;OMESSO NOMINATIVO NEL RISPETTO DELLA NORMATIVA SULLA PROTEZIONE DATI PERSONALI; ;SETTEMBRE 2022  INTEGRAZIONE RETTA CASA DI RIPOSO RELAXXI DI NOALE.;04/10/2022;3844;0;654;1;Spese correnti;3;Acquisto di beni e servizi;2;Acquisto di servizi;15;Contratti di servizio pubblico;8;Contratti di servizio di assistenza sociale residenziale e semiresidenziale;06/10/2022
3500;1;9999999;1.650,00;1.650,00;IL PORTICO ASSOCIAZIONE DI PROMOZIONE SOCIALE; ;CONTRIBUTO PER COMPARTECIPAZIONE SPESE PROGETTO DI SERVIZIO CIVILE UNIVERSALE - BANDO ORDINARIO 2020;04/10/2022;3749;0;476;1;Spese correnti;3;Acquisto di beni e servizi;2;Acquisto di servizi;99;Altri servizi;999;Altri servizi diversi n.a.c.;06/10/2022
3501;1;9999999;150;150;OMESSO NOMINATIVO NEL RISPETTO DELLA NORMATIVA SULLA PROTEZIONE DATI PERSONALI; ;OTTOBRE 2022  AFFIDAMENTO FAMILIARE -;04/10/2022;3757;50;619;1;Spese correnti;4;Trasferimenti correnti;2;Trasferimenti correnti a Famiglie;2;Interventi assistenziali;999;Altri assegni e sussidi assistenziali;06/10/2022
3502;1;9999999;1.458,39;1.458,39;VALEX SPA; ;LIQUIDAZIONE A DITTA VALEX RIMBORSO ASSENZE RETRIBUITE VICE SINDACO ARPI ALESSANDRO USUFRUITE NEI MESI DI LUGLIO E AGOSTO 2022.;04/10/2022;30;99;46;1;Spese correnti;3;Acquisto di beni e servizi;2;Acquisto di servizi;1;Organi e incarichi istituzionali dell'amministrazione;2;Organi istituzionali dell'amministrazione - Rimborsi;06/10/2022
3503;1;9999999;1.116,85;1.116,85;GRASSI UFFICIO SRL;Z8737A5BA4;SALDO Fatt.n. FT  002693  del 30/09/2022 FORNITURA CARTA PER GLI UFFICI COMUNALI - SALDO ORDINE DI ACQUISTO 2022;04/10/2022;121;6;675;1;Spese correnti;3;Acquisto di beni e servizi;1;Acquisto di beni;2;Altri beni di consumo;1;Carta, cancelleria e stampati;06/10/2022
3504;1;9999999;3.725,00;3.725,00;F.B.F. IMPIANTI SRL;Z9E377F33E;ACCONTO Fatt.n. 70FPA  del 31/08/2022 NOLEGGIO ED INSTALLAZIONE GRUPPO TERMICO PER IMPIANTO DI CLIMATIZZAZIONE SEDE MUNICIPALE;04/10/2022;548;0;670;1;Spese correnti;3;Acquisto di beni e servizi;2;Acquisto di servizi;9;Manutenzione ordinaria e riparazioni;4;Manutenzione ordinaria e riparazioni di impianti e macchinari;06/10/2022
3505;1;9999999;60;60;INTERAZIONE SRL;Z5536DB858;SALDO Fatt.n. 209/03  del 15/09/2022  PARTECIPAZIONE AL WEBINAR SECONDA GIORNATA DI FORMAZIONE FISCALE DEL 21.06.2022 DIPENDENTE SETTORE ECONOMICO;04/10/2022;833;0;593;1;Spese correnti;3;Acquisto di beni e servizi;2;Acquisto di servizi;4;Acquisto di servizi per formazione e addestramento del personale dell'ente;999;Acquisto di servizi per altre spese per formazione e addestramento n.a.c.;06/10/2022
3506;1;9999999;1.732,40;1.732,40;TELEGAMMA SAS DI GAMMA DIVIDINO & C.;Z4136773CF;SALDO Fatt.n. 2022170000023  del 31/08/2022 INTERVENTO DI MANUTENZIONE STRAORDINARIA IMPIANTO DI VIDEOSORVEGLIANZA;04/10/2022;1138;0;514;1;Spese correnti;3;Acquisto di beni e servizi;2;Acquisto di servizi;9;Manutenzione ordinaria e riparazioni;4;Manutenzione ordinaria e riparazioni di impianti e macchinari;06/10/2022
3507;1;9999999;1.499,11;1.499,11;FASTWEB SPA;5133642F61;SALDO Fatt.n. PAE0030565  del 31/08/2022 CANONE CONNETIVITA SCUOLE PERIODO DAL 1 LUGLIO AL 31 AGOSTO 2022;04/10/2022;1334;0;598;1;Spese correnti;3;Acquisto di beni e servizi;2;Acquisto di servizi;5;Utenze e canoni;1;Telefonia fissa;06/10/2022
3508;1;9999999;10.248,00;10.248,00;TREVISAN FEDERICO;9124726A18;SALDO Fatt.n. 8/B00  del 07/09/2022 LAVORI DI SFALCIO ERBA BANCHINE STRADALI  TERZO INTERVENTO;04/10/2022;2549;0;335;1;Spese correnti;3;Acquisto di beni e servizi;2;Acquisto di servizi;99;Altri servizi;9;Acquisto di sevizi per verde e arredo urbano;06/10/2022
3509;1;9999999;159,15;159,15;BUSITALIA VENETO SPA;ZD2358EDBC;SALDO Fatt.n. 8101000479  del 31/08/2022 2 TRIMESTRE 2022 - ABBONAMENTI INTEGRATI EXTRA -URB.PADOVA;04/10/2022;3844;0;355;1;Spese correnti;3;Acquisto di beni e servizi;2;Acquisto di servizi;15;Contratti di servizio pubblico;1;Contratti di servizio di trasporto pubblico;06/10/2022
3510;1;9999999;2.332,24;2.332,24;ARTEA  SNC DI LION & SALVIATO;90182921FD;SALDO Fatt.n. 19-2022/PA  del 10/09/2022 OPERAZIONI EFFETTUATE NEI CIMITERI DEL COMUNE DI SANTA MARIA DI SALA NEL MESE DI AGOSTO 2022;04/10/2022;4438;0;1152;1;Spese correnti;3;Acquisto di beni e servizi;2;Acquisto di servizi;9;Manutenzione ordinaria e riparazioni;8;Manutenzione ordinaria e riparazioni di beni immobili;06/10/2022
3511;1;9999999;2.392,93;2.392,93;GOLFETTO ANGELO;Z25348948C;SALDO Fatt.n. 6/PA  del 09/09/2022 AFFIDAMENTO INCARICO PER PROGETTAZIONE DEFINITIVA IMPIANTISTICA INTERVENTO ADEGUAMENTOFUNZIONALE SPAZI INTERNI SEDE MUNICIPALE PER EMERGENZA SANITARIA DA COVID - 19;04/10/2022;7420;0;1127;2;Spese in conto capitale;2;Investimenti fissi lordi e acquisto di terreni;1;Beni materiali;9;Beni immobili;2;Fabbricati ad uso commerciale;06/10/2022
3512;1;9999999;178.986,20;178.986,20;IDRAMAR SRL;9241051487;SALDO Fatt.n. 12/002  del 31/08/2022 MANUTENZIONE STRAORDINARIA STRADE NEL TERRITORIO COMUNALE;04/10/2022;8558;0;403;2;Spese in conto capitale;2;Investimenti fissi lordi e acquisto di terreni;1;Beni materiali;9;Beni immobili;12;Infrastrutture stradali;06/10/2022
3513;1;9999999;10.000,00;10.000,00;F.B.F. IMPIANTI SRL;Z9E377F33E;SALDO Fatt.n. 70FPA  del 31/08/2022 NOLEGGIO ED INSTALLAZIONE GRUPPO TERMICO PER IMPIANTO DI CLIMATIZZAZIONE SEDE MUNICIPALE;04/10/2022;536;0;669;1;Spese correnti;3;Acquisto di beni e servizi;2;Acquisto di servizi;7;Utilizzo di beni di terzi;8;Noleggi di impianti e macchinari;06/10/2022
3514;1;9999999;4.012,06;4.012,06;FILIPPIN LAURA; ;ACCONTO Fatt.n. 4/PA  del 28/09/2022 COMPENSO COMPONENTE COLLEGIO DEI REVISORI DEI CONTI PERIODO 01-08-2021 -31-07/2022;04/10/2022;230;0;863;1;Spese correnti;3;Acquisto di beni e servizi;2;Acquisto di servizi;1;Organi e incarichi istituzionali dell'amministrazione;8;Compensi agli organi istituzionali di revisione, di controllo ed altri incarichi istituzionali dell'amministrazione;06/10/2022
3515;1;9999999;2.865,75;2.865,75;FILIPPIN LAURA; ;SALDO Fatt.n. 4/PA  del 28/09/2022 COMPENSO COMPONENTE COLLEGIO DEI REVISORI DEI CONTI PERIODO 01-08-2021 -31-07/2022;04/10/2022;230;0;863;1;Spese correnti;3;Acquisto di beni e servizi;2;Acquisto di servizi;1;Organi e incarichi istituzionali dell'amministrazione;8;Compensi agli organi istituzionali di revisione, di controllo ed altri incarichi istituzionali dell'amministrazione;06/10/2022
3516;1;9999999;1.119,98;1.119,98;GRASSI UFFICIO SRL;Z8737A5BA4;SALDO Fatt.n. FT  002503  del 22/09/2022 FORNITURA MATERIALE DI CANCELLERIA PER GLI UFFICI COMUNALI ANNO 2022;04/10/2022;121;6;675;1;Spese correnti;3;Acquisto di beni e servizi;1;Acquisto di beni;2;Altri beni di consumo;1;Carta, cancelleria e stampati;06/10/2022
3517;1;9999999;284,5;284,5;COMUNE DI DOLO; ;RATA FINALE GIUGNO 2022 OSPITALITA UTENTE CON DISAGIO PSICO-SOCIALE PRESSO GRUPPO APPARTAMENTO DEL COMUNE DI DOLO (VE);04/10/2022;4051;0;204;1;Spese correnti;4;Trasferimenti correnti;1;Trasferimenti correnti a Amministrazioni Pubbliche;2;Trasferimenti correnti a Amministrazioni Locali;3;Trasferimenti correnti a Comuni;06/10/2022
3527;1;9999999;2.362,50;2.362,50;TONIATO ARIANNA;Z94344B1E0;riproposizione mandato non andato a buon fine LIQUIDAZIONE FATTURA 60 ditta ARIANNA TONIATO;05/10/2022;8558;0;1084;2;Spese in conto capitale;2;Investimenti fissi lordi e acquisto di terreni;1;Beni materiali;9;Beni immobili;12;Infrastrutture stradali;07/10/2022
3528;1;9999999;13,33;815,94;V.E.R.I.T.A.S. SPA; ;SALDO Fatt.n. 600006622029  del 14/09/2022 PERIODO 26.01.2022-31.08.2022 - CONSUMI+CONG. MAGAZZINO COMUNALE;05/10/2022;134;31;340;1;Spese correnti;3;Acquisto di beni e servizi;2;Acquisto di servizi;5;Utenze e canoni;5;Acqua;07/10/2022
3528;2;9999999;47,64;815,94;V.E.R.I.T.A.S. SPA; ;SALDO Fatt.n. 600006622049  del 14/09/2022 PERIODO 22.07.2021-31.08.2022 - ANTINCENDIO ECOCENTRO COMUNALE;05/10/2022;134;31;340;1;Spese correnti;3;Acquisto di beni e servizi;2;Acquisto di servizi;5;Utenze e canoni;5;Acqua;07/10/2022
3528;3;9999999;336,22;815,94;V.E.R.I.T.A.S. SPA; ;SALDO Fatt.n. 600006622030  del 14/09/2022 PERIODO 26.01.2022-31.08.2022 - ANTINCENDIO +CONG. MAGAZZINO COMUNALE;05/10/2022;134;31;340;1;Spese correnti;3;Acquisto di beni e servizi;2;Acquisto di servizi;5;Utenze e canoni;5;Acqua;07/10/2022
3528;4;9999999;418,75;815,94;V.E.R.I.T.A.S. SPA; ;SALDO Fatt.n. 600006622050  del 14/09/2022 PERIODO 22.07.2021-31.08.2022 - CONSUMI ECOCENTRO COMUNALE;05/10/2022;134;31;340;1;Spese correnti;3;Acquisto di beni e servizi;2;Acquisto di servizi;5;Utenze e canoni;5;Acqua;07/10/2022
3529;1;9999999;151,85;151,85;V.E.R.I.T.A.S. SPA; ;SALDO Fatt.n. 600006622019  del 14/09/2022 PERIODO 01.07.2022-31.08.2022 - CONSUMI SEDE MUNICIPALE;05/10/2022;134;31;340;1;Spese correnti;3;Acquisto di beni e servizi;2;Acquisto di servizi;5;Utenze e canoni;5;Acqua;07/10/2022
3530;1;9999999;3,32;88,12;V.E.R.I.T.A.S. SPA; ;SALDO Fatt.n. 600006622056  del 14/09/2022 PERIODO 12.12.2019-31.08.2022 - CONSUMI + CONG. PARCHEGGIO CASELLE;05/10/2022;134;31;340;1;Spese correnti;3;Acquisto di beni e servizi;2;Acquisto di servizi;5;Utenze e canoni;5;Acqua;07/10/2022
3530;2;9999999;13,34;88,12;V.E.R.I.T.A.S. SPA; ;SALDO Fatt.n. 600006622055  del 14/09/2022 PERIODO 01.07.2022-31.08.2022 - CONSUMI PARCHEGGIO C.C.PRISMA;05/10/2022;134;31;340;1;Spese correnti;3;Acquisto di beni e servizi;2;Acquisto di servizi;5;Utenze e canoni;5;Acqua;07/10/2022
3530;3;9999999;23,82;88,12;V.E.R.I.T.A.S. SPA; ;SALDO Fatt.n. 600006622041  del 14/09/2022 PERIODO 01.08.2022-31.08.2022 - ANTINCENDIO Z.I. SMS;05/10/2022;134;31;340;1;Spese correnti;3;Acquisto di beni e servizi;2;Acquisto di servizi;5;Utenze e canoni;5;Acqua;07/10/2022
3530;4;9999999;23,82;88,12;V.E.R.I.T.A.S. SPA; ;SALDO Fatt.n. 600006622044  del 14/09/2022 PERIODO 01.08.2022-31.08.2022 - ANTINCENDIO STRADA GUIOTTO;05/10/2022;134;31;340;1;Spese correnti;3;Acquisto di beni e servizi;2;Acquisto di servizi;5;Utenze e canoni;5;Acqua;07/10/2022
3530;5;9999999;23,82;88,12;V.E.R.I.T.A.S. SPA; ;SALDO Fatt.n. 600006622054  del 14/09/2022 PERIODO 01.08.2022-31.08.2022 - ANTINCENDIO PIAZZA BEVILACQUA S.ANGELO;05/10/2022;134;31;340;1;Spese correnti;3;Acquisto di beni e servizi;2;Acquisto di servizi;5;Utenze e canoni;5;Acqua;07/10/2022
3531;1;9999999;34,99;400,06;V.E.R.I.T.A.S. SPA; ;SALDO Fatt.n. 600006622038  del 14/09/2022 PERIODO 11.01.2022-31.08.2022 - CONSUMI + CONG. P.ZZA S.D.A. CALTANA;05/10/2022;134;31;340;1;Spese correnti;3;Acquisto di beni e servizi;2;Acquisto di servizi;5;Utenze e canoni;5;Acqua;07/10/2022
3531;2;9999999;47,64;400,06;V.E.R.I.T.A.S. SPA; ;SALDO Fatt.n. 600006622027  del 14/09/2022 PERIODO 03.07.2021-31.08.2022 - ANTINCENDIO PARCHEGGIO SMS;05/10/2022;134;31;340;1;Spese correnti;3;Acquisto di beni e servizi;2;Acquisto di servizi;5;Utenze e canoni;5;Acqua;07/10/2022
3531;3;9999999;48,25;400,06;V.E.R.I.T.A.S. SPA; ;SALDO Fatt.n. 600006622026  del 14/09/2022 PERIODO 18.01.2022-31.08.2022 - CONSUMI + CONG.  DISTRIBUTORE ACQUA CASELLE;05/10/2022;134;31;340;1;Spese correnti;3;Acquisto di beni e servizi;2;Acquisto di servizi;5;Utenze e canoni;5;Acqua;07/10/2022
3531;4;9999999;104,76;400,06;V.E.R.I.T.A.S. SPA; ;SALDO Fatt.n. 600006622037  del 14/09/2022 PERIODO 19.01.2022-31.08.2022 - CONSUMI + CONG. PIAZZA ACTV CALTANA;05/10/2022;134;31;340;1;Spese correnti;3;Acquisto di beni e servizi;2;Acquisto di servizi;5;Utenze e canoni;5;Acqua;07/10/2022
3531;5;9999999;164,42;400,06;V.E.R.I.T.A.S. SPA; ;SALDO Fatt.n. 600006622011  del 14/09/2022 PERIODO 01.07.2022-31.08.2022 - CONSUMI MERCATO CALTANA;05/10/2022;134;31;340;1;Spese correnti;3;Acquisto di beni e servizi;2;Acquisto di servizi;5;Utenze e canoni;5;Acqua;07/10/2022
3532;1;9999999;11,88;146,1;V.E.R.I.T.A.S. SPA; ;SALDO Fatt.n. 600006622045  del 14/09/2022 PERIODO 05.01.2022-31.08.2022 - CONSUMI + CONG. FONTANA VETERNIGO;05/10/2022;134;31;340;1;Spese correnti;3;Acquisto di beni e servizi;2;Acquisto di servizi;5;Utenze e canoni;5;Acqua;07/10/2022
3532;2;9999999;15,13;146,1;V.E.R.I.T.A.S. SPA; ;SALDO Fatt.n. 600006622046  del 14/09/2022 PERIODO 14.01.2022-31.08.2022 - CONSUMI  + CONG. MERCATO SMS;05/10/2022;134;31;340;1;Spese correnti;3;Acquisto di beni e servizi;2;Acquisto di servizi;5;Utenze e canoni;5;Acqua;07/10/2022
3532;3;9999999;23,82;146,1;V.E.R.I.T.A.S. SPA; ;SALDO Fatt.n. 600006622042  del 14/09/2022 PERIODO 01.08.2022-31.08.2022 - ANTINCENDIO Z.I. SMS;05/10/2022;134;31;340;1;Spese correnti;3;Acquisto di beni e servizi;2;Acquisto di servizi;5;Utenze e canoni;5;Acqua;07/10/2022
3532;4;9999999;23,82;146,1;V.E.R.I.T.A.S. SPA; ;SALDO Fatt.n. 600006622047  del 14/09/2022 PERIODO 01.08.2022-31.08.2022 - ANTINCENDIO PER MANIFESTAZIONI SMS;05/10/2022;134;31;340;1;Spese correnti;3;Acquisto di beni e servizi;2;Acquisto di servizi;5;Utenze e canoni;5;Acqua;07/10/2022
3532;5;9999999;23,82;146,1;V.E.R.I.T.A.S. SPA; ;SALDO Fatt.n. 600006622057  del 14/09/2022 PERIODO 01.08.2022-31.08.2022 - ANTINCENDIO PARCHEGGIO CASELLE;05/10/2022;134;31;340;1;Spese correnti;3;Acquisto di beni e servizi;2;Acquisto di servizi;5;Utenze e canoni;5;Acqua;07/10/2022
3532;6;9999999;47,63;146,1;V.E.R.I.T.A.S. SPA; ;SALDO Fatt.n. 600006622039  del 14/09/2022 PERIODO 04.01.2022-31.08.2022 - ANTINCENDIO +CONG. PARCHEGGIO STIGLIANO;05/10/2022;134;31;340;1;Spese correnti;3;Acquisto di beni e servizi;2;Acquisto di servizi;5;Utenze e canoni;5;Acqua;07/10/2022
3533;1;9999999;68,44;68,44;V.E.R.I.T.A.S. SPA; ;ACCONTO Fatt.n. 600006622012  del 14/09/2022 PERIODO 18.01.2022-31.08.2022 - CONSUMI+CONG. SC. ELEM. - PALESTRA CASELLE;05/10/2022;134;31;340;1;Spese correnti;3;Acquisto di beni e servizi;2;Acquisto di servizi;5;Utenze e canoni;5;Acqua;07/10/2022
3534;1;9999999;-231,24;2.690,83;V.E.R.I.T.A.S. SPA; ;SALDO Fatt.n. 600006622032  del 14/09/2022 PERIODO 11.01.2022-31.08.2022 - NOTA DI ACCREDITO PER CONG. CONSUMI;05/10/2022;1334;30;341;1;Spese correnti;3;Acquisto di beni e servizi;2;Acquisto di servizi;5;Utenze e canoni;5;Acqua;07/10/2022
3534;2;9999999;-165,4;2.690,83;V.E.R.I.T.A.S. SPA; ;SALDO Fatt.n. 600006622036  del 14/09/2022 PERIODO 04.01.2022-31.08.2022 - NOTA DI ACCREDITO PER CONG. CONSUMI;05/10/2022;1334;30;341;1;Spese correnti;3;Acquisto di beni e servizi;2;Acquisto di servizi;5;Utenze e canoni;5;Acqua;07/10/2022
3534;3;9999999;-122,37;2.690,83;V.E.R.I.T.A.S. SPA; ;SALDO Fatt.n. 600006622013  del 14/09/2022 PERIODO 04.01.2022-31.08.2022 - NOTA DI ACCREDITO PER CONG. CONSUMI;05/10/2022;1334;30;341;1;Spese correnti;3;Acquisto di beni e servizi;2;Acquisto di servizi;5;Utenze e canoni;5;Acqua;07/10/2022
3534;4;9999999;-78,63;2.690,83;V.E.R.I.T.A.S. SPA; ;SALDO Fatt.n. 600006622018  del 14/09/2022 PERIODO 20.01.2022-31.08.2022 - NOTA DI ACCREDITO PER CONG. CONSUMI;05/10/2022;1334;30;341;1;Spese correnti;3;Acquisto di beni e servizi;2;Acquisto di servizi;5;Utenze e canoni;5;Acqua;07/10/2022
3534;5;9999999;3.288,47;2.690,83;V.E.R.I.T.A.S. SPA; ;SALDO Fatt.n. 600006622020  del 14/09/2022 PERIODO 14.01.2022-31.08.2022 - CONSUMI+CONG. SCUOLA MEDIA SMS;05/10/2022;1334;30;341;1;Spese correnti;3;Acquisto di beni e servizi;2;Acquisto di servizi;5;Utenze e canoni;5;Acqua;07/10/2022
3535;1;9999999;47,62;139,06;V.E.R.I.T.A.S. SPA; ;SALDO Fatt.n. 600006622022  del 14/09/2022 PERIODO 11.01.2022-31.08.2022 - CONSUMI+CONG. SC. ELEM. CALTANA;05/10/2022;1334;30;341;1;Spese correnti;3;Acquisto di beni e servizi;2;Acquisto di servizi;5;Utenze e canoni;5;Acqua;07/10/2022
3535;2;9999999;91,44;139,06;V.E.R.I.T.A.S. SPA; ;SALDO Fatt.n. 600006622021  del 14/09/2022 PERIODO 01.07.2022-31.08.2022 - CONSUMI+CONG. SC. ELEM. SMS;05/10/2022;1334;30;341;1;Spese correnti;3;Acquisto di beni e servizi;2;Acquisto di servizi;5;Utenze e canoni;5;Acqua;07/10/2022
3536;1;9999999;13;13;V.E.R.I.T.A.S. SPA; ;ACCONTO Fatt.n. 600006622024  del 14/09/2022 PERIODO 19.01.2022-31.08.2022 - ANTINCENDIO+CONG. SC. ELEM - PALESTRA VETERNIGO;05/10/2022;1334;30;341;1;Spese correnti;3;Acquisto di beni e servizi;2;Acquisto di servizi;5;Utenze e canoni;5;Acqua;07/10/2022
3537;1;9999999;21,63;21,63;V.E.R.I.T.A.S. SPA; ;ACCONTO Fatt.n. 600006622024  del 14/09/2022 PERIODO 19.01.2022-31.08.2022 - ANTINCENDIO+CONG. SC. ELEM - PALESTRA VETERNIGO;05/10/2022;1334;30;341;1;Spese correnti;3;Acquisto di beni e servizi;2;Acquisto di servizi;5;Utenze e canoni;5;Acqua;07/10/2022
3538;1;9999999;23,81;23,81;V.E.R.I.T.A.S. SPA; ;ACCONTO Fatt.n. 600006622052  del 14/09/2022 PERIODO 11.01.2022-31.08.2022 - ANTINCENDIO + CONG. PALESTRA CALTANA;05/10/2022;1334;30;341;1;Spese correnti;3;Acquisto di beni e servizi;2;Acquisto di servizi;5;Utenze e canoni;5;Acqua;07/10/2022
3539;1;9999999;38;38;V.E.R.I.T.A.S. SPA; ;ACCONTO Fatt.n. 600006622015  del 14/09/2022 PERIODO 08.01.2022-31.08.2022 - CONSUMI + CONG. SC. ELEM. -PALESTRA - ASILO S.ANGELO;05/10/2022;1334;30;341;1;Spese correnti;3;Acquisto di beni e servizi;2;Acquisto di servizi;5;Utenze e canoni;5;Acqua;07/10/2022
3540;1;9999999;117,19;117,19;V.E.R.I.T.A.S. SPA; ;ACCONTO Fatt.n. 600006622015  del 14/09/2022 PERIODO 08.01.2022-31.08.2022 - CONSUMI + CONG. SC. ELEM. -PALESTRA - ASILO S.ANGELO;05/10/2022;1334;30;341;1;Spese correnti;3;Acquisto di beni e servizi;2;Acquisto di servizi;5;Utenze e canoni;5;Acqua;07/10/2022
3541;1;9999999;91,43;91,43;V.E.R.I.T.A.S. SPA; ;ACCONTO Fatt.n. 600006622051  del 14/09/2022 PERIODO 11.01.2022-31.08.2022 - CONSUMI + CONG. PALESTRA CALTANA;05/10/2022;1334;30;341;1;Spese correnti;3;Acquisto di beni e servizi;2;Acquisto di servizi;5;Utenze e canoni;5;Acqua;07/10/2022
3542;1;9999999;103,55;103,55;V.E.R.I.T.A.S. SPA; ;ACCONTO Fatt.n. 600006622016  del 14/09/2022 PERIODO 01.07.2022-31.08.2022 - CONSUMI PALESTRA SMS;05/10/2022;1334;30;341;1;Spese correnti;3;Acquisto di beni e servizi;2;Acquisto di servizi;5;Utenze e canoni;5;Acqua;07/10/2022
3543;1;9999999;22;22;V.E.R.I.T.A.S. SPA; ;ACCONTO Fatt.n. 600006622012  del 14/09/2022 PERIODO 18.01.2022-31.08.2022 - CONSUMI+CONG. SC. ELEM. - PALESTRA CASELLE;05/10/2022;1334;30;341;1;Spese correnti;3;Acquisto di beni e servizi;2;Acquisto di servizi;5;Utenze e canoni;5;Acqua;07/10/2022
3544;1;9999999;9;9;V.E.R.I.T.A.S. SPA; ;ACCONTO Fatt.n. 600006622023  del 14/09/2022 PERIODO 01.07.2022-31.08.2022 - ANTINCENDIO SC. ELEM - PALESTRA CASELLE;05/10/2022;1334;30;341;1;Spese correnti;3;Acquisto di beni e servizi;2;Acquisto di servizi;5;Utenze e canoni;5;Acqua;07/10/2022
3545;1;9999999;29,64;29,64;V.E.R.I.T.A.S. SPA; ;ACCONTO Fatt.n. 600006622023  del 14/09/2022 PERIODO 01.07.2022-31.08.2022 - ANTINCENDIO SC. ELEM - PALESTRA CASELLE;05/10/2022;1334;30;341;1;Spese correnti;3;Acquisto di beni e servizi;2;Acquisto di servizi;5;Utenze e canoni;5;Acqua;07/10/2022
3546;1;9999999;9;9;V.E.R.I.T.A.S. SPA; ;ACCONTO Fatt.n. 600006622025  del 14/09/2022 PERIODO 08.01.2022-31.08.2022 - ANTINCENDIO+CONG. SC. ELEM-PALESTRA-ASILO S.ANGELO;05/10/2022;1334;30;341;1;Spese correnti;3;Acquisto di beni e servizi;2;Acquisto di servizi;5;Utenze e canoni;5;Acqua;07/10/2022
3547;1;9999999;29,63;29,63;V.E.R.I.T.A.S. SPA; ;ACCONTO Fatt.n. 600006622025  del 14/09/2022 PERIODO 08.01.2022-31.08.2022 - ANTINCENDIO+CONG. SC. ELEM-PALESTRA-ASILO S.ANGELO;05/10/2022;1334;30;341;1;Spese correnti;3;Acquisto di beni e servizi;2;Acquisto di servizi;5;Utenze e canoni;5;Acqua;07/10/2022
3548;1;9999999;28;28;V.E.R.I.T.A.S. SPA; ;ACCONTO Fatt.n. 600006622014  del 14/09/2022 PERIODO 19.01.2022-31.08.2022 - CONSUMI+CONG. SC. ELEM - PALESTRA VETERNIGO;05/10/2022;1334;30;341;1;Spese correnti;3;Acquisto di beni e servizi;2;Acquisto di servizi;5;Utenze e canoni;5;Acqua;07/10/2022
3549;1;9999999;45,81;45,81;V.E.R.I.T.A.S. SPA; ;ACCONTO Fatt.n. 600006622014  del 14/09/2022 PERIODO 19.01.2022-31.08.2022 - CONSUMI+CONG. SC. ELEM - PALESTRA VETERNIGO;05/10/2022;1334;30;341;1;Spese correnti;3;Acquisto di beni e servizi;2;Acquisto di servizi;5;Utenze e canoni;5;Acqua;07/10/2022
3550;1;9999999;26,77;293,93;V.E.R.I.T.A.S. SPA; ;SALDO Fatt.n. 600006622053  del 14/09/2022 PERIODO 11.05.2022-31.08.2022 - CONSUMI + CONG. VILLA FARSETTI;05/10/2022;1834;0;342;1;Spese correnti;3;Acquisto di beni e servizi;2;Acquisto di servizi;5;Utenze e canoni;5;Acqua;07/10/2022
3550;2;9999999;110,58;293,93;V.E.R.I.T.A.S. SPA; ;SALDO Fatt.n. 600006622028  del 14/09/2022 PERIODO 14.01.2022-31.08.2022  - ANTINCENDIO+CONG. VILLA FARSETTI;05/10/2022;1834;0;342;1;Spese correnti;3;Acquisto di beni e servizi;2;Acquisto di servizi;5;Utenze e canoni;5;Acqua;07/10/2022
3550;3;9999999;156,58;293,93;V.E.R.I.T.A.S. SPA; ;SALDO Fatt.n. 600006622017  del 14/09/2022 PERIODO 14.01.2022-31.08.2022 - CONSUMI+CONG. VILLA FARSETTI;05/10/2022;1834;0;342;1;Spese correnti;3;Acquisto di beni e servizi;2;Acquisto di servizi;5;Utenze e canoni;5;Acqua;07/10/2022
3551;1;9999999;13;13;V.E.R.I.T.A.S. SPA; ;SALDO Fatt.n. 600006622024  del 14/09/2022 PERIODO 19.01.2022-31.08.2022 - ANTINCENDIO+CONG. SC. ELEM - PALESTRA VETERNIGO;05/10/2022;1934;0;343;1;Spese correnti;3;Acquisto di beni e servizi;2;Acquisto di servizi;5;Utenze e canoni;5;Acqua;07/10/2022
3552;1;9999999;23,81;23,81;V.E.R.I.T.A.S. SPA; ;SALDO Fatt.n. 600006622052  del 14/09/2022 PERIODO 11.01.2022-31.08.2022 - ANTINCENDIO + CONG. PALESTRA CALTANA;05/10/2022;1934;0;343;1;Spese correnti;3;Acquisto di beni e servizi;2;Acquisto di servizi;5;Utenze e canoni;5;Acqua;07/10/2022
3553;1;9999999;38;38;V.E.R.I.T.A.S. SPA; ;SALDO Fatt.n. 600006622015  del 14/09/2022 PERIODO 08.01.2022-31.08.2022 - CONSUMI + CONG. SC. ELEM. -PALESTRA - ASILO S.ANGELO;05/10/2022;1934;0;343;1;Spese correnti;3;Acquisto di beni e servizi;2;Acquisto di servizi;5;Utenze e canoni;5;Acqua;07/10/2022
3554;1;9999999;91,44;91,44;V.E.R.I.T.A.S. SPA; ;SALDO Fatt.n. 600006622051  del 14/09/2022 PERIODO 11.01.2022-31.08.2022 - CONSUMI + CONG. PALESTRA CALTANA;05/10/2022;1934;0;343;1;Spese correnti;3;Acquisto di beni e servizi;2;Acquisto di servizi;5;Utenze e canoni;5;Acqua;07/10/2022
3555;1;9999999;103,56;103,56;V.E.R.I.T.A.S. SPA; ;SALDO Fatt.n. 600006622016  del 14/09/2022 PERIODO 01.07.2022-31.08.2022 - CONSUMI PALESTRA SMS;05/10/2022;1934;0;343;1;Spese correnti;3;Acquisto di beni e servizi;2;Acquisto di servizi;5;Utenze e canoni;5;Acqua;07/10/2022
3556;1;9999999;22;22;V.E.R.I.T.A.S. SPA; ;SALDO Fatt.n. 600006622012  del 14/09/2022 PERIODO 18.01.2022-31.08.2022 - CONSUMI+CONG. SC. ELEM. - PALESTRA CASELLE;05/10/2022;1934;0;343;1;Spese correnti;3;Acquisto di beni e servizi;2;Acquisto di servizi;5;Utenze e canoni;5;Acqua;07/10/2022
3557;1;9999999;9;9;V.E.R.I.T.A.S. SPA; ;SALDO Fatt.n. 600006622023  del 14/09/2022 PERIODO 01.07.2022-31.08.2022 - ANTINCENDIO SC. ELEM - PALESTRA CASELLE;05/10/2022;1934;0;343;1;Spese correnti;3;Acquisto di beni e servizi;2;Acquisto di servizi;5;Utenze e canoni;5;Acqua;07/10/2022
3558;1;9999999;9;9;V.E.R.I.T.A.S. SPA; ;SALDO Fatt.n. 600006622025  del 14/09/2022 PERIODO 08.01.2022-31.08.2022 - ANTINCENDIO+CONG. SC. ELEM-PALESTRA-ASILO S.ANGELO;05/10/2022;1934;0;343;1;Spese correnti;3;Acquisto di beni e servizi;2;Acquisto di servizi;5;Utenze e canoni;5;Acqua;07/10/2022
3559;1;9999999;28;28;V.E.R.I.T.A.S. SPA; ;SALDO Fatt.n. 600006622014  del 14/09/2022 PERIODO 19.01.2022-31.08.2022 - CONSUMI+CONG. SC. ELEM - PALESTRA VETERNIGO;05/10/2022;1934;0;343;1;Spese correnti;3;Acquisto di beni e servizi;2;Acquisto di servizi;5;Utenze e canoni;5;Acqua;07/10/2022
3560;1;9999999;8,96;159,31;V.E.R.I.T.A.S. SPA; ;SALDO Fatt.n. 600006622040  del 14/09/2022 PERIODO 13.01.2022-31.08.2022 - CONSUMI +CONG. PER MANIFESTAZIONI CALTANA;05/10/2022;3534;0;344;1;Spese correnti;3;Acquisto di beni e servizi;2;Acquisto di servizi;5;Utenze e canoni;5;Acqua;07/10/2022
3560;2;9999999;9,39;159,31;V.E.R.I.T.A.S. SPA; ;SALDO Fatt.n. 600006622059  del 14/09/2022 PERIODO 20.01.2022-31.08.2022 - CONSUMI+CONG. FONTANA VERDE CASELLE;05/10/2022;3534;0;344;1;Spese correnti;3;Acquisto di beni e servizi;2;Acquisto di servizi;5;Utenze e canoni;5;Acqua;07/10/2022
3560;3;9999999;23,82;159,31;V.E.R.I.T.A.S. SPA; ;SALDO Fatt.n. 600006622043  del 14/09/2022 PERIODO 01.08.2022-31.08.2022 - CONSUMI PARCHEGGIO C.C. PRISMA CASELLE;05/10/2022;3534;0;344;1;Spese correnti;3;Acquisto di beni e servizi;2;Acquisto di servizi;5;Utenze e canoni;5;Acqua;07/10/2022
3560;4;9999999;37,77;159,31;V.E.R.I.T.A.S. SPA; ;SALDO Fatt.n. 600006622058  del 14/09/2022 PERIODO 14.01.2022-31.08.2022 - CONSUMI + CONG. PIAZZA CASELLE;05/10/2022;3534;0;344;1;Spese correnti;3;Acquisto di beni e servizi;2;Acquisto di servizi;5;Utenze e canoni;5;Acqua;07/10/2022
3560;5;9999999;79,37;159,31;V.E.R.I.T.A.S. SPA; ;SALDO Fatt.n. 600006622048  del 14/09/2022 PERIODO 11.01.2022-31.08.2022 - CONSUMI+CONG. PER MANIFESTAZIONI SMS;05/10/2022;3534;0;344;1;Spese correnti;3;Acquisto di beni e servizi;2;Acquisto di servizi;5;Utenze e canoni;5;Acqua;07/10/2022
3561;1;9999999;6,82;257,77;V.E.R.I.T.A.S. SPA; ;SALDO Fatt.n. 600006622034  del 14/09/2022 PERIODO 08.01.2022-31.08.2022 - CONSUMI CIMITERO S.ANGELO;05/10/2022;4434;0;347;1;Spese correnti;3;Acquisto di beni e servizi;2;Acquisto di servizi;5;Utenze e canoni;5;Acqua;07/10/2022
3561;2;9999999;36,47;257,77;V.E.R.I.T.A.S. SPA; ;SALDO Fatt.n. 600006622035  del 14/09/2022 PERIODO 20.01.2022-31.08.2022  - CONSUMI+CONG. CIMITERO CASELLE;05/10/2022;4434;0;347;1;Spese correnti;3;Acquisto di beni e servizi;2;Acquisto di servizi;5;Utenze e canoni;5;Acqua;07/10/2022
3561;3;9999999;214,48;257,77;V.E.R.I.T.A.S. SPA; ;SALDO Fatt.n. 600006622031  del 14/09/2022 PERIODO 12.01.2022-31.08.2022 - CONSUMI+CONG. CIMITERO SMS;05/10/2022;4434;0;347;1;Spese correnti;3;Acquisto di beni e servizi;2;Acquisto di servizi;5;Utenze e canoni;5;Acqua;07/10/2022
3562;1;9999999;12,6;12,6;V.E.R.I.T.A.S. SPA; ;SALDO Fatt.n. 600006622033  del 14/09/2022 PERIODO 08.01.2022-31.08.2022 - CONSUMI+CONG. CIMITERO VETERNIGO;05/10/2022;4434;0;347;1;Spese correnti;3;Acquisto di beni e servizi;2;Acquisto di servizi;5;Utenze e canoni;5;Acqua;07/10/2022
3563;1;9999999;100;100;PIA OPERA CROCE VERDE PADOVA - IPAB;Z053782EFE;SALDO Fatt.n. 206/G  del 05/09/2022 ASSISTENZA SANITARIA -AGOSTO 2022;05/10/2022;49;0;663;1;Spese correnti;3;Acquisto di beni e servizi;2;Acquisto di servizi;99;Altri servizi;999;Altri servizi diversi n.a.c.;07/10/2022
3564;1;9999999;161,03;161,03;CARTOVENETA  APCI SRL;ZF83791149;SALDO Fatt.n. 2553  del 20/09/2022 SCATOLE PER ELEZIONI POLITICHE 25 SETTEMBRE 2022;05/10/2022;649;0;759;1;Spese correnti;3;Acquisto di beni e servizi;2;Acquisto di servizi;99;Altri servizi;4;Altre spese per consultazioni elettorali dell'ente;07/10/2022
3565;1;9999999;1.697,33;1.697,33;GOTTARDO DINO & C.SNC;Z0B37A7AEE;SALDO Fatt.n. 39  del 30/09/2022  INTERVENTI DI MANUTENZIONE ORDINARIA PER OPERE DA FABBRO NEI FABBRICATI E TERRITORIO COMUNALE;05/10/2022;1938;0;773;1;Spese correnti;3;Acquisto di beni e servizi;2;Acquisto di servizi;9;Manutenzione ordinaria e riparazioni;8;Manutenzione ordinaria e riparazioni di beni immobili;07/10/2022
3566;1;9999999;10.431,00;10.431,00;SOCIETA' AGRICOLA VIVAI GARDIN S.S.;ZE83546EB6;SALDO Fatt.n. 79/M  del 12/09/2022 POTATURA ESSENZE ARBOREE IN VILLA FARSETTI;05/10/2022;2549;0;761;1;Spese correnti;3;Acquisto di beni e servizi;2;Acquisto di servizi;99;Altri servizi;9;Acquisto di sevizi per verde e arredo urbano;07/10/2022
3567;1;9999999;999,18;999,18;ASPEX SRL;Z8B353EAC6;SALDO Fatt.n. 181/FPA  del 29/09/2022 FORNITURA DI ASFALTO A FREDDO PER MANUTENZIONE STRADE;05/10/2022;3538;0;799;1;Spese correnti;3;Acquisto di beni e servizi;2;Acquisto di servizi;9;Manutenzione ordinaria e riparazioni;8;Manutenzione ordinaria e riparazioni di beni immobili;07/10/2022
3568;1;9999999;113,5;113,5;BARBATO BARBARA ECONOMO COMUNALE; ;Rimborso bollette;06/10/2022;121;6;136;1;Spese correnti;3;Acquisto di beni e servizi;1;Acquisto di beni;2;Altri beni di consumo;1;Carta, cancelleria e stampati;11/10/2022
3575;1;9999999;784,9;784,9;KYOCERA DOCUMENT SOLUTIONS ITALIA SPA;ZB93086395;SALDO Fatt.n. 1010788384  del 19/09/2022 FOTOCOPIATRICI 32 - LOTTO 5 - 60 MESI - CANONE PERIODO DAL 13.06.2022 AL 13.09.2022;06/10/2022;748;0;106;1;Spese correnti;3;Acquisto di beni e servizi;2;Acquisto di servizi;19;Servizi informatici e di telecomunicazioni;7;Servizi di gestione documentale;11/10/2022
3576;1;9999999;270,41;270,41;KYOCERA DOCUMENT SOLUTIONS ITALIA SPA;Z202CF11D4;SALDO Fatt.n. 1010788383  del 19/09/2022 FOTOCOPIATRICI 31 - LOTTO 3 - 60 MESI CANONE DAL 18/06/2022 AL 17/09/2022;06/10/2022;748;0;450;1;Spese correnti;3;Acquisto di beni e servizi;2;Acquisto di servizi;19;Servizi informatici e di telecomunicazioni;9;Servizi per le postazioni di lavoro e relativa manutenzione;11/10/2022
3577;1;9999999;55,08;55,08;PULIAUTOMATIC SRL;Z6937BA9BD;ACCONTO Fatt.n. 135/V12  del 22/09/2022 MANUTENZIONE LAVASCIUGA MODELLO J.50B PALESTRA DI STIGLIANO;06/10/2022;1338;0;786;1;Spese correnti;3;Acquisto di beni e servizi;2;Acquisto di servizi;9;Manutenzione ordinaria e riparazioni;5;Manutenzione ordinaria e riparazioni di attrezzature;11/10/2022
3578;1;9999999;55,07;55,07;PULIAUTOMATIC SRL;Z6937BA9BD;SALDO Fatt.n. 135/V12  del 22/09/2022 MANUTENZIONE LAVASCIUGA MODELLO J.50B PALESTRA DI STIGLIANO;06/10/2022;1938;0;787;1;Spese correnti;3;Acquisto di beni e servizi;2;Acquisto di servizi;9;Manutenzione ordinaria e riparazioni;5;Manutenzione ordinaria e riparazioni di attrezzature;11/10/2022
3579;1;9999999;242,56;242,56;AUTOROMBO S.A.S. DI SARTORE RENZO & C.;Z7936F68A1;SALDO Fatt.n. 3/PA  del 21/09/2022 LAVORI ESEGUITI SU MEZZO DACIA DUSTER YA831AL;06/10/2022;3538;0;601;1;Spese correnti;3;Acquisto di beni e servizi;2;Acquisto di servizi;9;Manutenzione ordinaria e riparazioni;1;Manutenzione ordinaria e riparazioni di mezzi di trasporto ad uso civile, di sicurezza e ordine pubblico;11/10/2022
3580;1;9999999;601,46;601,46;NUOVA RADAR COOP. S.C.R.L.;ZA5373CA61;SALDO Fatt.n. 0000193/03  del 20/09/2022 ACQUISTO PROTEZIONI PER LA PALESTRA DI CALTANA AREA ESTERNA;06/10/2022;8483;0;1007;2;Spese in conto capitale;2;Investimenti fissi lordi e acquisto di terreni;1;Beni materiali;9;Beni immobili;16;Impianti sportivi;11/10/2022
3581;1;9999999;62,66;62,66;ENI SPA DIVISIONE REFINING & MARKETING;Z0234B8009;ACCONTO Fatt.n. 29960562  del 31/08/2022 AGOSTO 2022 FORNITURA METANO;06/10/2022;4121;0;8;1;Spese correnti;3;Acquisto di beni e servizi;1;Acquisto di beni;2;Altri beni di consumo;2;Carburanti, combustibili e lubrificanti;10/10/2022
3582;1;9999999;13,79;13,79;ENI SPA DIVISIONE REFINING & MARKETING;Z0234B8009;SALDO Fatt.n. 29960562  del 31/08/2022 AGOSTO 2022 FORNITURA METANO;06/10/2022;4121;0;8;1;Spese correnti;3;Acquisto di beni e servizi;1;Acquisto di beni;2;Altri beni di consumo;2;Carburanti, combustibili e lubrificanti;11/10/2022
3583;1;9999999;32,73;304,27;ENEL ENERGIA SPA;9118031536;SALDO Fatt.n. 004254293642  del 07/09/2022 AGOSTO 2022 - CONSUMI PARCHEGGIO SMS;07/10/2022;134;30;212;1;Spese correnti;3;Acquisto di beni e servizi;2;Acquisto di servizi;5;Utenze e canoni;4;Energia elettrica;11/10/2022
3583;2;9999999;47,86;304,27;ENEL ENERGIA SPA;9118031536;SALDO Fatt.n. 004254293635  del 07/09/2022 AGOSTO 2022 - CONSUMI FONTANA VETERNIGO;07/10/2022;134;30;212;1;Spese correnti;3;Acquisto di beni e servizi;2;Acquisto di servizi;5;Utenze e canoni;4;Energia elettrica;11/10/2022
3583;3;9999999;59,6;304,27;ENEL ENERGIA SPA;9118031536;SALDO Fatt.n. 004254293629  del 07/09/2022 AGOSTO 2022 - CONSUMI MERCATO CALTANA;07/10/2022;134;30;212;1;Spese correnti;3;Acquisto di beni e servizi;2;Acquisto di servizi;5;Utenze e canoni;4;Energia elettrica;11/10/2022
3583;4;9999999;80,07;304,27;ENEL ENERGIA SPA;9118031536;SALDO Fatt.n. 004254293654  del 07/09/2022 AGOSTO 2022 - CONSUMI PARCHEGGIO C.C. PRISMA CASELLE;07/10/2022;134;30;212;1;Spese correnti;3;Acquisto di beni e servizi;2;Acquisto di servizi;5;Utenze e canoni;4;Energia elettrica;11/10/2022
3583;5;9999999;84,01;304,27;ENEL ENERGIA SPA;9118031536;SALDO Fatt.n. 004254293649  del 07/09/2022 AGOSTO 2022 - CONSUMI MERCATO CASELLE;07/10/2022;134;30;212;1;Spese correnti;3;Acquisto di beni e servizi;2;Acquisto di servizi;5;Utenze e canoni;4;Energia elettrica;11/10/2022
3584;1;9999999;12,61;12,61;ENEL ENERGIA SPA;9118031536;ACCONTO Fatt.n. 004254293651  del 07/09/2022 AGOSTO 2022 - CONSUMI CIMITERO CALTANA - LAMPADE VOTIVE;07/10/2022;134;30;212;1;Spese correnti;3;Acquisto di beni e servizi;2;Acquisto di servizi;5;Utenze e canoni;4;Energia elettrica;11/10/2022
3585;1;9999999;6,99;6,99;ENEL ENERGIA SPA;9118031536;ACCONTO Fatt.n. 004254293641  del 07/09/2022 AGOSTO 2022 - CONSUMI CIMITERO S.ANGELO - LAMPADE VOTIVE;07/10/2022;134;30;212;1;Spese correnti;3;Acquisto di beni e servizi;2;Acquisto di servizi;5;Utenze e canoni;4;Energia elettrica;11/10/2022
3586;1;9999999;6,99;6,99;ENEL ENERGIA SPA;9118031536;ACCONTO Fatt.n. 004254293648  del 07/09/2022 AGOSTO 2022 - CONSUMI CIMITERO CASELLE - LAMPADE VOTIVE;07/10/2022;134;30;212;1;Spese correnti;3;Acquisto di beni e servizi;2;Acquisto di servizi;5;Utenze e canoni;4;Energia elettrica;11/10/2022
3587;1;9999999;5,81;5,81;ENEL ENERGIA SPA;9118031536;ACCONTO Fatt.n. 004254293640  del 07/09/2022 AGOSTO 2022 - CONSUMI CIMITERO VETERNIGO;07/10/2022;134;30;212;1;Spese correnti;3;Acquisto di beni e servizi;2;Acquisto di servizi;5;Utenze e canoni;4;Energia elettrica;11/10/2022
3588;1;9999999;4,69;4,69;ENEL ENERGIA SPA;9118031536;ACCONTO Fatt.n. 004254918548  del 08/09/2022 AGOSTO 2022 - CONSUMI CIMITERO SMS - LAMPADE VOTIVE;07/10/2022;134;30;212;1;Spese correnti;3;Acquisto di beni e servizi;2;Acquisto di servizi;5;Utenze e canoni;4;Energia elettrica;11/10/2022
3589;1;9999999;10,58;354,41;ENEL ENERGIA SPA;9118031536;SALDO Fatt.n. 004254293660  del 07/09/2022 AGOSTO 2022 - CONSUMI ALLOGGIO VIA OLIMPIA SMS;07/10/2022;134;31;213;1;Spese correnti;3;Acquisto di beni e servizi;2;Acquisto di servizi;5;Utenze e canoni;4;Energia elettrica;11/10/2022
3589;2;9999999;35,84;354,41;ENEL ENERGIA SPA;9118031536;SALDO Fatt.n. 004254293656  del 07/09/2022 AGOSTO 2022 - CONSUMI ALLOGGIO DON GALLERANI CALTANA;07/10/2022;134;31;213;1;Spese correnti;3;Acquisto di beni e servizi;2;Acquisto di servizi;5;Utenze e canoni;4;Energia elettrica;11/10/2022
3589;3;9999999;65,2;354,41;ENEL ENERGIA SPA;9118031536;SALDO Fatt.n. 004254293657  del 07/09/2022 AGOSTO 2022 - CONSUMI MERCATO SMS;07/10/2022;134;31;213;1;Spese correnti;3;Acquisto di beni e servizi;2;Acquisto di servizi;5;Utenze e canoni;4;Energia elettrica;11/10/2022
3589;4;9999999;88,83;354,41;ENEL ENERGIA SPA;9118031536;SALDO Fatt.n. 004261456817  del 13/09/2022 AGOSTO 2022 - CONSUMI PARCHEGGIO OVALE;07/10/2022;134;31;213;1;Spese correnti;3;Acquisto di beni e servizi;2;Acquisto di servizi;5;Utenze e canoni;4;Energia elettrica;11/10/2022
3589;5;9999999;153,96;354,41;ENEL ENERGIA SPA;9118031536;SALDO Fatt.n. 004254918547  del 08/09/2022 AGOSTO 2022 - CONSUMI P.ZZA S.D.A. CALTANA;07/10/2022;134;31;213;1;Spese correnti;3;Acquisto di beni e servizi;2;Acquisto di servizi;5;Utenze e canoni;4;Energia elettrica;11/10/2022
3590;1;9999999;2.992,23;2.992,23;ENEL ENERGIA SPA;9118031536;SALDO Fatt.n. 004254293632  del 07/09/2022 AGOSTO 2022 - CONSUMI SEDE MUNICIPALE;07/10/2022;134;31;213;1;Spese correnti;3;Acquisto di beni e servizi;2;Acquisto di servizi;5;Utenze e canoni;4;Energia elettrica;11/10/2022
3591;1;9999999;-430,37;301,42;ENEL ENERGIA SPA;9118031536;SALDO Fatt.n. 004259208981  del 11/09/2022 NOTA DI ACCREDITO PER CONG. CONSUMI;07/10/2022;1334;30;214;1;Spese correnti;3;Acquisto di beni e servizi;2;Acquisto di servizi;5;Utenze e canoni;4;Energia elettrica;11/10/2022
3591;2;9999999;731,79;301,42;ENEL ENERGIA SPA;9118031536;SALDO Fatt.n. 004254293631  del 07/09/2022 AGOSTO 2022 - CONSUMI SC. ELEM - SC. MEDIA SMS;07/10/2022;1334;30;214;1;Spese correnti;3;Acquisto di beni e servizi;2;Acquisto di servizi;5;Utenze e canoni;4;Energia elettrica;11/10/2022
3592;1;9999999;199,1;491,67;ENEL ENERGIA SPA;9118031536;SALDO Fatt.n. 004261953052  del 14/09/2022 AGOSTO 2022 - CONSUMI SC. ELEM. CALTANA;07/10/2022;1334;30;214;1;Spese correnti;3;Acquisto di beni e servizi;2;Acquisto di servizi;5;Utenze e canoni;4;Energia elettrica;11/10/2022
3592;2;9999999;292,57;491,67;ENEL ENERGIA SPA;9118031536;SALDO Fatt.n. 004254293652  del 07/09/2022 AGOSTO 2022 - CONSUMI SC. ELEM. CASELLE;07/10/2022;1334;30;214;1;Spese correnti;3;Acquisto di beni e servizi;2;Acquisto di servizi;5;Utenze e canoni;4;Energia elettrica;11/10/2022
3593;1;9999999;131,43;131,43;ENEL ENERGIA SPA;9118031536;ACCONTO Fatt.n. 004254293634  del 07/09/2022 AGOSTO 2022 - CONSUMI PALESTRA CALTANA;07/10/2022;1334;30;214;1;Spese correnti;3;Acquisto di beni e servizi;2;Acquisto di servizi;5;Utenze e canoni;4;Energia elettrica;11/10/2022
3594;1;9999999;147,95;147,95;ENEL ENERGIA SPA;9118031536;ACCONTO Fatt.n. 004254293643  del 07/09/2022 AGOSTO 2022 - CONSUMI PALESTRA SMS;07/10/2022;1334;30;214;1;Spese correnti;3;Acquisto di beni e servizi;2;Acquisto di servizi;5;Utenze e canoni;4;Energia elettrica;11/10/2022
3595;1;9999999;129;129;ENEL ENERGIA SPA;9118031536;ACCONTO Fatt.n. 004254293646  del 07/09/2022 AGOSTO 2022 - CONSUMI SC. ELEM - PALESTRA - ASILO S.ANGELO;07/10/2022;1334;30;214;1;Spese correnti;3;Acquisto di beni e servizi;2;Acquisto di servizi;5;Utenze e canoni;4;Energia elettrica;11/10/2022
3596;1;9999999;385,49;385,49;ENEL ENERGIA SPA;9118031536;ACCONTO Fatt.n. 004254293646  del 07/09/2022 AGOSTO 2022 - CONSUMI SC. ELEM - PALESTRA - ASILO S.ANGELO;07/10/2022;1334;30;214;1;Spese correnti;3;Acquisto di beni e servizi;2;Acquisto di servizi;5;Utenze e canoni;4;Energia elettrica;11/10/2022
3597;1;9999999;130;130;ENEL ENERGIA SPA;9118031536;ACCONTO Fatt.n. 004254293636  del 07/09/2022 AGOSTO 2022 - CONSUMI SC. ELEM - PALESTRA STIGLIANO;07/10/2022;1334;30;214;1;Spese correnti;3;Acquisto di beni e servizi;2;Acquisto di servizi;5;Utenze e canoni;4;Energia elettrica;11/10/2022
3598;1;9999999;110,27;110,27;ENEL ENERGIA SPA;9118031536;ACCONTO Fatt.n. 004254293636  del 07/09/2022 AGOSTO 2022 - CONSUMI SC. ELEM - PALESTRA STIGLIANO;07/10/2022;1334;30;214;1;Spese correnti;3;Acquisto di beni e servizi;2;Acquisto di servizi;5;Utenze e canoni;4;Energia elettrica;11/10/2022
3599;1;9999999;100;100;ENEL ENERGIA SPA;9118031536;ACCONTO Fatt.n. 004254293658  del 07/09/2022 AGOSTO 2022 - CONSUMI SC. ELEM - PALESTRA VETERNIGO;07/10/2022;1334;30;214;1;Spese correnti;3;Acquisto di beni e servizi;2;Acquisto di servizi;5;Utenze e canoni;4;Energia elettrica;11/10/2022
3600;1;9999999;163,57;163,57;ENEL ENERGIA SPA;9118031536;ACCONTO Fatt.n. 004254293658  del 07/09/2022 AGOSTO 2022 - CONSUMI SC. ELEM - PALESTRA VETERNIGO;07/10/2022;1334;30;214;1;Spese correnti;3;Acquisto di beni e servizi;2;Acquisto di servizi;5;Utenze e canoni;4;Energia elettrica;11/10/2022
3601;1;9999999;69,49;69,49;ENEL ENERGIA SPA;9118031536;ACCONTO Fatt.n. 004254293637  del 07/09/2022 AGOSTO 2022 - CONSUMI PALESTRA CASELLE;07/10/2022;1334;30;214;1;Spese correnti;3;Acquisto di beni e servizi;2;Acquisto di servizi;5;Utenze e canoni;4;Energia elettrica;11/10/2022
3602;1;9999999;87,29;87,29;ENEL ENERGIA SPA;9118031536;ACCONTO Fatt.n. 004261953051  del 14/09/2022 AGOSTO 2022 - CONSUMI VILLA FARSETTI;07/10/2022;1834;0;215;1;Spese correnti;3;Acquisto di beni e servizi;2;Acquisto di servizi;5;Utenze e canoni;4;Energia elettrica;11/10/2022
3603;1;9999999;136,57;136,57;ENEL ENERGIA SPA;9118031536;SALDO Fatt.n. 004254293639  del 07/09/2022 AGOSTO 2022 - CONSUMI CAMPO DA CALCIO SMS;07/10/2022;1934;0;216;1;Spese correnti;3;Acquisto di beni e servizi;2;Acquisto di servizi;5;Utenze e canoni;4;Energia elettrica;11/10/2022
3604;1;9999999;156,95;156,95;ENEL ENERGIA SPA;9118031536;SALDO Fatt.n. 004254293644  del 07/09/2022 AGOSTO 2022 - CONSUMI CAMPO DA CALCIO PARROCCCHIA CASELLE;07/10/2022;1934;0;216;1;Spese correnti;3;Acquisto di beni e servizi;2;Acquisto di servizi;5;Utenze e canoni;4;Energia elettrica;11/10/2022
3605;1;9999999;44,52;44,52;ENEL ENERGIA SPA;9118031536;SALDO Fatt.n. 004254293659  del 07/09/2022 AGOSTO 2022 - CONSUMI IMP. SPORT. CASELLE;07/10/2022;1934;0;216;1;Spese correnti;3;Acquisto di beni e servizi;2;Acquisto di servizi;5;Utenze e canoni;4;Energia elettrica;11/10/2022
3606;1;9999999;131,42;131,42;ENEL ENERGIA SPA;9118031536;SALDO Fatt.n. 004254293634  del 07/09/2022 AGOSTO 2022 - CONSUMI PALESTRA CALTANA;07/10/2022;1934;0;216;1;Spese correnti;3;Acquisto di beni e servizi;2;Acquisto di servizi;5;Utenze e canoni;4;Energia elettrica;11/10/2022
3607;1;9999999;147,96;147,96;ENEL ENERGIA SPA;9118031536;SALDO Fatt.n. 004254293643  del 07/09/2022 AGOSTO 2022 - CONSUMI PALESTRA SMS;07/10/2022;1934;0;216;1;Spese correnti;3;Acquisto di beni e servizi;2;Acquisto di servizi;5;Utenze e canoni;4;Energia elettrica;11/10/2022
3608;1;9999999;129;129;ENEL ENERGIA SPA;9118031536;SALDO Fatt.n. 004254293646  del 07/09/2022 AGOSTO 2022 - CONSUMI SC. ELEM - PALESTRA - ASILO S.ANGELO;07/10/2022;1934;0;216;1;Spese correnti;3;Acquisto di beni e servizi;2;Acquisto di servizi;5;Utenze e canoni;4;Energia elettrica;11/10/2022
3609;1;9999999;130;130;ENEL ENERGIA SPA;9118031536;SALDO Fatt.n. 004254293636  del 07/09/2022 AGOSTO 2022 - CONSUMI SC. ELEM - PALESTRA STIGLIANO;07/10/2022;1934;0;216;1;Spese correnti;3;Acquisto di beni e servizi;2;Acquisto di servizi;5;Utenze e canoni;4;Energia elettrica;11/10/2022
3610;1;9999999;100;100;ENEL ENERGIA SPA;9118031536;SALDO Fatt.n. 004254293658  del 07/09/2022 AGOSTO 2022 - CONSUMI SC. ELEM - PALESTRA VETERNIGO;07/10/2022;1934;0;216;1;Spese correnti;3;Acquisto di beni e servizi;2;Acquisto di servizi;5;Utenze e canoni;4;Energia elettrica;11/10/2022
3611;1;9999999;69,5;69,5;ENEL ENERGIA SPA;9118031536;SALDO Fatt.n. 004254293637  del 07/09/2022 AGOSTO 2022 - CONSUMI PALESTRA CASELLE;07/10/2022;1934;0;216;1;Spese correnti;3;Acquisto di beni e servizi;2;Acquisto di servizi;5;Utenze e canoni;4;Energia elettrica;11/10/2022
3612;1;9999999;721,13;721,13;ENEL ENERGIA SPA;9118031536;ACCONTO Fatt.n. 004261953051  del 14/09/2022 AGOSTO 2022 - CONSUMI VILLA FARSETTI;07/10/2022;2734;0;217;1;Spese correnti;3;Acquisto di beni e servizi;2;Acquisto di servizi;5;Utenze e canoni;4;Energia elettrica;11/10/2022
3613;1;9999999;318,48;318,48;ENEL ENERGIA SPA;9118031536;SALDO Fatt.n. 004254173623  del 07/09/2022 AGOSTO 2022 - CONSUMI MAGAZZINO COMUNALE;07/10/2022;3534;0;218;1;Spese correnti;3;Acquisto di beni e servizi;2;Acquisto di servizi;5;Utenze e canoni;4;Energia elettrica;11/10/2022
3614;1;9999999;90,22;90,22;ENEL ENERGIA SPA;9118031536;SALDO Fatt.n. 004254293647  del 07/09/2022 AGOSTO 2022 - CONSUMI ECOCENTRO COMUNALE;07/10/2022;3534;0;218;1;Spese correnti;3;Acquisto di beni e servizi;2;Acquisto di servizi;5;Utenze e canoni;4;Energia elettrica;11/10/2022
3615;1;9999999;9.651,69;24.372,78;ENEL ENERGIA SPA;9118031536;SALDO Fatt.n. 004262908064  del 22/09/2022 AGOSTO 2022 - CONSUMI ILLUMINAZIONE PUBBLICA;07/10/2022;3544;0;220;1;Spese correnti;3;Acquisto di beni e servizi;2;Acquisto di servizi;15;Contratti di servizio pubblico;15;Contratti di servizio per l'illuminazione pubblica;11/10/2022
3615;2;9999999;14.721,09;24.372,78;ENEL ENERGIA SPA;9118031536;SALDO Fatt.n. 004262908063  del 22/09/2022 AGOSTO 2022 - CONSUMI ILLUMINAZIONE PUBBLICA;07/10/2022;3544;0;220;1;Spese correnti;3;Acquisto di beni e servizi;2;Acquisto di servizi;15;Contratti di servizio pubblico;15;Contratti di servizio per l'illuminazione pubblica;11/10/2022
3616;1;9999999;16,03;16,03;ENEL ENERGIA SPA;9118031536;SALDO Fatt.n. 004254293628  del 07/09/2022 AGOSTO 2022 - CONSUMI ILLUMINAZIONE PUBBLICA;07/10/2022;3544;0;220;1;Spese correnti;3;Acquisto di beni e servizi;2;Acquisto di servizi;15;Contratti di servizio pubblico;15;Contratti di servizio per l'illuminazione pubblica;11/10/2022
3617;1;9999999;9,37;416,86;ENEL ENERGIA SPA;9118031536;SALDO Fatt.n. 004261456816  del 13/09/2022 AGOSTO 2022 - CONSUMI ILLUMINAZIONE PUBBLICA;07/10/2022;3544;0;220;1;Spese correnti;3;Acquisto di beni e servizi;2;Acquisto di servizi;15;Contratti di servizio pubblico;15;Contratti di servizio per l'illuminazione pubblica;11/10/2022
3617;2;9999999;10,58;416,86;ENEL ENERGIA SPA;9118031536;SALDO Fatt.n. 004254293653  del 07/09/2022 AGOSTO 2022 - CONSUMI ILLUMINAZIONE PUBBLICA;07/10/2022;3544;0;220;1;Spese correnti;3;Acquisto di beni e servizi;2;Acquisto di servizi;15;Contratti di servizio pubblico;15;Contratti di servizio per l'illuminazione pubblica;11/10/2022
3617;3;9999999;26,13;416,86;ENEL ENERGIA SPA;9118031536;SALDO Fatt.n. 004254293630  del 07/09/2022 AGOSTO 2022 - CONSUMI ILLUMINAZIONE PUBBLICA;07/10/2022;3544;0;220;1;Spese correnti;3;Acquisto di beni e servizi;2;Acquisto di servizi;15;Contratti di servizio pubblico;15;Contratti di servizio per l'illuminazione pubblica;11/10/2022
3617;4;9999999;53,34;416,86;ENEL ENERGIA SPA;9118031536;SALDO Fatt.n. 004254293655  del 07/09/2022 AGOSTO 2022 - CONSUMI ILLUMINAZIONE PUBBLICA;07/10/2022;3544;0;220;1;Spese correnti;3;Acquisto di beni e servizi;2;Acquisto di servizi;15;Contratti di servizio pubblico;15;Contratti di servizio per l'illuminazione pubblica;11/10/2022
3617;5;9999999;67,47;416,86;ENEL ENERGIA SPA;9118031536;SALDO Fatt.n. 004254293645  del 07/09/2022 AGOSTO 2022 - CONSUMI ILLUMINAZIONE PUBBLICA;07/10/2022;3544;0;220;1;Spese correnti;3;Acquisto di beni e servizi;2;Acquisto di servizi;15;Contratti di servizio pubblico;15;Contratti di servizio per l'illuminazione pubblica;11/10/2022
3617;6;9999999;121,24;416,86;ENEL ENERGIA SPA;9118031536;SALDO Fatt.n. 004254293638  del 07/09/2022 AGOSTO 2022 - CONSUMI ILLUMINAZIONE PUBBLICA;07/10/2022;3544;0;220;1;Spese correnti;3;Acquisto di beni e servizi;2;Acquisto di servizi;15;Contratti di servizio pubblico;15;Contratti di servizio per l'illuminazione pubblica;11/10/2022
3617;7;9999999;128,73;416,86;ENEL ENERGIA SPA;9118031536;SALDO Fatt.n. 004254293650  del 07/09/2022 AGOSTO 2022 - CONSUMI ILLUMINAZIONE PUBBLICA;07/10/2022;3544;0;220;1;Spese correnti;3;Acquisto di beni e servizi;2;Acquisto di servizi;15;Contratti di servizio pubblico;15;Contratti di servizio per l'illuminazione pubblica;11/10/2022
3618;1;9999999;629,19;629,19;ENEL ENERGIA SPA;9118031536;SALDO Fatt.n. 004256627550  del 09/09/2022 AGOSTO 2022 - CONSUMI VILLA FARSETTI;07/10/2022;4234;0;221;1;Spese correnti;3;Acquisto di beni e servizi;2;Acquisto di servizi;5;Utenze e canoni;4;Energia elettrica;11/10/2022
3619;1;9999999;41,09;41,09;ENEL ENERGIA SPA;9118031536;SALDO Fatt.n. 004261953051  del 14/09/2022 AGOSTO 2022 - CONSUMI VILLA FARSETTI;07/10/2022;4234;0;221;1;Spese correnti;3;Acquisto di beni e servizi;2;Acquisto di servizi;5;Utenze e canoni;4;Energia elettrica;11/10/2022
3620;1;9999999;128;128;ENEL ENERGIA SPA;9118031536;SALDO Fatt.n. 004254293651  del 07/09/2022 AGOSTO 2022 - CONSUMI CIMITERO CALTANA - LAMPADE VOTIVE;07/10/2022;4434;0;219;1;Spese correnti;3;Acquisto di beni e servizi;2;Acquisto di servizi;5;Utenze e canoni;4;Energia elettrica;11/10/2022
3621;1;9999999;39;39;ENEL ENERGIA SPA;9118031536;SALDO Fatt.n. 004254293641  del 07/09/2022 AGOSTO 2022 - CONSUMI CIMITERO S.ANGELO - LAMPADE VOTIVE;07/10/2022;4434;0;219;1;Spese correnti;3;Acquisto di beni e servizi;2;Acquisto di servizi;5;Utenze e canoni;4;Energia elettrica;11/10/2022
3622;1;9999999;52;52;ENEL ENERGIA SPA;9118031536;SALDO Fatt.n. 004254293648  del 07/09/2022 AGOSTO 2022 - CONSUMI CIMITERO CASELLE - LAMPADE VOTIVE;07/10/2022;4434;0;219;1;Spese correnti;3;Acquisto di beni e servizi;2;Acquisto di servizi;5;Utenze e canoni;4;Energia elettrica;11/10/2022
3623;1;9999999;39;39;ENEL ENERGIA SPA;9118031536;SALDO Fatt.n. 004254293640  del 07/09/2022 AGOSTO 2022 - CONSUMI CIMITERO VETERNIGO;07/10/2022;4434;0;219;1;Spese correnti;3;Acquisto di beni e servizi;2;Acquisto di servizi;5;Utenze e canoni;4;Energia elettrica;11/10/2022
3624;1;9999999;47,38;47,38;ENEL ENERGIA SPA;9118031536;SALDO Fatt.n. 004254293633  del 07/09/2022 AGOSTO 2022 - CONSUMI CIMITERO STIGLIANO - LAMPADE VOTIVE;07/10/2022;4434;0;219;1;Spese correnti;3;Acquisto di beni e servizi;2;Acquisto di servizi;5;Utenze e canoni;4;Energia elettrica;11/10/2022
3625;1;9999999;43;43;ENEL ENERGIA SPA;9118031536;SALDO Fatt.n. 004254918548  del 08/09/2022 AGOSTO 2022 - CONSUMI CIMITERO SMS - LAMPADE VOTIVE;07/10/2022;4434;0;219;1;Spese correnti;3;Acquisto di beni e servizi;2;Acquisto di servizi;5;Utenze e canoni;4;Energia elettrica;11/10/2022
3629;1;9999999;1.416,85;1.416,85;AGENZIA DELLE ENTRATE - IVA; ;LIQUIDAZIONE IVA COMMERCIALE MESE DI SETTEMBRE 2022;10/10/2022;291;0;836;1;Spese correnti;10;Altre spese correnti;3;Versamenti IVA a debito;1;Versamenti IVA a debito per le gestioni commerciali;1;Versamenti IVA a debito per le gestioni commerciali;14/10/2022
3632;1;9999999;30;30;AUTORITA'VIGILANZA SUI CONTRATTI PUBBLIC; ;QUOTA ANAC codice gara 8540648 MANUTENZIONE STRAORDINARIA STRADE;11/10/2022;8558;0;1084;2;Spese in conto capitale;2;Investimenti fissi lordi e acquisto di terreni;1;Beni materiali;9;Beni immobili;12;Infrastrutture stradali;12/10/2022
3633;1;9999999;30;30;AUTORITA'VIGILANZA SUI CONTRATTI PUBBLIC; ;QUOTA  ANAC codice gara 8554687 LAVORI PISTA CICLO PEDONALE CALTANA;11/10/2022;8563;0;1372;2;Spese in conto capitale;2;Investimenti fissi lordi e acquisto di terreni;1;Beni materiali;9;Beni immobili;12;Infrastrutture stradali;12/10/2022
3634;1;9999999;30;30;AUTORITA'VIGILANZA SUI CONTRATTI PUBBLIC; ;QUOTA ANAC gara 8573756 MANUTENZIONE STRAORDINARIA TERRITORIO;11/10/2022;8558;0;403;2;Spese in conto capitale;2;Investimenti fissi lordi e acquisto di terreni;1;Beni materiali;9;Beni immobili;12;Infrastrutture stradali;12/10/2022
3635;1;9999999;30;30;AUTORITA'VIGILANZA SUI CONTRATTI PUBBLIC; ;QUOTA ANAC codice gara 85856172 MESSA IN SICUREZZA MOBILITA VIARIA;11/10/2022;8558;0;1110;2;Spese in conto capitale;2;Investimenti fissi lordi e acquisto di terreni;1;Beni materiali;9;Beni immobili;12;Infrastrutture stradali;12/10/2022
3636;1;9999999;30;30;AUTORITA'VIGILANZA SUI CONTRATTI PUBBLIC; ;QUOTA ANAC codice gara 8664467  LAVORI DI SOSTITUZIONE INFISSI PRESSO LA SCUOLA PRIMARIA E. FERMI DI CALTANA AI FINI DELLEFFICIENTAMENTO ENERGETICO,;11/10/2022;7600;1;637;2;Spese in conto capitale;2;Investimenti fissi lordi e acquisto di terreni;1;Beni materiali;9;Beni immobili;3;Fabbricati ad uso scolastico;12/10/2022
3654;1;9999999;480;480;OMESSO NOMINATIVO NEL RISPETTO DELLA NORMATIVA SULLA PROTEZIONE DATI PERSONALI; ;EROGAZIONE CONTRIBUTO ICD B - 1 SEMESTRE 2022;12/10/2022;3957;50;727;1;Spese correnti;4;Trasferimenti correnti;2;Trasferimenti correnti a Famiglie;2;Interventi assistenziali;999;Altri assegni e sussidi assistenziali;14/10/2022
3655;1;9999999;720;720;OMESSO NOMINATIVO NEL RISPETTO DELLA NORMATIVA SULLA PROTEZIONE DATI PERSONALI; ;EROGAZIONE CONTRIBUTO ICD B - 1 SEMESTRE 2022;12/10/2022;3957;50;731;1;Spese correnti;4;Trasferimenti correnti;2;Trasferimenti correnti a Famiglie;2;Interventi assistenziali;999;Altri assegni e sussidi assistenziali;14/10/2022
3656;1;9999999;720;720;OMESSO NOMINATIVO NEL RISPETTO DELLA NORMATIVA SULLA PROTEZIONE DATI PERSONALI; ;EROGAZIONE CONTRIBUTO ICD B - 1 SEMESTRE 2022;12/10/2022;3957;50;734;1;Spese correnti;4;Trasferimenti correnti;2;Trasferimenti correnti a Famiglie;2;Interventi assistenziali;999;Altri assegni e sussidi assistenziali;14/10/2022
3657;1;9999999;250;250;OMESSO NOMINATIVO NEL RISPETTO DELLA NORMATIVA SULLA PROTEZIONE DATI PERSONALI; ;PROGETTO RIA - SETTEMBRE 2022;12/10/2022;3957;54;373;1;Spese correnti;4;Trasferimenti correnti;2;Trasferimenti correnti a Famiglie;5;Altri trasferimenti a famiglie;999;Altri trasferimenti a famiglie n.a.c.;14/10/2022
3658;1;9999999;250;250;OMESSO NOMINATIVO NEL RISPETTO DELLA NORMATIVA SULLA PROTEZIONE DATI PERSONALI; ;PROGETTO RIA - SETTEMBRE 2022;12/10/2022;3957;54;373;1;Spese correnti;4;Trasferimenti correnti;2;Trasferimenti correnti a Famiglie;5;Altri trasferimenti a famiglie;999;Altri trasferimenti a famiglie n.a.c.;20/10/2022
3659;1;9999999;250;250;OMESSO NOMINATIVO NEL RISPETTO DELLA NORMATIVA SULLA PROTEZIONE DATI PERSONALI; ;PROGETTO RIA - SETTEMBRE 2022;12/10/2022;3957;54;373;1;Spese correnti;4;Trasferimenti correnti;2;Trasferimenti correnti a Famiglie;5;Altri trasferimenti a famiglie;999;Altri trasferimenti a famiglie n.a.c.;20/10/2022
3660;1;9999999;250;250;OMESSO NOMINATIVO NEL RISPETTO DELLA NORMATIVA SULLA PROTEZIONE DATI PERSONALI; ;PROGETTO RIA - SETTEMBRE 2022;12/10/2022;3957;54;373;1;Spese correnti;4;Trasferimenti correnti;2;Trasferimenti correnti a Famiglie;5;Altri trasferimenti a famiglie;999;Altri trasferimenti a famiglie n.a.c.;14/10/2022
3661;1;0;100;100;OMESSO NOMINATIVO NEL RISPETTO DELLA NORMATIVA SULLA PROTEZIONE DATI PERSONALI; ;OTTOBRE 2022 MINIMO VITALE;12/10/2022;4157;0;647;1;Spese correnti;4;Trasferimenti correnti;2;Trasferimenti correnti a Famiglie;2;Interventi assistenziali;999;Altri assegni e sussidi assistenziali;12/10/2022
3662;1;9999999;100;100;OMESSO NOMINATIVO NEL RISPETTO DELLA NORMATIVA SULLA PROTEZIONE DATI PERSONALI; ;OTTOBRE 2022 MINIMO VITALE;12/10/2022;4157;0;778;1;Spese correnti;4;Trasferimenti correnti;2;Trasferimenti correnti a Famiglie;2;Interventi assistenziali;999;Altri assegni e sussidi assistenziali;10/11/2022
3663;1;9999999;100;100;OMESSO NOMINATIVO NEL RISPETTO DELLA NORMATIVA SULLA PROTEZIONE DATI PERSONALI; ;OTTOBRE 2022 MINIMO VITALE;12/10/2022;4157;0;613;1;Spese correnti;4;Trasferimenti correnti;2;Trasferimenti correnti a Famiglie;2;Interventi assistenziali;999;Altri assegni e sussidi assistenziali;27/10/2022
3664;1;9999999;100;100;OMESSO NOMINATIVO NEL RISPETTO DELLA NORMATIVA SULLA PROTEZIONE DATI PERSONALI; ;OTTOBRE 2022 MINIMO VITALE;12/10/2022;4157;0;646;1;Spese correnti;4;Trasferimenti correnti;2;Trasferimenti correnti a Famiglie;2;Interventi assistenziali;999;Altri assegni e sussidi assistenziali;27/10/2022
3665;1;9999999;150;150;OMESSO NOMINATIVO NEL RISPETTO DELLA NORMATIVA SULLA PROTEZIONE DATI PERSONALI; ;OTTOBRE 2022 MINIMO VITALE;12/10/2022;4157;0;779;1;Spese correnti;4;Trasferimenti correnti;2;Trasferimenti correnti a Famiglie;2;Interventi assistenziali;999;Altri assegni e sussidi assistenziali;24/11/2022
3666;1;9999999;100;100;OMESSO NOMINATIVO NEL RISPETTO DELLA NORMATIVA SULLA PROTEZIONE DATI PERSONALI; ;OTTOBRE 2022 MINIMO VITALE;12/10/2022;4157;0;648;1;Spese correnti;4;Trasferimenti correnti;2;Trasferimenti correnti a Famiglie;2;Interventi assistenziali;999;Altri assegni e sussidi assistenziali;26/10/2022
3667;1;9999999;200;200;OMESSO NOMINATIVO NEL RISPETTO DELLA NORMATIVA SULLA PROTEZIONE DATI PERSONALI; ;OTTOBRE  E ARRETRATI SETTEMBRE 2022 MINIMO VITALE;12/10/2022;4157;0;838;1;Spese correnti;4;Trasferimenti correnti;2;Trasferimenti correnti a Famiglie;2;Interventi assistenziali;999;Altri assegni e sussidi assistenziali;04/11/2022
3668;1;9999999;700;700;OMESSO NOMINATIVO NEL RISPETTO DELLA NORMATIVA SULLA PROTEZIONE DATI PERSONALI; ;OTTOBRE 2022 PROGETTO RILEVANZA SOCIALE;12/10/2022;4157;0;91;1;Spese correnti;4;Trasferimenti correnti;2;Trasferimenti correnti a Famiglie;2;Interventi assistenziali;999;Altri assegni e sussidi assistenziali;14/10/2022
3669;1;0;280;280;OMESSO NOMINATIVO NEL RISPETTO DELLA NORMATIVA SULLA PROTEZIONE DATI PERSONALI; ;OTTOBRE 2022 MINIMO VITALE;12/10/2022;4157;0;837;1;Spese correnti;4;Trasferimenti correnti;2;Trasferimenti correnti a Famiglie;2;Interventi assistenziali;999;Altri assegni e sussidi assistenziali;12/10/2022
3670;1;9999999;150;150;OMESSO NOMINATIVO NEL RISPETTO DELLA NORMATIVA SULLA PROTEZIONE DATI PERSONALI; ;OTTOBRE 2022 MINIMO VITALE;12/10/2022;4157;0;615;1;Spese correnti;4;Trasferimenti correnti;2;Trasferimenti correnti a Famiglie;2;Interventi assistenziali;999;Altri assegni e sussidi assistenziali;26/10/2022
3671;1;9999999;172;172;OMESSO NOMINATIVO NEL RISPETTO DELLA NORMATIVA SULLA PROTEZIONE DATI PERSONALI; ;OTTOBRE 2022 MINIMO VITALE (trincanato mauro);12/10/2022;3757;0;784;1;Spese correnti;4;Trasferimenti correnti;2;Trasferimenti correnti a Famiglie;5;Altri trasferimenti a famiglie;999;Altri trasferimenti a famiglie n.a.c.;14/10/2022
3672;1;9999999;1.500,00;1.500,00;ASSOCIAZIONE CULTURALE NUSICA.ORG; ;CONTRIBUTO ECONOMICO A SOSTEGNO ATTIVITA CULTURALE REALIZZAZIONE DELLE ATTIVIT CULTURALI NEL 2022;12/10/2022;1859;0;376;1;Spese correnti;4;Trasferimenti correnti;4;Trasferimenti correnti a Istituzioni Sociali Private;1;Trasferimenti correnti a Istituzioni Sociali Private;1;Trasferimenti correnti a Istituzioni Sociali Private;14/10/2022
3675;1;9999999;126,67;126,67;KUWAIT PETROLEUM ITALIA SPA;Z543524413;ACCONTO Fatt.n. PJ05932978  del 30/09/2022 FORNITURA CARBURANTE SETTEMBRE 2022;13/10/2022;521;0;186;1;Spese correnti;3;Acquisto di beni e servizi;1;Acquisto di beni;2;Altri beni di consumo;999;Altri beni e materiali di consumo n.a.c.;17/10/2022
3676;1;9999999;146,96;146,96;IDRONORD SRL;Z4B3500027;SALDO Fatt.n. 2434  del 28/09/2022 MATERIALE EDILE PER MANUTENZIONE;13/10/2022;3538;0;117;1;Spese correnti;3;Acquisto di beni e servizi;2;Acquisto di servizi;9;Manutenzione ordinaria e riparazioni;8;Manutenzione ordinaria e riparazioni di beni immobili;17/10/2022
3677;1;9999999;353,76;353,76;KUWAIT PETROLEUM ITALIA SPA;Z543524413;SALDO Fatt.n. PJ05932978  del 30/09/2022 FORNITURA CARBURANTE SETTEMBRE 2022;13/10/2022;4121;0;183;1;Spese correnti;3;Acquisto di beni e servizi;1;Acquisto di beni;2;Altri beni di consumo;999;Altri beni e materiali di consumo n.a.c.;17/10/2022
3678;1;9999999;62.897,52;62.897,52;CARPENTERIA  SERRAMENTI FAVARETTO DI FAVARETTO MATTEO;93440867B2;SALDO Fatt.n. 75  del 19/09/2022 LAVORI DI SOSTITUZIONE INFISSI PRESSO LA SCUOLA ELEMENTARE CALTANA AI FINI DELLEFFICIENTAMENTO ENERGETICO;13/10/2022;7600;1;637;2;Spese in conto capitale;2;Investimenti fissi lordi e acquisto di terreni;1;Beni materiali;9;Beni immobili;3;Fabbricati ad uso scolastico;17/10/2022
3680;1;9999999;248,24;248,24;MYO SPA;ZEA378F8EC;ACCONTO Fatt.n. 2040/220024313  del 07/09/2022 MATERIALE ELETTORALE PER ELEZIONI POLITICHE 25 SETTEMBRE 2022;17/10/2022;649;0;758;1;Spese correnti;3;Acquisto di beni e servizi;2;Acquisto di servizi;99;Altri servizi;4;Altre spese per consultazioni elettorali dell'ente;24/10/2022
3681;1;9999999;0,01;0,01;MYO SPA;ZEA378F8EC;SALDO Fatt.n. 2040/220024313  del 07/09/2022 MATERIALE ELETTORALE PER ELEZIONI POLITICHE 25 SETTEMBRE 2022;17/10/2022;649;0;758;1;Spese correnti;3;Acquisto di beni e servizi;2;Acquisto di servizi;99;Altri servizi;4;Altre spese per consultazioni elettorali dell'ente;24/10/2022
3682;1;9999999;5.124,00;5.124,00;TENDA DESIGNE SNC;Z5C37DB9A6;SALDO Fatt.n. 156  del 30/09/2022 FORNITURA NUOVI TELI PER COPERTURA CABINE ELETTORALI PER ELEZIONI POLITICHE 25 SETTEMBRE 2022;17/10/2022;649;0;811;1;Spese correnti;3;Acquisto di beni e servizi;2;Acquisto di servizi;99;Altri servizi;4;Altre spese per consultazioni elettorali dell'ente;24/10/2022
3683;1;9999999;1.445,70;1.445,70;RETE UNAPPA SERVIZI;Z4C37CE47F;SALDO Fatt.n. 19  del 26/09/2022 RINNOVO CASELLA PEC COMUNE;17/10/2022;748;0;804;1;Spese correnti;3;Acquisto di beni e servizi;2;Acquisto di servizi;19;Servizi informatici e di telecomunicazioni;3;Servizi per l'interoperabilità e la cooperazione;24/10/2022
3684;1;9999999;11.920,32;11.920,32;SCANTAMBURLO PIETRO;913650419E;SALDO Fatt.n. 74  del 21/09/2022 INTERVENTI DI PULIZIA MARCIAPIEDI NEL TERRITORIO COMUNALE;17/10/2022;2549;0;337;1;Spese correnti;3;Acquisto di beni e servizi;2;Acquisto di servizi;99;Altri servizi;9;Acquisto di sevizi per verde e arredo urbano;24/10/2022
3685;1;9999999;2.500,00;2.500,00;ITALSIA SRL;Z6937A381A;SALDO Fatt.n. 43/PA  del 28/09/2022 INTERVENTI DI DISINFESTAZIONE SU AREE VERDI COMUNALI;17/10/2022;2549;0;768;1;Spese correnti;3;Acquisto di beni e servizi;2;Acquisto di servizi;99;Altri servizi;9;Acquisto di sevizi per verde e arredo urbano;24/10/2022
3686;1;9999999;1.677,50;1.677,50;STOCCO SNC DI STOCCO RINO & C.;ZA936B3830;SALDO Fatt.n. 169  del 30/09/2022 FORNITURA MATERIALE MARMOREO;17/10/2022;3538;0;550;1;Spese correnti;3;Acquisto di beni e servizi;2;Acquisto di servizi;9;Manutenzione ordinaria e riparazioni;8;Manutenzione ordinaria e riparazioni di beni immobili;24/10/2022
3687;1;9999999;22.862,54;22.862,54;MASIERO CRISTIAN IMPRESA INDIVIDUALE;Z4532EC302;SALDO Fatt.n. 2/PA  del 21/09/2022 INTERVENTI STRAORDINARI DI RIPRISTINO INFRASTRUTTURE STRADALI NEL TERRITORIO COMUNALE;17/10/2022;8503;0;729;2;Spese in conto capitale;2;Investimenti fissi lordi e acquisto di terreni;1;Beni materiali;9;Beni immobili;12;Infrastrutture stradali;24/10/2022
3688;1;9999999;7.784,80;7.784,80;STUDIO ASSOCIATO BETTINARDI CESTER ARCHEOLOGI;Z1633AEC13;ACCONTO Fatt.n. 44/2022  del 22/09/2022 SORVEGLIANZA ARCHEOLOGICA IN FASE DI SCAVO PER LAVORI REALIZZAZIONE REATTO N. 1 PISTA CICLO-PEDONALE VIA NOALESE SR 515;17/10/2022;8563;0;1362;2;Spese in conto capitale;2;Investimenti fissi lordi e acquisto di terreni;1;Beni materiali;9;Beni immobili;12;Infrastrutture stradali;24/10/2022
3689;1;9999999;1.830,00;1.830,00;MANENTE SPURGHI SRL;Z023795E21;SALDO Fatt.n. 01739/2022  del 29/09/2022 LAVORI DI PULIZIA CONDOTTA E VIDEO ISPEZIONE PISTA CICLO PEDONALE VIA NOALESE SR 515;17/10/2022;8563;0;1362;2;Spese in conto capitale;2;Investimenti fissi lordi e acquisto di terreni;1;Beni materiali;9;Beni immobili;12;Infrastrutture stradali;24/10/2022
3690;1;9999999;3.000,00;3.000,00;STUDIO ASSOCIATO BETTINARDI CESTER ARCHEOLOGI;Z1633AEC13;SALDO Fatt.n. 44/2022  del 22/09/2022 SORVEGLIANZA ARCHEOLOGICA IN FASE DI SCAVO PER LAVORI REALIZZAZIONE REATTO N. 1 PISTA CICLO-PEDONALE VIA NOALESE SR 515;17/10/2022;8563;0;1362;2;Spese in conto capitale;2;Investimenti fissi lordi e acquisto di terreni;1;Beni materiali;9;Beni immobili;12;Infrastrutture stradali;24/10/2022
3691;1;9999999;16,26;16,26;DOLOMITI ENERGIA SPA;9127403B39;SALDO Fatt.n. 42204389506  del 29/09/2022 AGOSTO 2022 CONSUMI ALLOGGIO VIA DON GALLERANI CALTANA;17/10/2022;134;30;231;1;Spese correnti;3;Acquisto di beni e servizi;2;Acquisto di servizi;5;Utenze e canoni;6;Gas;24/10/2022
3692;1;9999999;32,69;32,69;DOLOMITI ENERGIA SPA;9127403B39;SALDO Fatt.n. 42204389503  del 29/09/2022 AGOSTO 2022 CONSUMI SEDE MUNICIPALE;17/10/2022;134;30;231;1;Spese correnti;3;Acquisto di beni e servizi;2;Acquisto di servizi;5;Utenze e canoni;6;Gas;24/10/2022
3693;1;9999999;32,69;32,69;DOLOMITI ENERGIA SPA;9127403B39;SALDO Fatt.n. 42204389501  del 29/09/2022 AGOSTO 2022 CONSUMI SC. ELEM. CALTANA;17/10/2022;1334;30;233;1;Spese correnti;3;Acquisto di beni e servizi;2;Acquisto di servizi;5;Utenze e canoni;6;Gas;24/10/2022
3694;1;9999999;206,55;206,55;DOLOMITI ENERGIA SPA;9127403B39;ACCONTO Fatt.n. 42204389510  del 29/09/2022 AGOSTO 2022 CONSUMI PALESTRA CALTANA;17/10/2022;1334;30;233;1;Spese correnti;3;Acquisto di beni e servizi;2;Acquisto di servizi;5;Utenze e canoni;6;Gas;24/10/2022
3695;1;9999999;89,49;89,49;DOLOMITI ENERGIA SPA;9127403B39;ACCONTO Fatt.n. 42204389508  del 29/09/2022 AGOSTO 2022 CONSUMI PALESTRA SMS;17/10/2022;1334;30;233;1;Spese correnti;3;Acquisto di beni e servizi;2;Acquisto di servizi;5;Utenze e canoni;6;Gas;24/10/2022
3696;1;9999999;73,04;73,04;DOLOMITI ENERGIA SPA;9127403B39;SALDO Fatt.n. 42204389507  del 29/09/2022 AGOSTO 2022 CONSUMI SC. MEDIA - SC. ELEM. SMS;17/10/2022;1334;30;233;1;Spese correnti;3;Acquisto di beni e servizi;2;Acquisto di servizi;5;Utenze e canoni;6;Gas;24/10/2022
3697;1;9999999;191;191;DOLOMITI ENERGIA SPA;9127403B39;ACCONTO Fatt.n. 42204389499  del 29/09/2022 AGOSTO 2022 - CONSUMI SC. ELEM - PALESTRA VETERNIGO;17/10/2022;1334;30;233;1;Spese correnti;3;Acquisto di beni e servizi;2;Acquisto di servizi;5;Utenze e canoni;6;Gas;24/10/2022
3698;1;9999999;311,66;311,66;DOLOMITI ENERGIA SPA;9127403B39;ACCONTO Fatt.n. 42204389499  del 29/09/2022 AGOSTO 2022 - CONSUMI SC. ELEM - PALESTRA VETERNIGO;17/10/2022;1334;30;233;1;Spese correnti;3;Acquisto di beni e servizi;2;Acquisto di servizi;5;Utenze e canoni;6;Gas;24/10/2022
3699;1;9999999;6;6;DOLOMITI ENERGIA SPA;9127403B39;ACCONTO Fatt.n. 42204389502  del 29/09/2022 AGOSTO 2022 CONSUMI SC. ELEM - PALESTRA CASELLE;17/10/2022;1334;30;233;1;Spese correnti;3;Acquisto di beni e servizi;2;Acquisto di servizi;5;Utenze e canoni;6;Gas;24/10/2022
3700;1;9999999;20,69;20,69;DOLOMITI ENERGIA SPA;9127403B39;ACCONTO Fatt.n. 42204389502  del 29/09/2022 AGOSTO 2022 CONSUMI SC. ELEM - PALESTRA CASELLE;17/10/2022;1334;30;233;1;Spese correnti;3;Acquisto di beni e servizi;2;Acquisto di servizi;5;Utenze e canoni;6;Gas;24/10/2022
3701;1;9999999;160;160;DOLOMITI ENERGIA SPA;9127403B39;ACCONTO Fatt.n. 42204389504  del 29/09/2022 AGOSTO 2022 CONSUMI SC. ELEM - PALESTRA - ASILO S.ANGELO;17/10/2022;1334;30;233;1;Spese correnti;3;Acquisto di beni e servizi;2;Acquisto di servizi;5;Utenze e canoni;6;Gas;24/10/2022
3702;1;9999999;478,67;478,67;DOLOMITI ENERGIA SPA;9127403B39;ACCONTO Fatt.n. 42204389504  del 29/09/2022 AGOSTO 2022 CONSUMI SC. ELEM - PALESTRA - ASILO S.ANGELO;17/10/2022;1334;30;233;1;Spese correnti;3;Acquisto di beni e servizi;2;Acquisto di servizi;5;Utenze e canoni;6;Gas;24/10/2022
3703;1;9999999;220;220;DOLOMITI ENERGIA SPA;9127403B39;ACCONTO Fatt.n. 42204389498  del 29/09/2022 AGOSTO 2022 CONSUMI SC. ELEM. - PALESTRA STIGLIANO;17/10/2022;1334;30;233;1;Spese correnti;3;Acquisto di beni e servizi;2;Acquisto di servizi;5;Utenze e canoni;6;Gas;24/10/2022
3704;1;9999999;188,27;188,27;DOLOMITI ENERGIA SPA;9127403B39;ACCONTO Fatt.n. 42204389498  del 29/09/2022 AGOSTO 2022 CONSUMI SC. ELEM. - PALESTRA STIGLIANO;17/10/2022;1334;30;233;1;Spese correnti;3;Acquisto di beni e servizi;2;Acquisto di servizi;5;Utenze e canoni;6;Gas;24/10/2022
3705;1;9999999;206,55;206,55;DOLOMITI ENERGIA SPA;9127403B39;SALDO Fatt.n. 42204389510  del 29/09/2022 AGOSTO 2022 CONSUMI PALESTRA CALTANA;17/10/2022;1934;0;235;1;Spese correnti;3;Acquisto di beni e servizi;2;Acquisto di servizi;5;Utenze e canoni;6;Gas;24/10/2022
3706;1;9999999;18,08;18,08;DOLOMITI ENERGIA SPA;9127403B39;SALDO Fatt.n. 42204389511  del 29/09/2022 AGOSTO 2022 CONSUMI IMP. SPORT. PARROCCHIA CASELLE;17/10/2022;1934;0;235;1;Spese correnti;3;Acquisto di beni e servizi;2;Acquisto di servizi;5;Utenze e canoni;6;Gas;24/10/2022
3707;1;9999999;89,5;89,5;DOLOMITI ENERGIA SPA;9127403B39;SALDO Fatt.n. 42204389508  del 29/09/2022 AGOSTO 2022 CONSUMI PALESTRA SMS;17/10/2022;1934;0;235;1;Spese correnti;3;Acquisto di beni e servizi;2;Acquisto di servizi;5;Utenze e canoni;6;Gas;24/10/2022
3708;1;9999999;191;191;DOLOMITI ENERGIA SPA;9127403B39;SALDO Fatt.n. 42204389499  del 29/09/2022 AGOSTO 2022 - CONSUMI SC. ELEM - PALESTRA VETERNIGO;17/10/2022;1934;0;235;1;Spese correnti;3;Acquisto di beni e servizi;2;Acquisto di servizi;5;Utenze e canoni;6;Gas;24/10/2022
3709;1;9999999;6;6;DOLOMITI ENERGIA SPA;9127403B39;SALDO Fatt.n. 42204389502  del 29/09/2022 AGOSTO 2022 CONSUMI SC. ELEM - PALESTRA CASELLE;17/10/2022;1934;0;235;1;Spese correnti;3;Acquisto di beni e servizi;2;Acquisto di servizi;5;Utenze e canoni;6;Gas;24/10/2022
3710;1;9999999;160;160;DOLOMITI ENERGIA SPA;9127403B39;SALDO Fatt.n. 42204389504  del 29/09/2022 AGOSTO 2022 CONSUMI SC. ELEM - PALESTRA - ASILO S.ANGELO;17/10/2022;1934;0;235;1;Spese correnti;3;Acquisto di beni e servizi;2;Acquisto di servizi;5;Utenze e canoni;6;Gas;24/10/2022
3711;1;9999999;220;220;DOLOMITI ENERGIA SPA;9127403B39;SALDO Fatt.n. 42204389498  del 29/09/2022 AGOSTO 2022 CONSUMI SC. ELEM. - PALESTRA STIGLIANO;17/10/2022;1934;0;235;1;Spese correnti;3;Acquisto di beni e servizi;2;Acquisto di servizi;5;Utenze e canoni;6;Gas;24/10/2022
3712;1;9999999;-0,13;1,13;DOLOMITI ENERGIA SPA;9127403B39;SALDO Fatt.n. 42204389505  del 29/09/2022 AGOSTO 2022 - NOTA DI ACCREDITO PER CONG. CONSUMI;17/10/2022;3534;0;236;1;Spese correnti;3;Acquisto di beni e servizi;2;Acquisto di servizi;5;Utenze e canoni;6;Gas;24/10/2022
3712;2;9999999;1,26;1,13;DOLOMITI ENERGIA SPA;9127403B39;SALDO Fatt.n. 42204389509  del 29/09/2022 AGOSTO 2022 CONSUMI MAGAZZINO COMUNALE;17/10/2022;3534;0;236;1;Spese correnti;3;Acquisto di beni e servizi;2;Acquisto di servizi;5;Utenze e canoni;6;Gas;24/10/2022
3713;1;9999999;32,69;32,69;DOLOMITI ENERGIA SPA;9127403B39;SALDO Fatt.n. 42204389500  del 29/09/2022 AGOSTO 2022 CONSUMI VILLA FARSETTI;17/10/2022;4234;0;237;1;Spese correnti;3;Acquisto di beni e servizi;2;Acquisto di servizi;5;Utenze e canoni;6;Gas;24/10/2022
3714;1;9999999;26,21;26,21;C/C/P 15453301 SERVIZIO DI TESORERIA COM; ;SPESE GESTIONE CONTO CORRENTE POSTALE 15453301 SETTEMBRE 2022;17/10/2022;146;0;382;1;Spese correnti;3;Acquisto di beni e servizi;2;Acquisto di servizi;17;Servizi finanziari;999;Spese per servizi finanziari n.a.c.;24/10/2022
3715;1;9999999;70,76;70,76;GRAFICHE E. GASPARI SRL;ZA137A067C;SALDO Fatt.n. 15697/S  del 30/09/2022 FORNITURA REGISTRO CONTRATTI NON SOGGETTI A REGISTRAZIONE DA 50 FG.;17/10/2022;121;6;674;1;Spese correnti;3;Acquisto di beni e servizi;1;Acquisto di beni;2;Altri beni di consumo;14;Stampati specialistici;24/10/2022
3716;1;9999999;11.396,57;11.396,57;VENTUNO SAS DI GIACOMELLO CARLO, FRANCESCO & C.;Z6A3742B3B;SALDO Fatt.n. 74  del 07/10/2022 FORNITURA LIBRI DI TESTO  PER SCUOLE  ELEMENTARI  A.S. 2022-2023;17/10/2022;1357;0;633;1;Spese correnti;4;Trasferimenti correnti;2;Trasferimenti correnti a Famiglie;5;Altri trasferimenti a famiglie;999;Altri trasferimenti a famiglie n.a.c.;24/10/2022
3717;1;9999999;16,34;16,34;COMUNE DI S.MARIA DI SALA; ;CONTRIBUTO IFEL RIUSCOSSIONE IMU RENDICONTO AL 14-10-2022;17/10/2022;332;0;0;1;Spese correnti;3;Acquisto di beni e servizi;2;Acquisto di servizi;3;Aggi di riscossione;999;Altri aggi di riscossione n.a.c.;24/10/2022
3718;1;9999999;10.586,89;10.586,89;DIVERSI-AMMINISTRATORI COM.LI; ;STIPENDI MESE DI OTTOBRE 22;20/10/2022;30;99;0;1;Spese correnti;3;Acquisto di beni e servizi;2;Acquisto di servizi;1;Organi e incarichi istituzionali dell'amministrazione;1;Organi istituzionali dell'amministrazione - Indennità;26/10/2022
3719;1;9999999;14.600,30;14.600,30;OMESSO NOMINATIVO NEL RISPETTO DELLA NORMATIVA SULLA PROTEZIONE DATI PERSONALI; ;STIPENDI MESE DI OTTOBRE 22;20/10/2022;30;99;793;1;Spese correnti;3;Acquisto di beni e servizi;2;Acquisto di servizi;1;Organi e incarichi istituzionali dell'amministrazione;1;Organi istituzionali dell'amministrazione - Indennità;26/10/2022
3720;1;9999999;6.047,27;6.047,27;OMESSO NOMINATIVO NEL RISPETTO DELLA NORMATIVA SULLA PROTEZIONE DATI PERSONALI; ;STIPENDI MESE DI OTTOBRE 22;20/10/2022;30;99;794;1;Spese correnti;3;Acquisto di beni e servizi;2;Acquisto di servizi;1;Organi e incarichi istituzionali dell'amministrazione;1;Organi istituzionali dell'amministrazione - Indennità;26/10/2022
3721;1;9999999;3.833,12;3.833,12;OMESSO NOMINATIVO NEL RISPETTO DELLA NORMATIVA SULLA PROTEZIONE DATI PERSONALI; ;STIPENDI MESE DI OTTOBRE 22;20/10/2022;30;99;849;1;Spese correnti;3;Acquisto di beni e servizi;2;Acquisto di servizi;1;Organi e incarichi istituzionali dell'amministrazione;1;Organi istituzionali dell'amministrazione - Indennità;26/10/2022
3731;1;9999999;4.875,00;4.875,00;DIVERSI - DIPENDENTI COMUNALI; ;STIPENDI MESE DI OTTOBRE 22;20/10/2022;230;0;863;1;Spese correnti;3;Acquisto di beni e servizi;2;Acquisto di servizi;1;Organi e incarichi istituzionali dell'amministrazione;8;Compensi agli organi istituzionali di revisione, di controllo ed altri incarichi istituzionali dell'amministrazione;26/10/2022
3798;1;9999999;130;130;OMESSO NOMINATIVO NEL RISPETTO DELLA NORMATIVA SULLA PROTEZIONE DATI PERSONALI; ;RATA OTTOBRE 2022 CONTRIBUTO ASSEGNI DI SOLLIEVO II TRANCHE;20/10/2022;3957;50;860;1;Spese correnti;4;Trasferimenti correnti;2;Trasferimenti correnti a Famiglie;2;Interventi assistenziali;999;Altri assegni e sussidi assistenziali;25/10/2022
3799;1;9999999;390;390;OMESSO NOMINATIVO NEL RISPETTO DELLA NORMATIVA SULLA PROTEZIONE DATI PERSONALI; ;RATA OTTOBRE 2022 CONTRIBUTO ASSEGNI DI SOLLIEVO II TRANCHE;20/10/2022;3957;50;861;1;Spese correnti;4;Trasferimenti correnti;2;Trasferimenti correnti a Famiglie;2;Interventi assistenziali;999;Altri assegni e sussidi assistenziali;27/10/2022
3800;1;9999999;220;220;OMESSO NOMINATIVO NEL RISPETTO DELLA NORMATIVA SULLA PROTEZIONE DATI PERSONALI; ;RATA OTTOBRE 2022 CONTRIBUTO ASSEGNI DI SOLLIEVO II TRANCHE;20/10/2022;3957;50;862;1;Spese correnti;4;Trasferimenti correnti;2;Trasferimenti correnti a Famiglie;2;Interventi assistenziali;999;Altri assegni e sussidi assistenziali;25/10/2022
3801;1;9999999;220;220;OMESSO NOMINATIVO NEL RISPETTO DELLA NORMATIVA SULLA PROTEZIONE DATI PERSONALI; ;RATA OTTOBRE 2022 CONTRIBUTO ASSEGNI DI SOLLIEVO II TRANCHE;20/10/2022;3957;50;863;1;Spese correnti;4;Trasferimenti correnti;2;Trasferimenti correnti a Famiglie;2;Interventi assistenziali;999;Altri assegni e sussidi assistenziali;25/10/2022
3802;1;9999999;220;220;OMESSO NOMINATIVO NEL RISPETTO DELLA NORMATIVA SULLA PROTEZIONE DATI PERSONALI; ;RATA OTTOBRE 2022 CONTRIBUTO ASSEGNI DI SOLLIEVO II TRANCHE;20/10/2022;3957;50;864;1;Spese correnti;4;Trasferimenti correnti;2;Trasferimenti correnti a Famiglie;2;Interventi assistenziali;999;Altri assegni e sussidi assistenziali;25/10/2022
3803;1;9999999;0,14;6,17;BANCA MPS SPA; ;16520 COMUNE DI SANTA MARIA DI SALA CC 16520-COMMISSIONI DEL 06/10/22 (P. 31 -R. del 07/10/2022);24/10/2022;146;0;418;1;Spese correnti;3;Acquisto di beni e servizi;2;Acquisto di servizi;17;Servizi finanziari;1;Commissioni per servizi finanziari;27/10/2022
3803;2;9999999;1,03;6,17;BANCA MPS SPA; ;16520 COMUNE DI SANTA MARIA DI SALA CC 16520-COMMISSIONI DEL 11/10/22 (P. 32 -R. del 12/10/2022);24/10/2022;146;0;418;1;Spese correnti;3;Acquisto di beni e servizi;2;Acquisto di servizi;17;Servizi finanziari;1;Commissioni per servizi finanziari;27/10/2022
3803;3;9999999;5;6,17;BANCA MPS SPA; ;16520 COMUNE DI SANTA MARIA DI SALA CC 16520-COMMISSIONI DEL 05/10/22 (P. 30 -R. del 06/10/2022);24/10/2022;146;0;418;1;Spese correnti;3;Acquisto di beni e servizi;2;Acquisto di servizi;17;Servizi finanziari;1;Commissioni per servizi finanziari;27/10/2022
3804;1;9999999;1.638,66;1.638,66;IMPRESA EDILE BARIZZA SAS DI BARIZZA G&C;9131131FA9;ACCONTO Fatt.n. FE/106  del 30/09/2022 S.A.L.+ CERTIFICATO N. 2 PER MANUTENZIONE STRAORDINARIA CIMITERO CASELLE;25/10/2022;8558;0;1100;2;Spese in conto capitale;2;Investimenti fissi lordi e acquisto di terreni;1;Beni materiali;9;Beni immobili;12;Infrastrutture stradali;28/10/2022
3805;1;9999999;24.357,03;24.357,03;IMPRESA EDILE BARIZZA SAS DI BARIZZA G&C;9131131FA9;ACCONTO Fatt.n. FE/106  del 30/09/2022 S.A.L.+ CERTIFICATO N. 2 PER MANUTENZIONE STRAORDINARIA CIMITERO CASELLE;25/10/2022;8558;0;1100;2;Spese in conto capitale;2;Investimenti fissi lordi e acquisto di terreni;1;Beni materiali;9;Beni immobili;12;Infrastrutture stradali;28/10/2022
3806;1;9999999;24.129,16;24.129,16;IMPRESA EDILE BARIZZA SAS DI BARIZZA G&C;9131131FA9;ACCONTO Fatt.n. FE/106  del 30/09/2022 S.A.L.+ CERTIFICATO N. 2 PER MANUTENZIONE STRAORDINARIA CIMITERO CASELLE;25/10/2022;8020;0;1098;2;Spese in conto capitale;2;Investimenti fissi lordi e acquisto di terreni;1;Beni materiali;9;Beni immobili;15;Cimiteri;28/10/2022
3807;1;9999999;4.880,00;4.880,00;IMPRESA EDILE BARIZZA SAS DI BARIZZA G&C;9131131FA9;ACCONTO Fatt.n. FE/106  del 30/09/2022 S.A.L.+ CERTIFICATO N. 2 PER MANUTENZIONE STRAORDINARIA CIMITERO CASELLE;25/10/2022;8020;0;1098;2;Spese in conto capitale;2;Investimenti fissi lordi e acquisto di terreni;1;Beni materiali;9;Beni immobili;15;Cimiteri;28/10/2022
3808;1;9999999;9.276,00;9.276,00;IMPRESA EDILE BARIZZA SAS DI BARIZZA G&C;9131131FA9;SALDO Fatt.n. FE/106  del 30/09/2022 S.A.L.+ CERTIFICATO N. 2 PER MANUTENZIONE STRAORDINARIA CIMITERO CASELLE;25/10/2022;8020;0;1098;2;Spese in conto capitale;2;Investimenti fissi lordi e acquisto di terreni;1;Beni materiali;9;Beni immobili;15;Cimiteri;28/10/2022
3809;1;9999999;597,66;597,66;C.E.I.F. DI BESSEGA DANIELE;Z0934F37FF;ACCONTO Fatt.n. 1-5  del 30/09/2022 MATERIALE VARIO DI FERRAMENTA PER MANUTENZIONI;25/10/2022;522;0;607;1;Spese correnti;3;Acquisto di beni e servizi;1;Acquisto di beni;2;Altri beni di consumo;999;Altri beni e materiali di consumo n.a.c.;28/10/2022
3810;1;9999999;270,36;270,36;C.E.I.F. DI BESSEGA DANIELE;Z0934F37FF;SALDO Fatt.n. 1-5  del 30/09/2022 MATERIALE VARIO DI FERRAMENTA PER MANUTENZIONI;25/10/2022;522;0;830;1;Spese correnti;3;Acquisto di beni e servizi;1;Acquisto di beni;2;Altri beni di consumo;999;Altri beni e materiali di consumo n.a.c.;28/10/2022
3811;1;9999999;12.963,72;12.963,72;L'ISOLA SOC. COOPERATIVA SOCIALE;Z9137C9411;SALDO Fatt.n. 23/PA  del 07/10/2022 TRASPORTO, MONTAGGIO E SMONTAGGIO TABELLONI E SEGGI ELETTORALI IN OCCASIONE DELLE CONSULTAZIONI ELETTORALI DEL 25.09.22;25/10/2022;649;0;809;1;Spese correnti;3;Acquisto di beni e servizi;2;Acquisto di servizi;99;Altri servizi;4;Altre spese per consultazioni elettorali dell'ente;28/10/2022
3812;1;9999999;408,4;408,4;EGAF EDIZIONI SRL;ZE637F5176;SALDO Fatt.n. 2022-V-VS2-1099  del 05/10/2022 PRONTUARIO DELLE VIOLAZIONI ALLA CIRCOLAZIONE STRADALE - FORMULA ABBONAMENTO 2023 E PRODOTTI CORRELATI;25/10/2022;1121;6;827;1;Spese correnti;3;Acquisto di beni e servizi;1;Acquisto di beni;2;Altri beni di consumo;14;Stampati specialistici;28/10/2022
3813;1;9999999;433,59;433,59;EPIU' SRL - COSTRUIRE INSIEME;Z9134FFF69;SALDO Fatt.n. 25557  del 30/09/2022 FORNITURA MAT.EDILE - STRAD. PER MANUTENZIONE;25/10/2022;3538;0;116;1;Spese correnti;3;Acquisto di beni e servizi;2;Acquisto di servizi;9;Manutenzione ordinaria e riparazioni;8;Manutenzione ordinaria e riparazioni di beni immobili;28/10/2022
3814;1;9999999;11,81;76,18;SONEPAR ITALIA  SPA;Z6B350148B;SALDO Fatt.n. 0031252785  del 30/09/2022 MATERIALE ELETTRICO PER MANUTENZIONE;25/10/2022;3538;0;121;1;Spese correnti;3;Acquisto di beni e servizi;2;Acquisto di servizi;9;Manutenzione ordinaria e riparazioni;4;Manutenzione ordinaria e riparazioni di impianti e macchinari;28/10/2022
3814;2;9999999;64,37;76,18;SONEPAR ITALIA  SPA;Z6B350148B;SALDO Fatt.n. 0031252786  del 30/09/2022 MATERIALE ELETTRICO PER MANUTENZIONI;25/10/2022;3538;0;121;1;Spese correnti;3;Acquisto di beni e servizi;2;Acquisto di servizi;9;Manutenzione ordinaria e riparazioni;4;Manutenzione ordinaria e riparazioni di impianti e macchinari;28/10/2022
3815;1;9999999;466,04;466,04;P. & G. AUTOSERVICE SNC;Z9B37BBA28;SALDO Fatt.n. 3PA  del 04/10/2022 MANUTENZIONE PARCO MEZZI COMUNALI AGOSTO 2022;25/10/2022;3538;0;788;1;Spese correnti;3;Acquisto di beni e servizi;2;Acquisto di servizi;9;Manutenzione ordinaria e riparazioni;1;Manutenzione ordinaria e riparazioni di mezzi di trasporto ad uso civile, di sicurezza e ordine pubblico;28/10/2022
3816;1;9999999;1.805,30;1.805,30;OMESSO NOMINATIVO NEL RISPETTO DELLA NORMATIVA SULLA PROTEZIONE DATI PERSONALI; ;SALDO Fatt.n. 505/AIPA  del 30/09/2022 RETTA MESE DI SETTEMBRE 2022 - UTENTE C.G.;25/10/2022;3844;0;672;1;Spese correnti;3;Acquisto di beni e servizi;2;Acquisto di servizi;15;Contratti di servizio pubblico;8;Contratti di servizio di assistenza sociale residenziale e semiresidenziale;28/10/2022
3817;1;9999999;5.900,04;5.900,04;SOC. SOCIOCULTURALE COOP. SOCIALE;80171200B8;SALDO Fatt.n. 3419 PAS  del 30/09/2022 PERIODO 01-15 LUGLIO  2022 - ASSISTENZA DOMICILIARE E TRASPORTO;25/10/2022;3944;0;975;1;Spese correnti;3;Acquisto di beni e servizi;2;Acquisto di servizi;15;Contratti di servizio pubblico;9;Contratti di servizio di assistenza sociale domiciliare;28/10/2022
3818;1;9999999;6.076,10;20.655,37;SOC. SOCIOCULTURALE COOP. SOCIALE;9091941B0E;SALDO Fatt.n. 3424 PAS  del 30/09/2022 PERIODO 16-31 LUGLIO  2022 - ASSISTENZA DOMICILIARE E TRASPORTO;25/10/2022;3944;0;141;1;Spese correnti;3;Acquisto di beni e servizi;2;Acquisto di servizi;15;Contratti di servizio pubblico;9;Contratti di servizio di assistenza sociale domiciliare;28/10/2022
3818;2;9999999;14.579,27;20.655,37;SOC. SOCIOCULTURALE COOP. SOCIALE;9091941B0E;SALDO Fatt.n. 3425 PAS  del 30/09/2022 AGOSTO  2022 - ASSISTENZA DOMICILIARE E TRASPORTO;25/10/2022;3944;0;141;1;Spese correnti;3;Acquisto di beni e servizi;2;Acquisto di servizi;15;Contratti di servizio pubblico;9;Contratti di servizio di assistenza sociale domiciliare;28/10/2022
3819;1;9999999;5,22;5,22;ENEL ENERGIA SPA;9118031536;ACCONTO Fatt.n. 004263180117  del 07/10/2022 SETTEMBRE 2022 - CONSUMI CIMITERO CALTANA - LAMPADE VOTIVE;25/10/2022;134;30;212;1;Spese correnti;3;Acquisto di beni e servizi;2;Acquisto di servizi;5;Utenze e canoni;4;Energia elettrica;28/10/2022
3820;1;9999999;6,41;6,41;ENEL ENERGIA SPA;9118031536;ACCONTO Fatt.n. 004263180107  del 07/10/2022 SETTEMBRE 2022 - CONSUMI CIMITERO S.ANGELO - LAMPADE VOTIVE;25/10/2022;134;30;212;1;Spese correnti;3;Acquisto di beni e servizi;2;Acquisto di servizi;5;Utenze e canoni;4;Energia elettrica;28/10/2022
3821;1;9999999;5,25;5,25;ENEL ENERGIA SPA;9118031536;ACCONTO Fatt.n. 004263180106  del 07/10/2022 SETTEMBRE 2022 - CONSUMI CIMITERO VETERNIGO - LAMPADE VOTIVE;25/10/2022;134;30;212;1;Spese correnti;3;Acquisto di beni e servizi;2;Acquisto di servizi;5;Utenze e canoni;4;Energia elettrica;28/10/2022
3822;1;9999999;5,95;5,95;ENEL ENERGIA SPA;9118031536;ACCONTO Fatt.n. 004263180114  del 07/10/2022 SETTEMBRE 2022 - CONSUMI CIMITERO CASELLE - LAMPADE VOTIVE;25/10/2022;134;30;212;1;Spese correnti;3;Acquisto di beni e servizi;2;Acquisto di servizi;5;Utenze e canoni;4;Energia elettrica;28/10/2022
3823;1;9999999;5,88;5,88;ENEL ENERGIA SPA;9118031536;ACCONTO Fatt.n. 004266207031  del 10/10/2022 SETTEMBRE 2022 - CONSUMI CIMITERO SMS - LAMPADE VOTIVE;25/10/2022;134;30;212;1;Spese correnti;3;Acquisto di beni e servizi;2;Acquisto di servizi;5;Utenze e canoni;4;Energia elettrica;28/10/2022
3824;1;9999999;47,86;471,08;ENEL ENERGIA SPA;9118031536;SALDO Fatt.n. 004264866091  del 09/10/2022 SETTEMBRE 2022 - CONSUMI FONTANA VETERNIGO;25/10/2022;134;31;839;1;Spese correnti;3;Acquisto di beni e servizi;2;Acquisto di servizi;5;Utenze e canoni;4;Energia elettrica;28/10/2022
3824;2;9999999;59,89;471,08;ENEL ENERGIA SPA;9118031536;SALDO Fatt.n. 004263180092  del 07/10/2022 SETTEMBRE 2022 - CONSUMI MERCATO CALTANA;25/10/2022;134;31;839;1;Spese correnti;3;Acquisto di beni e servizi;2;Acquisto di servizi;5;Utenze e canoni;4;Energia elettrica;28/10/2022
3824;3;9999999;72,24;471,08;ENEL ENERGIA SPA;9118031536;SALDO Fatt.n. 004263180108  del 07/10/2022 SETTEMBRE 2022 - CONSUMI PARCHEGGIO OVALE SMS;25/10/2022;134;31;839;1;Spese correnti;3;Acquisto di beni e servizi;2;Acquisto di servizi;5;Utenze e canoni;4;Energia elettrica;28/10/2022
3824;4;9999999;119,79;471,08;ENEL ENERGIA SPA;9118031536;SALDO Fatt.n. 004263180115  del 07/10/2022 SETTEMBRE 2022 - CONSUMI MERCATO CASELLE;25/10/2022;134;31;839;1;Spese correnti;3;Acquisto di beni e servizi;2;Acquisto di servizi;5;Utenze e canoni;4;Energia elettrica;28/10/2022
3824;5;9999999;171,3;471,08;ENEL ENERGIA SPA;9118031536;SALDO Fatt.n. 004263180102  del 07/10/2022 SETTEMBRE 2022 - CONSUMI PIAZZA S.D.A. CALTANA;25/10/2022;134;31;839;1;Spese correnti;3;Acquisto di beni e servizi;2;Acquisto di servizi;5;Utenze e canoni;4;Energia elettrica;28/10/2022
3825;1;9999999;10,58;199,14;ENEL ENERGIA SPA;9118031536;SALDO Fatt.n. 004263180125  del 07/10/2022 SETTEMBRE 2022 - CONSUMI ALLOGGIO VIA OLIMPIA SMS;25/10/2022;134;31;839;1;Spese correnti;3;Acquisto di beni e servizi;2;Acquisto di servizi;5;Utenze e canoni;4;Energia elettrica;28/10/2022
3825;2;9999999;32,73;199,14;ENEL ENERGIA SPA;9118031536;SALDO Fatt.n. 004264173234  del 08/10/2022 SETTEMBRE 2022 - CONSUMI PARCHEGGIO SMS;25/10/2022;134;31;839;1;Spese correnti;3;Acquisto di beni e servizi;2;Acquisto di servizi;5;Utenze e canoni;4;Energia elettrica;28/10/2022
3825;3;9999999;35,16;199,14;ENEL ENERGIA SPA;9118031536;SALDO Fatt.n. 004263180122  del 07/10/2022 SETTEMBRE 2022 - CONSUMI ALLOGGIO VIA DON GALLERANI CALTANA;25/10/2022;134;31;839;1;Spese correnti;3;Acquisto di beni e servizi;2;Acquisto di servizi;5;Utenze e canoni;4;Energia elettrica;28/10/2022
3825;4;9999999;58,32;199,14;ENEL ENERGIA SPA;9118031536;SALDO Fatt.n. 004263180120  del 07/10/2022 SETTEMBRE 2022 - CONSUMI PARCHEGGIO C.C. PRISMA SMS;25/10/2022;134;31;839;1;Spese correnti;3;Acquisto di beni e servizi;2;Acquisto di servizi;5;Utenze e canoni;4;Energia elettrica;28/10/2022
3825;5;9999999;62,35;199,14;ENEL ENERGIA SPA;9118031536;SALDO Fatt.n. 004263180123  del 07/10/2022 SETTEMBRE 2022 - CONSUMI MERCATO SMS;25/10/2022;134;31;839;1;Spese correnti;3;Acquisto di beni e servizi;2;Acquisto di servizi;5;Utenze e canoni;4;Energia elettrica;28/10/2022
3826;1;9999999;1.439,20;1.439,20;ENEL ENERGIA SPA;9118031536;SALDO Fatt.n. 004263180095  del 07/10/2022 SETTEMBRE 2022 - CONSUMI SEDE MUNICIPALE;25/10/2022;134;31;839;1;Spese correnti;3;Acquisto di beni e servizi;2;Acquisto di servizi;5;Utenze e canoni;4;Energia elettrica;28/10/2022
3827;1;9999999;329,17;1.717,48;ENEL ENERGIA SPA;9118031536;SALDO Fatt.n. 004263180101  del 07/10/2022 SETTEMBRE 2022 - CONSUMI SC. ELEM. CALTANA;25/10/2022;1334;30;214;1;Spese correnti;3;Acquisto di beni e servizi;2;Acquisto di servizi;5;Utenze e canoni;4;Energia elettrica;28/10/2022
3827;2;9999999;391,42;1.717,48;ENEL ENERGIA SPA;9118031536;SALDO Fatt.n. 004263180118  del 07/10/2022 SETTEMBRE 2022 - CONSUMI SC. ELEM. CASELLE;25/10/2022;1334;30;214;1;Spese correnti;3;Acquisto di beni e servizi;2;Acquisto di servizi;5;Utenze e canoni;4;Energia elettrica;28/10/2022
3827;3;9999999;996,89;1.717,48;ENEL ENERGIA SPA;9118031536;SALDO Fatt.n. 004263180094  del 07/10/2022 SETTEMBRE 2022 - CONSUMI SC, MEDIA - ELEM. SMS;25/10/2022;1334;30;214;1;Spese correnti;3;Acquisto di beni e servizi;2;Acquisto di servizi;5;Utenze e canoni;4;Energia elettrica;28/10/2022
3828;1;0;214;214;ENEL ENERGIA SPA;9118031536;ACCONTO Fatt.n. 004263180099  del 07/10/2022 SETTEMBRE 2022 - CONSUMI SC. ELEM - PALESTRA STIGLIANO;25/10/2022;1334;30;214;1;Spese correnti;3;Acquisto di beni e servizi;2;Acquisto di servizi;5;Utenze e canoni;4;Energia elettrica;25/10/2022
3829;1;0;184,05;184,05;ENEL ENERGIA SPA;9118031536;ACCONTO Fatt.n. 004263180099  del 07/10/2022 SETTEMBRE 2022 - CONSUMI SC. ELEM - PALESTRA STIGLIANO;25/10/2022;1334;30;214;1;Spese correnti;3;Acquisto di beni e servizi;2;Acquisto di servizi;5;Utenze e canoni;4;Energia elettrica;25/10/2022
3830;1;0;215;215;ENEL ENERGIA SPA;9118031536;ACCONTO Fatt.n. 004264173235  del 08/10/2022 SETTEMBRE 2022 - CONSUMI SC. ELEM - PALESTRA VETERNIGO;25/10/2022;1334;30;214;1;Spese correnti;3;Acquisto di beni e servizi;2;Acquisto di servizi;5;Utenze e canoni;4;Energia elettrica;25/10/2022
3831;1;0;350,82;350,82;ENEL ENERGIA SPA;9118031536;ACCONTO Fatt.n. 004264173235  del 08/10/2022 SETTEMBRE 2022 - CONSUMI SC. ELEM - PALESTRA VETERNIGO;25/10/2022;1334;30;214;1;Spese correnti;3;Acquisto di beni e servizi;2;Acquisto di servizi;5;Utenze e canoni;4;Energia elettrica;25/10/2022
3832;1;0;109,22;109,22;ENEL ENERGIA SPA;9118031536;ACCONTO Fatt.n. 004263180100  del 07/10/2022 SETTEMBRE 2022 - CONSUMI PALESTRA CASELLE;25/10/2022;1334;30;214;1;Spese correnti;3;Acquisto di beni e servizi;2;Acquisto di servizi;5;Utenze e canoni;4;Energia elettrica;25/10/2022
3833;1;0;235;235;ENEL ENERGIA SPA;9118031536;ACCONTO Fatt.n. 004263180112  del 07/10/2022 SETTEMBRE 2022 - CONSUMI SC. ELEM. - PALESTRA - ASILO;25/10/2022;1334;30;214;1;Spese correnti;3;Acquisto di beni e servizi;2;Acquisto di servizi;5;Utenze e canoni;4;Energia elettrica;25/10/2022
3834;1;0;703,49;703,49;ENEL ENERGIA SPA;9118031536;ACCONTO Fatt.n. 004263180112  del 07/10/2022 SETTEMBRE 2022 - CONSUMI SC. ELEM. - PALESTRA - ASILO;25/10/2022;1334;30;214;1;Spese correnti;3;Acquisto di beni e servizi;2;Acquisto di servizi;5;Utenze e canoni;4;Energia elettrica;25/10/2022
3835;1;0;190,26;190,26;ENEL ENERGIA SPA;9118031536;ACCONTO Fatt.n. 004263180109  del 07/10/2022 SETTEMBRE 2022 - CONSUMI PALESTRA SMS;25/10/2022;1334;30;214;1;Spese correnti;3;Acquisto di beni e servizi;2;Acquisto di servizi;5;Utenze e canoni;4;Energia elettrica;25/10/2022
3836;1;0;338,89;338,89;ENEL ENERGIA SPA;9118031536;ACCONTO Fatt.n. 004263180098  del 07/10/2022 SETTEMBRE 2022 - CONSUMI PALESTRA CALTANA;25/10/2022;1334;30;214;1;Spese correnti;3;Acquisto di beni e servizi;2;Acquisto di servizi;5;Utenze e canoni;4;Energia elettrica;25/10/2022
3837;1;0;121,3;121,3;ENEL ENERGIA SPA;9118031536;SALDO Fatt.n. 004263180110  del 07/10/2022 SETTEMBRE 2022 - CONSUMI IMP. SPORT. PARROCCHIA CASELLE;25/10/2022;1934;0;216;1;Spese correnti;3;Acquisto di beni e servizi;2;Acquisto di servizi;5;Utenze e canoni;4;Energia elettrica;25/10/2022
3838;1;0;42,26;42,26;ENEL ENERGIA SPA;9118031536;SALDO Fatt.n. 004263180124  del 07/10/2022 SETTEMBRE 2022 - CONSUMI IMP. SPORT. CASELLE;25/10/2022;1934;0;216;1;Spese correnti;3;Acquisto di beni e servizi;2;Acquisto di servizi;5;Utenze e canoni;4;Energia elettrica;25/10/2022
3839;1;0;214,27;214,27;ENEL ENERGIA SPA;9118031536;SALDO Fatt.n. 004263180105  del 07/10/2022 SETTEMBRE 2022 - CONSUMI IMP. SPORT. SMS;25/10/2022;1934;0;216;1;Spese correnti;3;Acquisto di beni e servizi;2;Acquisto di servizi;5;Utenze e canoni;4;Energia elettrica;25/10/2022
3840;1;0;214;214;ENEL ENERGIA SPA;9118031536;SALDO Fatt.n. 004263180099  del 07/10/2022 SETTEMBRE 2022 - CONSUMI SC. ELEM - PALESTRA STIGLIANO;25/10/2022;1934;0;216;1;Spese correnti;3;Acquisto di beni e servizi;2;Acquisto di servizi;5;Utenze e canoni;4;Energia elettrica;25/10/2022
3841;1;0;215;215;ENEL ENERGIA SPA;9118031536;SALDO Fatt.n. 004264173235  del 08/10/2022 SETTEMBRE 2022 - CONSUMI SC. ELEM - PALESTRA VETERNIGO;25/10/2022;1934;0;216;1;Spese correnti;3;Acquisto di beni e servizi;2;Acquisto di servizi;5;Utenze e canoni;4;Energia elettrica;25/10/2022
3842;1;0;109,22;109,22;ENEL ENERGIA SPA;9118031536;SALDO Fatt.n. 004263180100  del 07/10/2022 SETTEMBRE 2022 - CONSUMI PALESTRA CASELLE;25/10/2022;1934;0;216;1;Spese correnti;3;Acquisto di beni e servizi;2;Acquisto di servizi;5;Utenze e canoni;4;Energia elettrica;25/10/2022
3843;1;0;235;235;ENEL ENERGIA SPA;9118031536;SALDO Fatt.n. 004263180112  del 07/10/2022 SETTEMBRE 2022 - CONSUMI SC. ELEM. - PALESTRA - ASILO;25/10/2022;1934;0;216;1;Spese correnti;3;Acquisto di beni e servizi;2;Acquisto di servizi;5;Utenze e canoni;4;Energia elettrica;25/10/2022
3844;1;0;190,26;190,26;ENEL ENERGIA SPA;9118031536;SALDO Fatt.n. 004263180109  del 07/10/2022 SETTEMBRE 2022 - CONSUMI PALESTRA SMS;25/10/2022;1934;0;216;1;Spese correnti;3;Acquisto di beni e servizi;2;Acquisto di servizi;5;Utenze e canoni;4;Energia elettrica;25/10/2022
3845;1;0;338,86;338,86;ENEL ENERGIA SPA;9118031536;SALDO Fatt.n. 004263180098  del 07/10/2022 SETTEMBRE 2022 - CONSUMI PALESTRA CALTANA;25/10/2022;1934;0;216;1;Spese correnti;3;Acquisto di beni e servizi;2;Acquisto di servizi;5;Utenze e canoni;4;Energia elettrica;25/10/2022
3846;1;0;67,37;67,37;ENEL ENERGIA SPA;9118031536;SALDO Fatt.n. 004263180113  del 07/10/2022 SETTEMBRE 2022 - CONSUMI ECOCENTRO COMUNALE;25/10/2022;3534;0;218;1;Spese correnti;3;Acquisto di beni e servizi;2;Acquisto di servizi;5;Utenze e canoni;4;Energia elettrica;25/10/2022
3847;1;0;109,04;109,04;ENEL ENERGIA SPA;9118031536;ACCONTO Fatt.n. 004263180104  del 07/10/2022 SETTEMBRE 2022 - CONSUMI MAGAZZINO COMUNALE;25/10/2022;3534;0;218;1;Spese correnti;3;Acquisto di beni e servizi;2;Acquisto di servizi;5;Utenze e canoni;4;Energia elettrica;25/10/2022
3848;1;0;187,21;187,21;ENEL ENERGIA SPA;9118031536;SALDO Fatt.n. 004263180104  del 07/10/2022 SETTEMBRE 2022 - CONSUMI MAGAZZINO COMUNALE;25/10/2022;3534;0;843;1;Spese correnti;3;Acquisto di beni e servizi;2;Acquisto di servizi;5;Utenze e canoni;4;Energia elettrica;25/10/2022
3849;1;0;9,61;414,29;ENEL ENERGIA SPA;9118031536;SALDO Fatt.n. 004263180096  del 07/10/2022 SETTEMBRE 2022 - CONSUMI ILLUMINAZIONE PUBBLICA;25/10/2022;3544;0;220;1;Spese correnti;3;Acquisto di beni e servizi;2;Acquisto di servizi;15;Contratti di servizio pubblico;15;Contratti di servizio per l'illuminazione pubblica;25/10/2022
3849;2;0;10,58;414,29;ENEL ENERGIA SPA;9118031536;SALDO Fatt.n. 004263180119  del 07/10/2022 SETTEMBRE 2022 - CONSUMI ILLUMINAZIONE PUBBLICA;25/10/2022;3544;0;220;1;Spese correnti;3;Acquisto di beni e servizi;2;Acquisto di servizi;15;Contratti di servizio pubblico;15;Contratti di servizio per l'illuminazione pubblica;25/10/2022
3849;3;0;23,85;414,29;ENEL ENERGIA SPA;9118031536;SALDO Fatt.n. 004263180093  del 07/10/2022 SETTEMBRE 2022 - CONSUMI ILLUMINAZIONE PUBBLICA;25/10/2022;3544;0;220;1;Spese correnti;3;Acquisto di beni e servizi;2;Acquisto di servizi;15;Contratti di servizio pubblico;15;Contratti di servizio per l'illuminazione pubblica;25/10/2022
3849;4;0;52,51;414,29;ENEL ENERGIA SPA;9118031536;SALDO Fatt.n. 004263180121  del 07/10/2022 SETTEMBRE 2022 - CONSUMI ILLUMINAZIONE PUBBLICA;25/10/2022;3544;0;220;1;Spese correnti;3;Acquisto di beni e servizi;2;Acquisto di servizi;15;Contratti di servizio pubblico;15;Contratti di servizio per l'illuminazione pubblica;25/10/2022
3849;5;0;73,27;414,29;ENEL ENERGIA SPA;9118031536;SALDO Fatt.n. 004263180111  del 07/10/2022 SETTEMBRE 2022 - CONSUMI ILLUMINAZIONE PUBBLICA;25/10/2022;3544;0;220;1;Spese correnti;3;Acquisto di beni e servizi;2;Acquisto di servizi;15;Contratti di servizio pubblico;15;Contratti di servizio per l'illuminazione pubblica;25/10/2022
3849;6;0;119,82;414,29;ENEL ENERGIA SPA;9118031536;SALDO Fatt.n. 004263180103  del 07/10/2022 SETTEMBRE 2022 - CONSUMI ILLUMINAZIONE PUBBLICA;25/10/2022;3544;0;220;1;Spese correnti;3;Acquisto di beni e servizi;2;Acquisto di servizi;15;Contratti di servizio pubblico;15;Contratti di servizio per l'illuminazione pubblica;25/10/2022
3849;7;0;124,65;414,29;ENEL ENERGIA SPA;9118031536;SALDO Fatt.n. 004263180116  del 07/10/2022 SETTEMBRE 2022 - CONSUMI ILLUMINAZIONE PUBBLICA;25/10/2022;3544;0;220;1;Spese correnti;3;Acquisto di beni e servizi;2;Acquisto di servizi;15;Contratti di servizio pubblico;15;Contratti di servizio per l'illuminazione pubblica;25/10/2022
3850;1;0;14,96;27.504,58;ENEL ENERGIA SPA;9118031536;SALDO Fatt.n. 004270561795  del 13/10/2022 SETTEMBRE 2022 - CONSUMI ILLUMINAZIONE PUBBLICA;25/10/2022;3544;0;220;1;Spese correnti;3;Acquisto di beni e servizi;2;Acquisto di servizi;15;Contratti di servizio pubblico;15;Contratti di servizio per l'illuminazione pubblica;25/10/2022
3850;2;0;10.967,97;27.504,58;ENEL ENERGIA SPA;9118031536;SALDO Fatt.n. 004271500663  del 15/10/2022 SETTEMBRE 2022 - CONSUMI ILLUMINAZIONE PUBBLICA;25/10/2022;3544;0;220;1;Spese correnti;3;Acquisto di beni e servizi;2;Acquisto di servizi;15;Contratti di servizio pubblico;15;Contratti di servizio per l'illuminazione pubblica;25/10/2022
3850;3;0;16.521,65;27.504,58;ENEL ENERGIA SPA;9118031536;SALDO Fatt.n. 004271500662  del 15/10/2022 SETTEMBRE 2022 - CONSUMI ILLUMINAZIONE PUBBLICA;25/10/2022;3544;0;220;1;Spese correnti;3;Acquisto di beni e servizi;2;Acquisto di servizi;15;Contratti di servizio pubblico;15;Contratti di servizio per l'illuminazione pubblica;25/10/2022
3851;1;0;158,1;947,59;ENEL ENERGIA SPA;9118031536;SALDO Fatt.n. 004263097326  del 07/10/2022 SETTEMBRE 2022 - CONSUMI VILLA FARSETTI;25/10/2022;4234;0;844;1;Spese correnti;3;Acquisto di beni e servizi;2;Acquisto di servizi;5;Utenze e canoni;4;Energia elettrica;25/10/2022
3851;2;0;789,49;947,59;ENEL ENERGIA SPA;9118031536;SALDO Fatt.n. 004266207032  del 10/10/2022 SETTEMBRE 2022 - CONSUMI VILLA FARSETTI;25/10/2022;4234;0;844;1;Spese correnti;3;Acquisto di beni e servizi;2;Acquisto di servizi;5;Utenze e canoni;4;Energia elettrica;25/10/2022
3852;1;0;10,52;10,52;ENEL ENERGIA SPA;9118031536;ACCONTO Fatt.n. 004263180097  del 07/10/2022 SETTEMBRE 2022 - CONSUMI CIMITERO STIGLIANO - LAMPADE VOTIVE;25/10/2022;4434;0;219;1;Spese correnti;3;Acquisto di beni e servizi;2;Acquisto di servizi;5;Utenze e canoni;4;Energia elettrica;25/10/2022
3853;1;0;29,95;29,95;ENEL ENERGIA SPA;9118031536;SALDO Fatt.n. 004263180097  del 07/10/2022 SETTEMBRE 2022 - CONSUMI CIMITERO STIGLIANO - LAMPADE VOTIVE;25/10/2022;4434;0;845;1;Spese correnti;3;Acquisto di beni e servizi;2;Acquisto di servizi;5;Utenze e canoni;4;Energia elettrica;25/10/2022
3854;1;0;88;88;ENEL ENERGIA SPA;9118031536;SALDO Fatt.n. 004263180117  del 07/10/2022 SETTEMBRE 2022 - CONSUMI CIMITERO CALTANA - LAMPADE VOTIVE;25/10/2022;4434;0;845;1;Spese correnti;3;Acquisto di beni e servizi;2;Acquisto di servizi;5;Utenze e canoni;4;Energia elettrica;25/10/2022
3855;1;0;41;41;ENEL ENERGIA SPA;9118031536;SALDO Fatt.n. 004263180107  del 07/10/2022 SETTEMBRE 2022 - CONSUMI CIMITERO S.ANGELO - LAMPADE VOTIVE;25/10/2022;4434;0;845;1;Spese correnti;3;Acquisto di beni e servizi;2;Acquisto di servizi;5;Utenze e canoni;4;Energia elettrica;25/10/2022
3856;1;0;37;37;ENEL ENERGIA SPA;9118031536;SALDO Fatt.n. 004263180106  del 07/10/2022 SETTEMBRE 2022 - CONSUMI CIMITERO VETERNIGO - LAMPADE VOTIVE;25/10/2022;4434;0;845;1;Spese correnti;3;Acquisto di beni e servizi;2;Acquisto di servizi;5;Utenze e canoni;4;Energia elettrica;25/10/2022
3857;1;0;60;60;ENEL ENERGIA SPA;9118031536;SALDO Fatt.n. 004263180114  del 07/10/2022 SETTEMBRE 2022 - CONSUMI CIMITERO CASELLE - LAMPADE VOTIVE;25/10/2022;4434;0;845;1;Spese correnti;3;Acquisto di beni e servizi;2;Acquisto di servizi;5;Utenze e canoni;4;Energia elettrica;25/10/2022
3858;1;0;49;49;ENEL ENERGIA SPA;9118031536;SALDO Fatt.n. 004266207031  del 10/10/2022 SETTEMBRE 2022 - CONSUMI CIMITERO SMS - LAMPADE VOTIVE;25/10/2022;4434;0;845;1;Spese correnti;3;Acquisto di beni e servizi;2;Acquisto di servizi;5;Utenze e canoni;4;Energia elettrica;25/10/2022
3859;1;0;1.375,00;1.375,00;OMESSO NOMINATIVO NEL RISPETTO DELLA NORMATIVA SULLA PROTEZIONE DATI PERSONALI; ;OTTOBRE 2022 INTEGRAZIONE RETTA CASA DI RIPSOO RELAXXI DI NOALE;25/10/2022;3844;0;386;1;Spese correnti;3;Acquisto di beni e servizi;2;Acquisto di servizi;15;Contratti di servizio pubblico;8;Contratti di servizio di assistenza sociale residenziale e semiresidenziale;25/10/2022
3860;1;0;1.000,00;1.000,00;OMESSO NOMINATIVO NEL RISPETTO DELLA NORMATIVA SULLA PROTEZIONE DATI PERSONALI; ;OTTOBRE 2022 INTEGRAZIONE RETTA CASA DI RIPOSO LA SALUTE DI FIESSO DARTICO.;25/10/2022;3844;0;199;1;Spese correnti;3;Acquisto di beni e servizi;2;Acquisto di servizi;15;Contratti di servizio pubblico;8;Contratti di servizio di assistenza sociale residenziale e semiresidenziale;25/10/2022
3861;1;0;320;320;OMESSO NOMINATIVO NEL RISPETTO DELLA NORMATIVA SULLA PROTEZIONE DATI PERSONALI; ;OTTOBRE 2022 INTEGRAZIONE RETTA CASA DI RIPOSO ALTHEA DI SPINEA.;25/10/2022;3844;0;549;1;Spese correnti;3;Acquisto di beni e servizi;2;Acquisto di servizi;15;Contratti di servizio pubblico;8;Contratti di servizio di assistenza sociale residenziale e semiresidenziale;25/10/2022
3862;1;0;842;842;OMESSO NOMINATIVO NEL RISPETTO DELLA NORMATIVA SULLA PROTEZIONE DATI PERSONALI; ;OTTOBRE 2022 INTEGRAZIONE RETTA CASA DI RIPOSO IPAB L. MARIUTTO DI MIRANO;25/10/2022;3844;0;552;1;Spese correnti;3;Acquisto di beni e servizi;2;Acquisto di servizi;15;Contratti di servizio pubblico;8;Contratti di servizio di assistenza sociale residenziale e semiresidenziale;25/10/2022
3863;1;0;690,5;690,5;OMESSO NOMINATIVO NEL RISPETTO DELLA NORMATIVA SULLA PROTEZIONE DATI PERSONALI; ;OTTOBRE 2022 INTEGRAZIONE RETTA CASA DI RIPOSO CENTRO RESIDENZIALE ANZIANI UMBERTO PRIMO DI STRA;25/10/2022;3844;0;448;1;Spese correnti;3;Acquisto di beni e servizi;2;Acquisto di servizi;15;Contratti di servizio pubblico;8;Contratti di servizio di assistenza sociale residenziale e semiresidenziale;25/10/2022
3864;1;0;552;552;OMESSO NOMINATIVO NEL RISPETTO DELLA NORMATIVA SULLA PROTEZIONE DATI PERSONALI; ;OTTOBRE 2022 INTEGRAZIONE RETTA CASA DI RIPOSO RELAXXI DI NOALE -;25/10/2022;3844;0;446;1;Spese correnti;3;Acquisto di beni e servizi;2;Acquisto di servizi;15;Contratti di servizio pubblico;8;Contratti di servizio di assistenza sociale residenziale e semiresidenziale;25/10/2022
3865;1;0;400;400;OMESSO NOMINATIVO NEL RISPETTO DELLA NORMATIVA SULLA PROTEZIONE DATI PERSONALI; ;OTTOBRE 2022 INTEGRAZIONE RETTA CASA DI RIPOSO RESIDENZA RIVIERA DEL BRENTA - CENTRO DI SOGGIORNO ANZIANI DI DOLO.;25/10/2022;3844;0;443;1;Spese correnti;3;Acquisto di beni e servizi;2;Acquisto di servizi;15;Contratti di servizio pubblico;8;Contratti di servizio di assistenza sociale residenziale e semiresidenziale;25/10/2022
